Workbook

Sheet MainPage
A1: PI-SEC Scenario Calculator | B1: Front Page
A2: Neighbourhood: | B2: Grønneberg
A4: Climate Zone | B4: 1. Sør-Norge, innland
A6: KEY DATA | B6: Now | C6: End of project
A7: Project timeframe | B7: 2018 | C7: 2030
A8: Area | B8: 100000 | C8: 100000
A9: Population | B9: 330 | C9: 330
A10: Number of jobs | B10: 36 | C10: 236
A11: Area of buildings (m2 BRA) | B11: 29000 | C11: 37000
A12: Number of buildings | B12: 4 | C12: 5
A14: GOALS | B14: KPI | C14: Category | D14: Sub category | E14: Sector | F14: Unit | G14: Comparison | H14: Relative to | I14: Goal at EoP
A15: CO2-reduction | B15: CO2 emissions | C15: Total | F15: Absolute | G15: % Reduction | H15: Baseline | I15: 30
A16: CO2-reduction | B16: CO2 emissions | C16: Total | F16: /m2 BRA | G16: % Reduction | H16: Baseline | I16: 40
A17: Increased energy efficiency | B17: Energy Use | C17: Total | D17: Total stationary and mobility | E17: Total | F17: Absolute | G17: % Reduction | H17: Initial | I17: 20
A18: Increased energy efficiency | B18: Energy Use | C18: Total | D18: Total stationary and mobility | E18: Total | F18: /m2 BRA | G18: % Reduction | H18: Initial | I18: 20
A22: Menu
A30: Scenarioes
A31: Initial
A32: Baseline
A33: Scenario1

Sheet Log
A1: Date | B1: Change | C1: From | D1: To | E1: Comment
A2: 2020-02-01 | B2: Antall personer (personbelegg) for personbiler i Grønneby i 2030 | C2: 1.3 | D2: 1.5 | E2: Ny RVU for kommunen
A3: 2020-02-02 | B3: Ny boliglokk lagt til | E3: Endringer i reguleringsplan og salg av tomt gjør at det nå er bestemt å bygge ekstra boligblokk i området.

Sheet Emission factors
A1: Emission Factors
A2: Energy Sources | B2: Emissions [gCO2/kWh]
A3: Electricity | B3: 123
A4: Solar Thermal | B4: 0
A5: Firewood | B5: 14
A6: Wood Chips | B6: 14
A7: Pellets | B7: 25
A8: Bio-oil | B8: 25
A9: Bio-gas | B9: 10
A10: Waste | B10: 138
A11: Fossile oil | B11: 315
A12: LPG | B12: 304
A13: Natural Gas | B13: 255

Sheet Transport Input Data (hidden)
A1: Transport Data
A3: BuildingCategory | B3: Trip Generation
B4: Users | G4: Other Users
B5: Work | C5: Service | D5: Private errand | E5: Utside Service | F5: Goods transport
A6: Residential individual housing | B6: 0.8 | C6: 0.1 | D6: 1 | E6: 1.7 | F6: 0.1 | G6: 0
A7: Residential apartment building | B7: 0.8 | C7: 0.1 | D7: 1 | E7: 1.7 | F7: 0.1 | G7: 0
A8: Office building | B8: 1.6 | C8: 0.6 | D8: 0.2 | E8: 0.1 | F8: 0.2 | G8: 1.43
A9: Kindergarten | B9: 1.6 | C9: 0.6 | D9: 0.2 | E9: 0.1 | F9: 0.2 | G9: 0.79
A10: School | B10: 1.6 | C10: 0.6 | D10: 0.2 | E10: 0.1 | F10: 0.2 | G10: 0.83
A11: University/Collage | B11: 1.6 | C11: 0.6 | D11: 0.2 | E11: 0.1 | F11: 0.2 | G11: 0.83
A12: Hospital | B12: 1.6 | C12: 0.6 | D12: 0.2 | E12: 0.1 | F12: 0.2 | G12: 2
A13: Nursing home | B13: 1.6 | C13: 0.6 | D13: 0.2 | E13: 0.1 | F13: 0.2 | G13: 2
A14: Hotel | B14: 1.6 | C14: 0.6 | D14: 0.2 | E14: 0.1 | F14: 0.2 | G14: 2.45
A15: Sports Facility | B15: 1.6 | C15: 0.6 | D15: 0.2 | E15: 0.1 | F15: 0.2 | G15: 0
A16: Comercial building | B16: 1.6 | C16: 0.2 | D16: 0.1 | E16: 0.1 | F16: 1 | G16: 1.65
A17: Cultural building | B17: 1.6 | C17: 0.6 | D17: 0.2 | E17: 0.1 | F17: 0.2 | G17: 1.65
A18: Industry/Workshop | B18: 1.6 | C18: 0.2 | D18: 0.1 | E18: 0.1 | F18: 1 | G18: 0
A20: Traveling Habit data
C21: Travel method distribution | O21: Other Travel Data
C22: Work | F22: Service | I22: Private errand | L22: Other | O22: Average distance | Q22: # passengers | T22: Public Transport | W22: Traveling speeds at road
A23: Oslo | C23: Walk/bike | D23: Public transport | E23: Car | F23: Walk/bike | G23: Public transport | H23: Car | I23: Walk/bike | J23: Public transport | K23: Car | L23: Walk/bike | M23: Public transport | N23: Car | O23: Public Transport | P23: Car | Q23: Public Transport | R23: Rail | S23: Car | T23: % using track | W23: % below 50 km/h | X23: % above 50 km/h
B24: Residential individual housing | C24: 0.19 | D24: 0.47 | E24: 0.34 | F24: 0.19 | G24: 0.29 | H24: 0.52 | I24: 0.42 | J24: 0.21 | K24: 0.37 | L24: 0.43 | M24: 0.26 | N24: 0.31 | O24: 13.8 | P24: 16 | Q24: 19.4 | S24: 1.3 | T24: 0.6 | W24: 0.5 | X24: 0.5
B25: Residential apartment building | C25: =C24 -> 0.19 | D25: =D24 -> 0.47 | E25: 0.34 | F25: 0.19 | G25: 0.29 | H25: 0.52 | I25: 0.42 | J25: 0.21 | K25: 0.37 | L25: 0.43 | M25: 0.26 | N25: 0.31 | O25: =O24 -> 13.8 | P25: 16 | Q25: 19.4 | S25: =S24 -> 1.3 | T25: 0.6 | W25: =W24 -> 0.5 | X25: 0.5
B26: Office building | C26: 0.19 | D26: 0.47 | E26: 0.34 | F26: 0.19 | G26: 0.29 | H26: 0.52 | I26: 0.42 | J26: 0.21 | K26: 0.37 | L26: 0.43 | M26: 0.26 | N26: 0.31 | O26: =O25 -> 13.8 | P26: 16 | Q26: 19.4 | S26: =S25 -> 1.3 | T26: 0.6 | W26: =W25 -> 0.5 | X26: 0.5
B27: Kindergarten | C27: =C26 -> 0.19 | D27: =D26 -> 0.47 | E27: 0.34 | F27: 0.19 | G27: 0.29 | H27: 0.52 | I27: 0.42 | J27: 0.21 | K27: 0.37 | L27: 0.43 | M27: 0.26 | N27: 0.31 | O27: =O26 -> 13.8 | P27: 16 | Q27: 19.4 | S27: =S26 -> 1.3 | T27: 0.6 | W27: =W26 -> 0.5 | X27: 0.5
B28: School | C28: =C27 -> 0.19 | D28: =D27 -> 0.47 | E28: =E27 -> 0.34 | F28: =F27 -> 0.19 | G28: =G27 -> 0.29 | H28: =H27 -> 0.52 | I28: =I27 -> 0.42 | J28: =J27 -> 0.21 | K28: =K27 -> 0.37 | L28: =L27 -> 0.43 | M28: =M27 -> 0.26 | N28: =N27 -> 0.31 | O28: =O27 -> 13.8 | P28: 16 | Q28: 19.4 | S28: =S27 -> 1.3 | T28: 0.6 | W28: =W27 -> 0.5 | X28: 0.5
B29: University/Collage | C29: 0.19 | D29: 0.47 | E29: 0.34 | F29: 0.19 | G29: 0.29 | H29: 0.52 | I29: 0.42 | J29: 0.21 | K29: 0.37 | L29: 0.43 | M29: 0.26 | N29: 0.31 | O29: =O28 -> 13.8 | P29: 16 | Q29: 19.4 | S29: =S28 -> 1.3 | T29: 0.6 | W29: =W28 -> 0.5 | X29: 0.5
B30: Hospital | C30: 0.19 | D30: 0.47 | E30: 0.34 | F30: 0.19 | G30: 0.29 | H30: 0.52 | I30: 0.42 | J30: 0.21 | K30: 0.37 | L30: 0.43 | M30: 0.26 | N30: 0.31 | O30: =O29 -> 13.8 | P30: 16 | Q30: 19.4 | S30: =S29 -> 1.3 | T30: 0.6 | W30: =W29 -> 0.5 | X30: 0.5
B31: Nursing home | C31: 0.19 | D31: 0.47 | E31: 0.34 | F31: 0.19 | G31: 0.29 | H31: 0.52 | I31: 0.42 | J31: 0.21 | K31: 0.37 | L31: 0.43 | M31: 0.26 | N31: 0.31 | O31: =O30 -> 13.8 | P31: 16 | Q31: 19.4 | S31: =S30 -> 1.3 | T31: 0.6 | W31: =W30 -> 0.5 | X31: 0.5
B32: Hotel | C32: 0.19 | D32: 0.47 | E32: 0.34 | F32: 0.19 | G32: 0.29 | H32: 0.52 | I32: 0.42 | J32: 0.21 | K32: 0.37 | L32: 0.43 | M32: 0.26 | N32: 0.31 | O32: =O31 -> 13.8 | P32: 16 | Q32: 19.4 | S32: =S31 -> 1.3 | T32: 0.6 | W32: =W31 -> 0.5 | X32: 0.5
B33: Sports Facility | C33: 0.19 | D33: 0.47 | E33: 0.34 | F33: 0.19 | G33: 0.29 | H33: 0.52 | I33: 0.42 | J33: 0.21 | K33: 0.37 | L33: 0.43 | M33: 0.26 | N33: 0.31 | O33: =O32 -> 13.8 | P33: 16 | Q33: 19.4 | S33: =S32 -> 1.3 | T33: 0.6 | W33: =W32 -> 0.5 | X33: 0.5
B34: Comercial building | C34: 0.19 | D34: 0.47 | E34: 0.34 | F34: 0.19 | G34: 0.29 | H34: 0.52 | I34: 0.42 | J34: 0.21 | K34: 0.37 | L34: 0.43 | M34: 0.26 | N34: 0.31 | O34: =O33 -> 13.8 | P34: 16 | Q34: 19.4 | S34: =S33 -> 1.3 | T34: 0.6 | W34: =W33 -> 0.5 | X34: 0.5
B35: Cultural building | C35: =C34 -> 0.19 | D35: =D34 -> 0.47 | E35: 0.34 | F35: 0.19 | G35: 0.29 | H35: 0.52 | I35: 0.42 | J35: 0.21 | K35: 0.37 | L35: 0.43 | M35: 0.26 | N35: 0.31 | O35: =O34 -> 13.8 | P35: 16 | Q35: 19.4 | S35: =S34 -> 1.3 | T35: 0.6 | W35: =W34 -> 0.5 | X35: 0.5
B36: Industry/Workshop | C36: =C33 -> 0.19 | D36: =D33 -> 0.47 | E36: 0.34 | F36: 0.19 | G36: 0.29 | H36: 0.52 | I36: 0.42 | J36: 0.21 | K36: 0.37 | L36: 0.43 | M36: 0.26 | N36: 0.31 | O36: =O35 -> 13.8 | P36: 16 | Q36: 19.4 | S36: =S35 -> 1.3 | T36: 0.6 | W36: =W35 -> 0.5 | X36: 0.5
A38: Oslo, Groruddalen | C38: Walk/bike | D38: Public transport | E38: Car | F38: Walk/bike | G38: Public transport | H38: Car | I38: Walk/bike | J38: Public transport | K38: Car | L38: Walk/bike | M38: Public transport | N38: Car | O38: Public Transport | P38: Car | Q38: Public Transport | S38: Car | T38: % using track | W38: % below 50 km/h | X38: % above 50 km/h
B39: Residential individual housing | C39: 0.11 | D39: 0.5 | E39: 0.39 | F39: 0.08 | G39: 0.23 | H39: 0.69 | I39: 0.33 | J39: 0.22 | K39: 0.45 | L39: 0.39 | M39: 0.28 | N39: 0.33 | O39: 13.8 | P39: 16 | Q39: 19.4 | S39: 1.3 | T39: 0.6 | W39: 0.5 | X39: 0.5
B40: Residential apartment building | C40: =C39 -> 0.11 | D40: =D39 -> 0.5 | E40: =E39 -> 0.39 | F40: =F39 -> 0.08 | G40: =G39 -> 0.23 | H40: =H39 -> 0.69 | I40: =I39 -> 0.33 | J40: =J39 -> 0.22 | K40: =K39 -> 0.45 | L40: =L39 -> 0.39 | M40: =M39 -> 0.28 | N40: =N39 -> 0.33 | O40: =O39 -> 13.8 | P40: 16 | Q40: 19.4 | S40: =S39 -> 1.3 | T40: 0.6 | W40: =W39 -> 0.5 | X40: 0.5
B41: Office building | C41: 0.09 | D41: 0.3 | E41: 0.61 | F41: 0.08 | G41: 0.23 | H41: 0.69 | I41: 0.33 | J41: 0.22 | K41: 0.45 | L41: 0.39 | M41: 0.28 | N41: 0.33 | O41: =O40 -> 13.8 | P41: 16 | Q41: 19.4 | S41: =S40 -> 1.3 | T41: 0.6 | W41: =W40 -> 0.5 | X41: 0.5
B42: Kindergarten | C42: =C41 -> 0.09 | D42: =D41 -> 0.3 | E42: =E41 -> 0.61 | F42: =F41 -> 0.08 | G42: =G41 -> 0.23 | H42: =H41 -> 0.69 | I42: =I41 -> 0.33 | J42: =J41 -> 0.22 | K42: =K41 -> 0.45 | L42: =L41 -> 0.39 | M42: =M41 -> 0.28 | N42: =N41 -> 0.33 | O42: =O41 -> 13.8 | P42: 16 | Q42: 19.4 | S42: =S41 -> 1.3 | T42: 0.6 | W42: =W41 -> 0.5 | X42: 0.5
B43: School | C43: =C42 -> 0.09 | D43: 0.3 | E43: 0.61 | F43: 0.08 | G43: 0.23 | H43: 0.69 | I43: 0.33 | J43: 0.22 | K43: 0.45 | L43: 0.39 | M43: 0.28 | N43: 0.33 | O43: =O42 -> 13.8 | P43: 16 | Q43: 19.4 | S43: =S42 -> 1.3 | T43: 0.6 | W43: =W42 -> 0.5 | X43: 0.5
B44: University/Collage | C44: 0.09 | D44: 0.3 | E44: 0.61 | F44: 0.08 | G44: 0.23 | H44: 0.69 | I44: 0.33 | J44: 0.22 | K44: 0.45 | L44: 0.39 | M44: 0.28 | N44: 0.33 | O44: =O43 -> 13.8 | P44: 16 | Q44: 19.4 | S44: =S43 -> 1.3 | T44: 0.6 | W44: =W43 -> 0.5 | X44: 0.5
B45: Hospital | C45: 0.09 | D45: 0.3 | E45: 0.61 | F45: 0.08 | G45: 0.23 | H45: 0.69 | I45: 0.33 | J45: 0.22 | K45: 0.45 | L45: 0.39 | M45: 0.28 | N45: 0.33 | O45: =O44 -> 13.8 | P45: 16 | Q45: 19.4 | S45: =S44 -> 1.3 | T45: 0.6 | W45: =W44 -> 0.5 | X45: 0.5
B46: Nursing home | C46: 0.09 | D46: 0.3 | E46: 0.61 | F46: 0.08 | G46: 0.23 | H46: 0.69 | I46: 0.33 | J46: 0.22 | K46: 0.45 | L46: 0.39 | M46: 0.28 | N46: 0.33 | O46: =O45 -> 13.8 | P46: 16 | Q46: 19.4 | S46: =S45 -> 1.3 | T46: 0.6 | W46: =W45 -> 0.5 | X46: 0.5
B47: Hotel | C47: 0.09 | D47: 0.3 | E47: 0.61 | F47: 0.08 | G47: 0.23 | H47: 0.69 | I47: 0.33 | J47: 0.22 | K47: 0.45 | L47: 0.39 | M47: 0.28 | N47: 0.33 | O47: =O46 -> 13.8 | P47: 16 | Q47: 19.4 | S47: =S46 -> 1.3 | T47: 0.6 | W47: =W46 -> 0.5 | X47: 0.5
B48: Sports Facility | C48: 0.09 | D48: 0.3 | E48: 0.61 | F48: 0.08 | G48: 0.23 | H48: 0.69 | I48: 0.33 | J48: 0.22 | K48: 0.45 | L48: 0.39 | M48: 0.28 | N48: 0.33 | O48: =O47 -> 13.8 | P48: 16 | Q48: 19.4 | S48: =S47 -> 1.3 | T48: 0.6 | W48: =W47 -> 0.5 | X48: 0.5
B49: Comercial building | C49: =C39 -> 0.11 | D49: =D39 -> 0.5 | E49: 0.39 | F49: 0.08 | G49: 0.23 | H49: 0.69 | I49: 0.33 | J49: 0.22 | K49: 0.45 | L49: 0.39 | M49: 0.28 | N49: 0.33 | O49: =O48 -> 13.8 | P49: 16 | Q49: 19.4 | S49: =S48 -> 1.3 | T49: 0.6 | W49: =W48 -> 0.5 | X49: 0.5
B50: Cultural building | C50: =C49 -> 0.11 | D50: =D49 -> 0.5 | E50: =E49 -> 0.39 | F50: =F49 -> 0.08 | G50: =G49 -> 0.23 | H50: =H49 -> 0.69 | I50: =I49 -> 0.33 | J50: =J49 -> 0.22 | K50: =K49 -> 0.45 | L50: =L49 -> 0.39 | M50: =M49 -> 0.28 | N50: =N49 -> 0.33 | O50: =O49 -> 13.8 | P50: 16 | Q50: 19.4 | S50: =S49 -> 1.3 | T50: 0.6 | W50: =W49 -> 0.5 | X50: 0.5
B51: Industry/Workshop | C51: =C48 -> 0.09 | D51: =D48 -> 0.3 | E51: 0.61 | F51: 0.08 | G51: 0.23 | H51: 0.69 | I51: 0.33 | J51: 0.22 | K51: 0.45 | L51: 0.39 | M51: 0.28 | N51: 0.33 | O51: =O50 -> 13.8 | P51: 16 | Q51: 19.4 | S51: =S50 -> 1.3 | T51: 0.6 | W51: =W50 -> 0.5 | X51: 0.5
A53: Oslo, Groruddalen knutepunkt | C53: Walk/bike | D53: Public transport | E53: Car | F53: Walk/bike | G53: Public transport | H53: Car | I53: Walk/bike | J53: Public transport | K53: Car | L53: Walk/bike | M53: Public transport | N53: Car | O53: Public Transport | P53: Car | Q53: Public Transport | S53: Car | T53: % using track | W53: % below 50 km/h | X53: % above 50 km/h
B54: Residential individual housing | C54: 0.2 | D54: 0.5 | E54: 0.3 | F54: 0.17 | G54: 0.28 | H54: 0.55 | I54: 0.46 | J54: 0.22 | K54: 0.32 | L54: 0.44 | M54: 0.28 | N54: 0.28 | O54: 13.8 | P54: 16 | Q54: 19.4 | S54: 1.3 | T54: 0.6 | W54: 0.5 | X54: 0.5
B55: Residential apartment building | C55: =C54 -> 0.2 | D55: =D54 -> 0.5 | E55: =E54 -> 0.3 | F55: =F54 -> 0.17 | G55: =G54 -> 0.28 | H55: =H54 -> 0.55 | I55: =I54 -> 0.46 | J55: =J54 -> 0.22 | K55: =K54 -> 0.32 | L55: =L54 -> 0.44 | M55: =M54 -> 0.28 | N55: =N54 -> 0.28 | O55: =O54 -> 13.8 | P55: 16 | Q55: 19.4 | S55: =S54 -> 1.3 | T55: 0.6 | W55: =W54 -> 0.5 | X55: 0.5
B56: Office building | C56: 0.15 | D56: 0.37 | E56: 0.48 | F56: 0.17 | G56: 0.28 | H56: 0.55 | I56: 0.46 | J56: 0.22 | K56: 0.32 | L56: 0.43 | M56: 0.25 | N56: 0.32 | O56: =O55 -> 13.8 | P56: 16 | Q56: 19.4 | S56: =S55 -> 1.3 | T56: 0.6 | W56: =W55 -> 0.5 | X56: 0.5
B57: Kindergarten | C57: =C56 -> 0.15 | D57: =D56 -> 0.37 | E57: =E56 -> 0.48 | F57: =F56 -> 0.17 | G57: =G56 -> 0.28 | H57: =H56 -> 0.55 | I57: =I56 -> 0.46 | J57: =J56 -> 0.22 | K57: =K56 -> 0.32 | L57: =L56 -> 0.43 | M57: =M56 -> 0.25 | N57: =N56 -> 0.32 | O57: =O56 -> 13.8 | P57: 16 | Q57: 19.4 | S57: =S56 -> 1.3 | T57: 0.6 | W57: =W56 -> 0.5 | X57: 0.5
B58: School | C58: =C57 -> 0.15 | D58: 0.37 | E58: 0.48 | F58: 0.17 | G58: 0.28 | H58: 0.55 | I58: 0.46 | J58: 0.22 | K58: 0.32 | L58: 0.43 | M58: 0.25 | N58: 0.32 | O58: =O57 -> 13.8 | P58: 16 | Q58: 19.4 | S58: =S57 -> 1.3 | T58: 0.6 | W58: =W57 -> 0.5 | X58: 0.5
B59: University/Collage | C59: 0.15 | D59: 0.37 | E59: 0.48 | F59: 0.17 | G59: 0.28 | H59: 0.55 | I59: 0.46 | J59: 0.22 | K59: 0.32 | L59: 0.43 | M59: 0.25 | N59: 0.32 | O59: =O58 -> 13.8 | P59: 16 | Q59: 19.4 | S59: =S58 -> 1.3 | T59: 0.6 | W59: =W58 -> 0.5 | X59: 0.5
B60: Hospital | C60: 0.15 | D60: 0.37 | E60: 0.48 | F60: 0.17 | G60: 0.28 | H60: 0.55 | I60: 0.46 | J60: 0.22 | K60: 0.32 | L60: 0.43 | M60: 0.25 | N60: 0.32 | O60: =O59 -> 13.8 | P60: 16 | Q60: 19.4 | S60: =S59 -> 1.3 | T60: 0.6 | W60: =W59 -> 0.5 | X60: 0.5
B61: Nursing home | C61: 0.15 | D61: 0.37 | E61: 0.48 | F61: 0.17 | G61: 0.28 | H61: 0.55 | I61: 0.46 | J61: 0.22 | K61: 0.32 | L61: 0.43 | M61: 0.25 | N61: 0.32 | O61: =O60 -> 13.8 | P61: 16 | Q61: 19.4 | S61: =S60 -> 1.3 | T61: 0.6 | W61: =W60 -> 0.5 | X61: 0.5
B62: Hotel | C62: 0.15 | D62: 0.37 | E62: 0.48 | F62: 0.17 | G62: 0.28 | H62: 0.55 | I62: 0.46 | J62: 0.22 | K62: 0.32 | L62: 0.43 | M62: 0.25 | N62: 0.32 | O62: =O61 -> 13.8 | P62: 16 | Q62: 19.4 | S62: =S61 -> 1.3 | T62: 0.6 | W62: =W61 -> 0.5 | X62: 0.5
B63: Sports Facility | C63: 0.15 | D63: 0.37 | E63: 0.48 | F63: 0.17 | G63: 0.28 | H63: 0.55 | I63: 0.46 | J63: 0.22 | K63: 0.32 | L63: 0.43 | M63: 0.25 | N63: 0.32 | O63: =O62 -> 13.8 | P63: 16 | Q63: 19.4 | S63: =S62 -> 1.3 | T63: 0.6 | W63: =W62 -> 0.5 | X63: 0.5
B64: Comercial building | C64: =C54 -> 0.2 | D64: =D54 -> 0.5 | E64: 0.3 | F64: 0.17 | G64: 0.28 | H64: 0.55 | I64: 0.46 | J64: 0.22 | K64: 0.32 | L64: 0.44 | M64: 0.28 | N64: 0.28 | O64: =O63 -> 13.8 | P64: 16 | Q64: 19.4 | S64: =S63 -> 1.3 | T64: 0.6 | W64: =W63 -> 0.5 | X64: 0.5
B65: Cultural building | C65: =C64 -> 0.2 | D65: =D64 -> 0.5 | E65: =E64 -> 0.3 | F65: =F64 -> 0.17 | G65: =G64 -> 0.28 | H65: =H64 -> 0.55 | I65: =I64 -> 0.46 | J65: =J64 -> 0.22 | K65: =K64 -> 0.32 | L65: =L64 -> 0.44 | M65: =M64 -> 0.28 | N65: =N64 -> 0.28 | O65: =O64 -> 13.8 | P65: 16 | Q65: 19.4 | S65: =S64 -> 1.3 | T65: 0.6 | W65: =W64 -> 0.5 | X65: 0.5
B66: Industry/Workshop | C66: =C63 -> 0.15 | D66: =D63 -> 0.37 | E66: 0.48 | F66: 0.17 | G66: 0.28 | H66: 0.55 | I66: 0.46 | J66: 0.22 | K66: 0.32 | L66: 0.43 | M66: 0.25 | N66: 0.32 | O66: =O65 -> 13.8 | P66: 16 | Q66: 19.4 | S66: =S65 -> 1.3 | T66: 0.6 | W66: =W65 -> 0.5 | X66: 0.5
A68: Bergen Kommune | C68: Walk/bike | D68: Public transport | E68: Car | F68: Walk/bike | G68: Public transport | H68: Car | I68: Walk/bike | J68: Public transport | K68: Car | L68: Walk/bike | M68: Public transport | N68: Car | O68: Public Transport | P68: Car | Q68: Public Transport | S68: Car | T68: % using track | W68: % below 50 km/h | X68: % above 50 km/h
B69: Residential individual housing | C69: 0.27 | D69: 0.25 | E69: 0.48 | F69: 0.09 | G69: 0.12 | H69: 0.79 | I69: 0.41 | J69: 0.11 | K69: 0.48 | L69: 0.32 | M69: 0.1 | N69: 0.58 | O69: 12.3 | P69: 12.9 | Q69: 15 | S69: 1.3 | T69: 0.2 | W69: 0.6 | X69: 0.4
B70: Residential apartment building | C70: =C69 -> 0.27 | D70: =D69 -> 0.25 | E70: 0.48 | F70: 0.09 | G70: 0.12 | H70: 0.79 | I70: 0.41 | J70: 0.11 | K70: 0.48 | L70: 0.32 | M70: 0.1 | N70: 0.58 | O70: =O69 -> 12.3 | P70: 12.9 | Q70: 15 | S70: =S69 -> 1.3 | T70: 0.2 | W70: =W69 -> 0.6 | X70: 0.4
B71: Office building | C71: =C70 -> 0.27 | D71: =D70 -> 0.25 | E71: 0.48 | F71: 0.09 | G71: 0.12 | H71: 0.79 | I71: 0.41 | J71: 0.11 | K71: 0.48 | L71: 0.32 | M71: 0.1 | N71: 0.58 | O71: 12.3 | P71: 12.9 | Q71: 15 | S71: =S70 -> 1.3 | T71: 0.2 | W71: =W70 -> 0.6 | X71: 0.4
B72: Kindergarten | C72: =C71 -> 0.27 | D72: =D71 -> 0.25 | E72: 0.48 | F72: 0.09 | G72: 0.12 | H72: 0.79 | I72: 0.41 | J72: 0.11 | K72: 0.48 | L72: 0.32 | M72: 0.1 | N72: 0.58 | O72: =O71 -> 12.3 | P72: 12.9 | Q72: 15 | S72: =S71 -> 1.3 | T72: 0.2 | W72: =W71 -> 0.6 | X72: 0.4
B73: School | C73: =C72 -> 0.27 | D73: 0.25 | E73: 0.48 | F73: 0.09 | G73: 0.12 | H73: 0.79 | I73: 0.41 | J73: 0.11 | K73: 0.48 | L73: 0.32 | M73: 0.1 | N73: 0.58 | O73: =O72 -> 12.3 | P73: 12.9 | Q73: 15 | S73: =S72 -> 1.3 | T73: 0.2 | W73: =W72 -> 0.6 | X73: 0.4
B74: University/Collage | C74: 0.27 | D74: 0.25 | E74: 0.48 | F74: 0.09 | G74: 0.12 | H74: 0.79 | I74: 0.41 | J74: 0.11 | K74: 0.48 | L74: 0.32 | M74: 0.1 | N74: 0.58 | O74: =O73 -> 12.3 | P74: 12.9 | Q74: 15 | S74: =S73 -> 1.3 | T74: 0.2 | W74: =W73 -> 0.6 | X74: 0.4
B75: Hospital | C75: 0.27 | D75: 0.25 | E75: 0.48 | F75: 0.09 | G75: 0.12 | H75: 0.79 | I75: 0.41 | J75: 0.11 | K75: 0.48 | L75: 0.32 | M75: 0.1 | N75: 0.58 | O75: =O74 -> 12.3 | P75: 12.9 | Q75: 15 | S75: =S74 -> 1.3 | T75: 0.2 | W75: =W74 -> 0.6 | X75: 0.4
B76: Nursing home | C76: 0.27 | D76: 0.25 | E76: 0.48 | F76: 0.09 | G76: 0.12 | H76: 0.79 | I76: 0.41 | J76: 0.11 | K76: 0.48 | L76: 0.32 | M76: 0.1 | N76: 0.58 | O76: =O75 -> 12.3 | P76: 12.9 | Q76: 15 | S76: =S75 -> 1.3 | T76: 0.2 | W76: =W75 -> 0.6 | X76: 0.4
B77: Hotel | C77: 0.27 | D77: 0.25 | E77: 0.48 | F77: 0.09 | G77: 0.12 | H77: 0.79 | I77: 0.41 | J77: 0.11 | K77: 0.48 | L77: 0.32 | M77: 0.1 | N77: 0.58 | O77: =O76 -> 12.3 | P77: 12.9 | Q77: 15 | S77: =S76 -> 1.3 | T77: 0.2 | W77: =W76 -> 0.6 | X77: 0.4
B78: Sports Facility | C78: 0.27 | D78: 0.25 | E78: 0.48 | F78: 0.09 | G78: 0.12 | H78: 0.79 | I78: 0.41 | J78: 0.11 | K78: 0.48 | L78: 0.32 | M78: 0.1 | N78: 0.58 | O78: =O77 -> 12.3 | P78: 12.9 | Q78: 15 | S78: =S77 -> 1.3 | T78: 0.2 | W78: =W77 -> 0.6 | X78: 0.4
B79: Comercial building | C79: =C69 -> 0.27 | D79: =D69 -> 0.25 | E79: 0.48 | F79: 0.09 | G79: 0.12 | H79: 0.79 | I79: 0.41 | J79: 0.11 | K79: 0.48 | L79: 0.32 | M79: 0.1 | N79: 0.58 | O79: =O78 -> 12.3 | P79: 12.9 | Q79: 15 | S79: =S78 -> 1.3 | T79: 0.2 | W79: =W78 -> 0.6 | X79: 0.4
B80: Cultural building | C80: =C79 -> 0.27 | D80: =D79 -> 0.25 | E80: 0.48 | F80: 0.09 | G80: 0.12 | H80: 0.79 | I80: 0.41 | J80: 0.11 | K80: 0.48 | L80: 0.32 | M80: 0.1 | N80: 0.58 | O80: =O79 -> 12.3 | P80: 12.9 | Q80: 15 | S80: =S79 -> 1.3 | T80: 0.2 | W80: =W79 -> 0.6 | X80: 0.4
B81: Industry/Workshop | C81: =C78 -> 0.27 | D81: =D78 -> 0.25 | E81: 0.48 | F81: 0.09 | G81: 0.12 | H81: 0.79 | I81: 0.41 | J81: 0.11 | K81: 0.48 | L81: 0.32 | M81: 0.1 | N81: 0.58 | O81: =O80 -> 12.3 | P81: 12.9 | Q81: 15 | S81: =S80 -> 1.3 | T81: 0.2 | W81: =W80 -> 0.6 | X81: 0.4
A83: Bergen Sentrum | C83: Walk/bike | D83: Public transport | E83: Car | F83: Walk/bike | G83: Public transport | H83: Car | I83: Walk/bike | J83: Public transport | K83: Car | L83: Walk/bike | M83: Public transport | N83: Car | O83: Public Transport | P83: Car | Q83: Public Transport | S83: Car | T83: % using track | W83: % below 50 km/h | X83: % above 50 km/h
B84: Residential individual housing | C84: 0.4 | D84: 0.21 | E84: 0.39 | F84: 0.09 | G84: 0.12 | H84: 0.79 | I84: 0.51 | J84: 0.09 | K84: 0.4 | L84: 0.32 | M84: 0.1 | N84: 0.58 | O84: 12.3 | P84: 12.3 | Q84: 15 | S84: 1.3 | T84: 0.2 | W84: 0.6 | X84: 0.4
B85: Residential apartment building | C85: =C84 -> 0.4 | D85: =D84 -> 0.21 | E85: 0.39 | F85: 0.09 | G85: 0.12 | H85: 0.79 | I85: 0.51 | J85: 0.09 | K85: 0.4 | L85: 0.32 | M85: 0.1 | N85: 0.58 | O85: =O84 -> 12.3 | P85: 12.3 | Q85: 15 | S85: =S84 -> 1.3 | T85: 0.2 | W85: =W84 -> 0.6 | X85: 0.4
B86: Office building | C86: 0.28 | D86: 0.28 | E86: 0.79 | F86: 0.09 | G86: 0.12 | H86: 0.79 | I86: 0.51 | J86: 0.09 | K86: 0.4 | L86: 0.32 | M86: 0.1 | N86: 0.58 | O86: =O85 -> 12.3 | P86: 12.3 | Q86: 15 | S86: =S85 -> 1.3 | T86: 0.2 | W86: =W85 -> 0.6 | X86: 0.4
B87: Kindergarten | C87: =C86 -> 0.28 | D87: =D86 -> 0.28 | E87: 0.79 | F87: 0.09 | G87: 0.12 | H87: 0.79 | I87: 0.51 | J87: 0.09 | K87: 0.4 | L87: 0.32 | M87: 0.1 | N87: 0.58 | O87: =O86 -> 12.3 | P87: 12.3 | Q87: 15 | S87: =S86 -> 1.3 | T87: 0.2 | W87: =W86 -> 0.6 | X87: 0.4
B88: School | C88: =C87 -> 0.28 | D88: 0.28 | E88: 0.79 | F88: 0.09 | G88: 0.12 | H88: 0.79 | I88: 0.51 | J88: 0.09 | K88: 0.4 | L88: 0.32 | M88: 0.1 | N88: 0.58 | O88: =O87 -> 12.3 | P88: 12.3 | Q88: 15 | S88: =S87 -> 1.3 | T88: 0.2 | W88: =W87 -> 0.6 | X88: 0.4
B89: University/Collage | C89: 0.28 | D89: 0.28 | E89: 0.79 | F89: 0.09 | G89: 0.12 | H89: 0.79 | I89: 0.51 | J89: 0.09 | K89: 0.4 | L89: 0.32 | M89: 0.1 | N89: 0.58 | O89: =O88 -> 12.3 | P89: 12.3 | Q89: 15 | S89: =S88 -> 1.3 | T89: 0.2 | W89: =W88 -> 0.6 | X89: 0.4
B90: Hospital | C90: 0.28 | D90: 0.28 | E90: 0.79 | F90: 0.09 | G90: 0.12 | H90: 0.79 | I90: 0.51 | J90: 0.09 | K90: 0.4 | L90: 0.32 | M90: 0.1 | N90: 0.58 | O90: =O89 -> 12.3 | P90: 12.3 | Q90: 15 | S90: =S89 -> 1.3 | T90: 0.2 | W90: =W89 -> 0.6 | X90: 0.4
B91: Nursing home | C91: 0.28 | D91: 0.28 | E91: 0.79 | F91: 0.09 | G91: 0.12 | H91: 0.79 | I91: 0.51 | J91: 0.09 | K91: 0.4 | L91: 0.32 | M91: 0.1 | N91: 0.58 | O91: =O90 -> 12.3 | P91: 12.3 | Q91: 15 | S91: =S90 -> 1.3 | T91: 0.2 | W91: =W90 -> 0.6 | X91: 0.4
B92: Hotel | C92: 0.28 | D92: 0.28 | E92: 0.79 | F92: 0.09 | G92: 0.12 | H92: 0.79 | I92: 0.51 | J92: 0.09 | K92: 0.4 | L92: 0.32 | M92: 0.1 | N92: 0.58 | O92: =O91 -> 12.3 | P92: 12.3 | Q92: 15 | S92: =S91 -> 1.3 | T92: 0.2 | W92: =W91 -> 0.6 | X92: 0.4
B93: Sports Facility | C93: 0.28 | D93: 0.28 | E93: 0.79 | F93: 0.09 | G93: 0.12 | H93: 0.79 | I93: 0.51 | J93: 0.09 | K93: 0.4 | L93: 0.32 | M93: 0.1 | N93: 0.58 | O93: =O92 -> 12.3 | P93: 12.3 | Q93: 15 | S93: =S92 -> 1.3 | T93: 0.2 | W93: =W92 -> 0.6 | X93: 0.4
B94: Comercial building | C94: =C84 -> 0.4 | D94: =D84 -> 0.21 | E94: 0.39 | F94: 0.09 | G94: 0.12 | H94: 0.79 | I94: 0.51 | J94: 0.09 | K94: 0.4 | L94: 0.32 | M94: 0.1 | N94: 0.58 | O94: =O93 -> 12.3 | P94: 12.3 | Q94: 15 | S94: =S93 -> 1.3 | T94: 0.2 | W94: =W93 -> 0.6 | X94: 0.4
B95: Cultural building | C95: =C94 -> 0.4 | D95: =D94 -> 0.21 | E95: 0.39 | F95: 0.09 | G95: 0.12 | H95: 0.79 | I95: 0.51 | J95: 0.09 | K95: 0.4 | L95: 0.32 | M95: 0.1 | N95: 0.58 | O95: =O94 -> 12.3 | P95: 12.3 | Q95: 15 | S95: =S94 -> 1.3 | T95: 0.2 | W95: =W94 -> 0.6 | X95: 0.4
B96: Industry/Workshop | C96: =C93 -> 0.28 | D96: =D93 -> 0.28 | E96: 0.79 | F96: 0.09 | G96: 0.12 | H96: 0.79 | I96: 0.51 | J96: 0.09 | K96: 0.4 | L96: 0.32 | M96: 0.1 | N96: 0.58 | O96: =O95 -> 12.3 | P96: 12.3 | Q96: 15 | S96: =S95 -> 1.3 | T96: 0.2 | W96: =W95 -> 0.6 | X96: 0.4
A98: Bergen Kommune, utenfor sentrum | C98: Walk/bike | D98: Public transport | E98: Car | F98: Walk/bike | G98: Public transport | H98: Car | I98: Walk/bike | J98: Public transport | K98: Car | L98: Walk/bike | M98: Public transport | N98: Car | O98: Public Transport | P98: Car | Q98: Public Transport | S98: Car | T98: % using track | W98: % below 50 km/h | X98: % above 50 km/h
B99: Residential individual housing | C99: 0.12 | D99: 0.16 | E99: 0.72 | F99: 0.09 | G99: 0.12 | H99: 0.79 | I99: 0.17 | J99: 0.07 | K99: 0.76 | L99: 0.32 | M99: 0.1 | N99: 0.58 | O99: 12.3 | P99: 12.3 | Q99: 15 | S99: 1.3 | T99: 0.2 | W99: 0.6 | X99: 0.4
B100: Residential apartment building | C100: =C99 -> 0.12 | D100: =D99 -> 0.16 | E100: 0.72 | F100: 0.09 | G100: 0.12 | H100: 0.79 | I100: 0.17 | J100: 0.07 | K100: 0.76 | L100: 0.32 | M100: 0.1 | N100: 0.58 | O100: =O99 -> 12.3 | P100: 12.3 | Q100: 15 | S100: =S99 -> 1.3 | T100: 0.2 | W100: =W99 -> 0.6 | X100: 0.4
B101: Office building | C101: =C100 -> 0.12 | D101: =D100 -> 0.16 | E101: 0.72 | F101: 0.09 | G101: 0.12 | H101: 0.79 | I101: 0.17 | J101: 0.07 | K101: 0.76 | L101: 0.32 | M101: 0.1 | N101: 0.58 | O101: 12.3 | P101: 12.3 | Q101: 15 | S101: =S100 -> 1.3 | T101: 0.2 | W101: =W100 -> 0.6 | X101: 0.4
B102: Kindergarten | C102: =C101 -> 0.12 | D102: =D101 -> 0.16 | E102: 0.72 | F102: 0.09 | G102: 0.12 | H102: 0.79 | I102: 0.17 | J102: 0.07 | K102: 0.76 | L102: 0.32 | M102: 0.1 | N102: 0.58 | O102: =O101 -> 12.3 | P102: 12.3 | Q102: 15 | S102: =S101 -> 1.3 | T102: 0.2 | W102: =W101 -> 0.6 | X102: 0.4
B103: School | C103: =C102 -> 0.12 | D103: 0.16 | E103: 0.72 | F103: 0.09 | G103: 0.12 | H103: 0.79 | I103: 0.17 | J103: 0.07 | K103: 0.76 | L103: 0.32 | M103: 0.1 | N103: 0.58 | O103: =O102 -> 12.3 | P103: 12.3 | Q103: 15 | S103: =S102 -> 1.3 | T103: 0.2 | W103: =W102 -> 0.6 | X103: 0.4
B104: University/Collage | C104: 0.12 | D104: 0.16 | E104: 0.72 | F104: 0.09 | G104: 0.12 | H104: 0.79 | I104: 0.17 | J104: 0.07 | K104: 0.76 | L104: 0.32 | M104: 0.1 | N104: 0.58 | O104: =O103 -> 12.3 | P104: 12.3 | Q104: 15 | S104: =S103 -> 1.3 | T104: 0.2 | W104: =W103 -> 0.6 | X104: 0.4
B105: Hospital | C105: 0.12 | D105: 0.16 | E105: 0.72 | F105: 0.09 | G105: 0.12 | H105: 0.79 | I105: 0.17 | J105: 0.07 | K105: 0.76 | L105: 0.32 | M105: 0.1 | N105: 0.58 | O105: =O104 -> 12.3 | P105: 12.3 | Q105: 15 | S105: =S104 -> 1.3 | T105: 0.2 | W105: =W104 -> 0.6 | X105: 0.4
B106: Nursing home | C106: 0.12 | D106: 0.16 | E106: 0.72 | F106: 0.09 | G106: 0.12 | H106: 0.79 | I106: 0.17 | J106: 0.07 | K106: 0.76 | L106: 0.32 | M106: 0.1 | N106: 0.58 | O106: =O105 -> 12.3 | P106: 12.3 | Q106: 15 | S106: =S105 -> 1.3 | T106: 0.2 | W106: =W105 -> 0.6 | X106: 0.4
B107: Hotel | C107: 0.12 | D107: 0.16 | E107: 0.72 | F107: 0.09 | G107: 0.12 | H107: 0.79 | I107: 0.17 | J107: 0.07 | K107: 0.76 | L107: 0.32 | M107: 0.1 | N107: 0.58 | O107: =O106 -> 12.3 | P107: 12.3 | Q107: 15 | S107: =S106 -> 1.3 | T107: 0.2 | W107: =W106 -> 0.6 | X107: 0.4
B108: Sports Facility | C108: 0.12 | D108: 0.16 | E108: 0.72 | F108: 0.09 | G108: 0.12 | H108: 0.79 | I108: 0.17 | J108: 0.07 | K108: 0.76 | L108: 0.32 | M108: 0.1 | N108: 0.58 | O108: =O107 -> 12.3 | P108: 12.3 | Q108: 15 | S108: =S107 -> 1.3 | T108: 0.2 | W108: =W107 -> 0.6 | X108: 0.4
B109: Comercial building | C109: =C99 -> 0.12 | D109: =D99 -> 0.16 | E109: 0.72 | F109: 0.09 | G109: 0.12 | H109: 0.79 | I109: 0.17 | J109: 0.07 | K109: 0.76 | L109: 0.32 | M109: 0.1 | N109: 0.58 | O109: =O108 -> 12.3 | P109: 12.3 | Q109: 15 | S109: =S108 -> 1.3 | T109: 0.2 | W109: =W108 -> 0.6 | X109: 0.4
B110: Cultural building | C110: =C109 -> 0.12 | D110: =D109 -> 0.16 | E110: 0.72 | F110: 0.09 | G110: 0.12 | H110: 0.79 | I110: 0.17 | J110: 0.07 | K110: 0.76 | L110: 0.32 | M110: 0.1 | N110: 0.58 | O110: =O109 -> 12.3 | P110: 12.3 | Q110: 15 | S110: =S109 -> 1.3 | T110: 0.2 | W110: =W109 -> 0.6 | X110: 0.4
B111: Industry/Workshop | C111: =C108 -> 0.12 | D111: =D108 -> 0.16 | E111: 0.72 | F111: 0.09 | G111: 0.12 | H111: 0.79 | I111: 0.17 | J111: 0.07 | K111: 0.76 | L111: 0.32 | M111: 0.1 | N111: 0.58 | O111: =O110 -> 12.3 | P111: 12.3 | Q111: 15 | S111: =S110 -> 1.3 | T111: 0.2 | W111: =W110 -> 0.6 | X111: 0.4
A115: Energy intensity transport
A116: Energy use | C116: Fossile [kwh/km] | D116: Electric [kWh/km]
B117: Buss | C117: =J155 -> 3.691032407 | D117: =J156 -> 1.28
B118: Rail | C118: =J157 -> 14.5 | D118: =J158 -> 2.2
B119: Car | C119: =J149 -> 0.6264861111 | D119: =J152 -> 0.17
B120: Truck | C120: =J153 -> 0.7483194444 | D120: =J154 -> 0.6
A122: Emissions transport
A123: Only direct emissions | C123: Fossile [g/km] | D123: Electric [g/km]
B124: Buss | C124: =S155 -> 981.8146204 | D124: =S152 -> 0
B125: Rail | C125: =S157 -> 3857 | D125: =S158 -> 0
B126: Car | C126: =S149 -> 165.4538472 | D126: =S152 -> 0
B127: Truck | C127: =S153 -> 199.0529722 | D127: =S154 -> 0
A129: Direct emissions and fuel production emissions | C129: Fossile [g/km] | D129: Electric [g/km]
B130: Buss | C130: =T155 -> 1166.366241 | D130: =T156 -> 157.44
B131: Rail | C131: =T157 -> 4582 | D131: =T158 -> 270.6
B132: Car | C132: =T149 -> 200.6153802 | D132: =T152 -> 20.91
B133: Truck | C133: =T153 -> 236.4689444 | D133: =T154 -> 73.8
A135: All transport related emissions | C135: Fossile [g/km] | D135: Electric [g/km]
B136: Buss | C136: =U155 -> 3166.366241 | D136: =U156 -> 2157.44
B137: Rail | C137: =U157 -> 4582 | D137: =U158 -> 270.6
B138: Car | C138: =U149 -> 293.6153802 | D138: =U152 -> 150.91
B139: Truck | C139: =U153 -> 2236.468944 | D139: =U154 -> 2073.8
A141: Self defined - unrelated to standard energy intensity | C141: Fossile [g/km] | D141: Electric [g/km]
B142: Buss
B143: Rail
B144: Car
B145: Truck
B147: Transport type | C147: Fuel | D147: Road speed | E147: Share diesel fossil car | F147: Drivstofforbruk | G147: Massetetthet | H147: Drivstofforbruk | I147: Energiinnhold drivstoff | J147: Energiintensitet | K147: Direkte utslipp | N147: Utslipp produksjon av drivstoff | Q147: Prod og vedlikehold av kjøretøy | R147: Andre indirekte utslipp | S147: Direct | T147: Direct and production of fuel | U147: All emissions related to transport
F148: g/km | G148: kg/L | H148: L/km | I148: kWh/L | J148: kWh/vkm | K148: kgCO2e/L | L148: kgCO2e/kWh | M148: kgCO2e/vkm | N148: kgCO2e/L | O148: kgCO2e/kWh | P148: kgCO2e/vkm | Q148: kgCO2e/vkm | R148: kgCO2e/vkm | S148: g/vkm | T148: g/vkm | U148: g/vkm
A149: Average road, no biofuel mix | B149: Car | C149: Fossil | E149: 0.65 | F149: =F151*$E$149+F150*(1-$E$149) -> 52.45 | G149: 0.8046511628 | H149: 0.06562725694 | I149: 9.611111111 | J149: 0.6264861111 | K149: 2.541 | L149: 0.26425 | M149: 0.1654538472 | N149: 0.535 | O149: 0.056125 | P149: =O149*$J149 -> 0.03516153299 | Q149: =Q151*$E$149+Q150*(1-$E$149) -> 0.083 | R149: =R151*$E$149+R150*(1-$E$149) -> 0.01 | S149: =M149*1000 -> 165.4538472 | T149: =(M149+P149)*1000 -> 200.6153802 | U149: =(M149+P149+Q149+R149)*1000 -> 293.6153802
C150: Gasoline | F150: 57 | G150: =$D$209 -> 0.7441860465 | H150: =F150*1/(G150*1000) -> 0.07659375 | I150: =$E$209 -> 8.888888889 | J150: =H150*I150 -> 0.6808333333 | K150: =$F$209 -> 2.32 | L150: =$K150/I150 -> 0.261 | M150: =L150*$J150 -> 0.1776975 | N150: =$G$209 -> 0.6 | O150: =$N150/I150 -> 0.0675 | P150: 0.04595625 | Q150: 0.083 | R150: 0.01 | S150: 177.6975 | T150: 223.65375 | U150: 316.65375
C151: Diesel | F151: 50 | G151: =$D$210 -> 0.8372093023 | H151: =F151*1/(G151*1000) -> 0.05972222222 | I151: =$E$210 -> 10 | J151: =H151*I151 -> 0.5972222222 | K151: =$F$210 -> 2.66 | L151: =$K151/I151 -> 0.266 | M151: =L151*$J151 -> 0.1588611111 | N151: =$G$210 -> 0.5 | O151: =$N151/I151 -> 0.05 | P151: 0.02986111111 | Q151: 0.083 | R151: 0.01 | S151: 158.8611111 | T151: 188.7222222 | U151: 281.7222222
C152: Electricity | J152: 0.17 | L152: 0 | O152: =$H$208 -> 0.123 | P152: 0.02091 | Q152: 0.12 | R152: 0.01 | S152: 0 | T152: 20.91 | U152: 150.91
B153: Truck | C153: Fossil | E153: 1 | F153: =AVERAGE(F190,F191) -> 62.65 | G153: =$D$210 -> 0.8372093023 | H153: =F153*1/(G153*1000) -> 0.07483194444 | I153: =$E$210 -> 10 | J153: =H153*I153 -> 0.7483194444 | K153: =$F$210 -> 2.66 | L153: =$K153/I153 -> 0.266 | M153: =L153*$J153 -> 0.1990529722 | N153: =$G$210 -> 0.5 | O153: =$N153/I153 -> 0.05 | P153: 0.03741597222 | Q153: 1 | R153: 1 | S153: 199.0529722 | T153: 236.4689444 | U153: 2236.468944
C154: Electricity | J154: 0.6 | L154: 0 | O154: =$H$208 -> 0.123 | P154: 0.0738 | Q154: 1 | R154: 1 | S154: 0 | T154: 73.8 | U154: 2073.8
B155: Bus | C155: Fossil | E155: 1 | F155: =AVERAGE(F196,F197) -> 309.0166667 | G155: =$D$210 -> 0.8372093023 | H155: =F155*1/(G155*1000) -> 0.3691032407 | I155: =$E$210 -> 10 | J155: =H155*I155 -> 3.691032407 | K155: =$F$210 -> 2.66 | L155: =$K155/I155 -> 0.266 | M155: =L155*$J155 -> 0.9818146204 | N155: =$G$210 -> 0.5 | O155: =$N155/I155 -> 0.05 | P155: 0.1845516204 | Q155: 1 | R155: 1 | S155: 981.8146204 | T155: 1166.366241 | U155: 3166.366241
C156: Electricity | J156: 1.28 | L156: 0 | O156: =$H$208 -> 0.123 | P156: 0.15744 | Q156: 1 | R156: 1 | S156: 0 | T156: 157.44 | U156: 2157.44
B157: Rail | C157: =C167 -> Fossil | F157: =F167 -> 0 | G157: =G167 -> 0 | H157: 1.45 | I157: 10 | J157: 14.5 | K157: 2.66 | L157: 0.266 | M157: 3.857 | N157: 0.5 | O157: 0.05 | P157: 0.725 | Q157: 0 | R157: 0 | S157: 3857 | T157: 4582 | U157: 4582
B158: Metro (Oslo) | C158: Electricity | E158: 15.7 | J158: 2.2 | L158: 0 | O158: 0.123 | P158: 0.2706 | S158: 0 | T158: 270.6 | U158: 270.6
B161: Transport type | C161: Fuel | E161: PERSONBELEGG | F161: Drivstofforbruk | G161: Massetetthet | H161: Drivstofforbruk | I161: Energiinnhold drivstoff | J161: Energiintensitet | K161: Direkte utslipp | N161: Utslipp produksjon av drivstoff | Q161: Prod og vedlikehold av kjøretøy | R161: Andre indirekte utslipp | S161: Direct | T161: Direct and production of fuel | U161: All emissions related to transport
F162: g/km | G162: kg/L | H162: L/km | I162: kWh/L | J162: kWh/vkm | K162: kgCO2e/L | L162: kgCO2e/kWh | M162: kgCO2e/vkm | N162: kgCO2e/L | O162: kgCO2e/kWh | P162: kgCO2e/vkm | Q162: kgCO2e/vkm | R162: kgCO2e/vkm | S162: g/vkm | T162: g/vkm | U162: g/vkm
C163: Fossil
B164: Metro (Oslo) | C164: Electricity | E164: 15.7 | J164: 2.2 | L164: 0 | O164: =$H$208 -> 0.123 | P164: =O164*$J164 -> 0.2706 | S164: =M164*1000 -> 0 | T164: =(M164+P164)*1000 -> 270.6 | U164: =(M164+P164+Q164+R164)*1000 -> 270.6
C165: Fossil
B166: Tram (Oslo) | C166: Electricity | E166: 37.5 | J166: 5.3 | L166: 0 | O166: =$H$208 -> 0.123 | P166: 0.6519 | S166: 0 | T166: 651.9 | U166: 651.9
C167: Fossil | E167: 47 | H167: 1.45 | I167: =$E$210 -> 10 | J167: =H167*I167 -> 14.5 | K167: =$F$210 -> 2.66 | L167: =$K167/I167 -> 0.266 | M167: =L167*$J167 -> 3.857 | N167: =$G$210 -> 0.5 | O167: =$N167/I167 -> 0.05 | P167: 0.725 | S167: =M167*1000 -> 3857 | T167: =(M167+P167)*1000 -> 4582 | U167: =(M167+P167+Q167+R167)*1000 -> 4582
B168: Train | C168: Electricity | E168: 47 | J168: 5.6 | L168: 0 | O168: =$H$208 -> 0.123 | P168: 0.6888 | S168: 0 | T168: 688.8 | U168: 688.8
B170: Car | C170: Gasoline | D170: <50 | F170: 53.3 | G170: =$D$209 -> 0.7441860465 | H170: =F170*1/(G170*1000) -> 0.071621875 | I170: =$E$209 -> 8.888888889 | J170: =H170*I170 -> 0.6366388889 | K170: =$F$209 -> 2.32 | L170: =$K170/I170 -> 0.261 | M170: =L170*$J170 -> 0.16616275 | N170: =$G$209 -> 0.6 | O170: =$N170/I170 -> 0.0675 | P170: 0.042973125
B171: Rural | D171: >=50 | F171: 45.225 | G171: =$D$209 -> 0.7441860465 | H171: =F171*1/(G171*1000) -> 0.06077109375 | I171: =$E$209 -> 8.888888889 | J171: =H171*I171 -> 0.5401875 | K171: =$F$209 -> 2.32 | L171: 0.261 | M171: 0.1409889375 | N171: =$G$209 -> 0.6 | O171: 0.0675 | P171: 0.03646265625
C172: Diesel | D172: <50 | F172: 45.6 | G172: =$D$210 -> 0.8372093023 | H172: =F172*1/(G172*1000) -> 0.05446666667 | I172: =$E$210 -> 10 | J172: =H172*I172 -> 0.5446666667 | K172: =$F$210 -> 2.66 | L172: 0.266 | M172: 0.1448813333 | N172: =$G$210 -> 0.5 | O172: 0.05 | P172: 0.02723333333
D173: >=50 | F173: 37.13125 | G173: =$D$210 -> 0.8372093023 | H173: =F173*1/(G173*1000) -> 0.04435121528 | I173: =$E$210 -> 10 | J173: =H173*I173 -> 0.4435121528 | K173: =$F$210 -> 2.66 | L173: 0.266 | M173: 0.1179742326 | N173: =$G$210 -> 0.5 | O173: 0.05 | P173: 0.02217560764
C174: Bioethanol | D174: <50 | F174: 84.88518519 | G174: =$D$212 -> 0.7777777778 | H174: =J174/I174 -> 0.1091380952 | I174: =$E$212 -> 5.833333333 | J174: =J170 -> 0.6366388889 | K174: =$F$212 -> 0 | L174: 0 | M174: 0 | N174: =$G$212 -> 1.6 | O174: 0.2742857143 | P174: 0.1746209524
D175: >=50 | F175: 72.025 | G175: =$D$212 -> 0.7777777778 | H175: =J175/I175 -> 0.09260357143 | I175: =$E$212 -> 5.833333333 | J175: =J171 -> 0.5401875 | K175: =$F$212 -> 0 | L175: 0 | M175: 0 | N175: =$G$212 -> 1.6 | O175: 0.2742857143 | P175: 0.1481657143
C176: Biodiesel | D176: <50 | F176: 52.99459459 | G176: =$D$211 -> 0.8918918919 | H176: =J$176/I$176 -> 0.05941818182 | I176: =$E$211 -> 9.166666667 | J176: =J172 -> 0.5446666667 | K176: =$F$211 -> 0 | L176: 0 | M176: 0 | N176: =$G$211 -> 2.333333333 | O176: 0.2545454545 | P176: 0.1386424242
D177: >=50 | F177: 43.15253378 | G177: =$D$211 -> 0.8918918919 | H177: =J177/I177 -> 0.04838314394 | I177: =$E$211 -> 9.166666667 | J177: =J$173 -> 0.4435121528 | K177: =$F$211 -> 0 | L177: 0 | M177: =L$177*$J177 -> 0 | N177: =$G$211 -> 2.333333333 | O177: 0.2545454545 | P177: =$O$177*$J177 -> 0.1128940025
C178: Electricity | D178: <50 | J178: 0.17 | L178: 0 | M178: =L178*$J178 -> 0 | O178: 0.123 | P178: =O178*$J178 -> 0.02091
D179: >=50 | J179: 0.17 | L179: 0 | M179: 0 | O179: 0.123 | P179: 0.02091
B180: Car | C180: Gasoline | D180: <50 | F180: 58.8 | G180: =$D$209 -> 0.7441860465 | H180: =F180*1/(G180*1000) -> 0.0790125 | I180: =$E$209 -> 8.888888889 | J180: =H180*I180 -> 0.7023333333 | K180: =$F$209 -> 2.32 | L180: =$K180/I180 -> 0.261 | M180: 0.183309 | N180: =$G$209 -> 0.6 | O180: =$N180/I180 -> 0.0675 | P180: 0.0474075
B181: Urban | D181: >=50 | F181: 45.2375 | G181: =$D$209 -> 0.7441860465 | H181: =F181*1/(G181*1000) -> 0.06078789063 | I181: =$E$209 -> 8.888888889 | J181: =H181*I181 -> 0.5403368056 | K181: =$F$209 -> 2.32 | L181: 0.261 | M181: 0.1410279063 | N181: =$G$209 -> 0.6 | O181: 0.0675 | P181: 0.03647273438
C182: Diesel | D182: <50 | F182: 55.2 | G182: =$D$210 -> 0.8372093023 | H182: =F182*1/(G182*1000) -> 0.06593333333 | I182: =$E$210 -> 10 | J182: =H182*I182 -> 0.6593333333 | K182: =$F$210 -> 2.66 | L182: 0.266 | M182: 0.1753826667 | N182: =$G$210 -> 0.5 | O182: 0.05 | P182: 0.03296666667
D183: >=50 | F183: 38.31875 | G183: =$D$210 -> 0.8372093023 | H183: =F183*1/(G183*1000) -> 0.04576961806 | I183: =$E$210 -> 10 | J183: =H183*I183 -> 0.4576961806 | K183: =$F$210 -> 2.66 | L183: 0.266 | M183: 0.121747184 | N183: =$G$210 -> 0.5 | O183: 0.05 | P183: 0.02288480903
C184: Bioethanol | D184: <50 | F184: 93.64444444 | G184: =$D$212 -> 0.7777777778 | H184: =J184/I184 -> 0.1204 | I184: =$E$212 -> 5.833333333 | J184: =J180 -> 0.7023333333 | K184: =$F$212 -> 0 | L184: 0 | M184: 0 | N184: =$G$212 -> 1.6 | O184: 0.2742857143 | P184: 0.19264
D185: >=50 | F185: 72.04490741 | G185: =$D$212 -> 0.7777777778 | H185: =J185/I185 -> 0.09262916667 | I185: =$E$212 -> 5.833333333 | J185: =J181 -> 0.5403368056 | K185: =$F$212 -> 0 | L185: 0 | M185: 0 | N185: =$G$212 -> 1.6 | O185: 0.2742857143 | P185: 0.1482066667
C186: Biodiesel | D186: <50 | F186: 64.15135135 | G186: =$D$211 -> 0.8918918919 | H186: =J186/I186 -> 0.07192727273 | I186: =$E$211 -> 9.166666667 | J186: =J182 -> 0.6593333333 | K186: =$F$211 -> 0 | L186: 0 | M186: 0 | N186: =$G$211 -> 2.333333333 | O186: 0.2545454545 | P186: 0.167830303
D187: >=50 | F187: 44.53260135 | G187: =$D$211 -> 0.8918918919 | H187: =J187/I187 -> 0.04993049242 | I187: =$E$211 -> 9.166666667 | J187: =J183 -> 0.4576961806 | K187: =$F$211 -> 0 | L187: 0 | M187: 0 | N187: =$G$211 -> 2.333333333 | O187: 0.2545454545 | P187: 0.1165044823
C188: Electricity | D188: <50 | J188: 0.17 | L188: 0 | M188: 0 | O188: 0.123 | P188: 0.02091
D189: >=50 | J189: 0.17 | L189: 0 | M189: 0 | O189: 0.123 | P189: 0.02091
B190: Light | C190: Diesel | D190: <50 | F190: 65.23333333 | G190: =$D$210 -> 0.8372093023 | H190: =F190*1/(G190*1000) -> 0.07791759259 | I190: =$E$210 -> 10 | J190: =H190*I190 -> 0.7791759259 | K190: =$F$210 -> 2.66 | L190: =$K190/I190 -> 0.266 | M190: 0.2072607963 | N190: =$G$210 -> 0.5 | O190: =$N190/I190 -> 0.05 | P190: 0.0389587963
D191: >=50 | F191: 60.06666667 | G191: =$D$210 -> 0.8372093023 | H191: =F191*1/(G191*1000) -> 0.0717462963 | I191: =$E$210 -> 10 | J191: =H191*I191 -> 0.717462963 | K191: =$F$210 -> 2.66 | L191: =$K191/I191 -> 0.266 | M191: 0.1908451481 | N191: =$G$210 -> 0.5 | O191: =$N191/I191 -> 0.05 | P191: 0.03587314815
C192: Biodiesel | D192: <50 | F192: 76.24131141 | G192: =$D$211 -> 0.8918918919 | H192: =J192/I192 -> 0.0850010101 | I192: =$E$211 -> 9.166666667 | J192: =J190 -> 0.7791759259 | K192: =$F$211 -> 0 | L192: =$K192/I192 -> 0 | M192: 0 | N192: =$G$211 -> 2.333333333 | O192: =$N192/I192 -> 0.2545454545 | P192: 0.1983356902
D193: >=50 | F193: 70.20278138 | G193: =$D$211 -> 0.8918918919 | H193: =J193/I193 -> 0.07826868687 | I193: =$E$211 -> 9.166666667 | J193: =J191 -> 0.717462963 | K193: =$F$211 -> 0 | L193: =$K193/I193 -> 0 | M193: 0 | N193: =$G$211 -> 2.333333333 | O193: =$N193/I193 -> 0.2545454545 | P193: 0.182626936
C194: Electricity | D194: <50 | J194: 0.6 | L194: 0 | M194: 0 | O194: 0.123 | P194: 0.0738
D195: >=50 | J195: 0.6 | L195: 0 | M195: 0 | O195: 0.123 | P195: 0.0738
B196: Bus | C196: Diesel | D196: <50 | F196: 319.2166667 | G196: =$D$210 -> 0.8372093023 | H196: =F196*1/(G196*1000) -> 0.3812865741 | I196: =$E$210 -> 10 | J196: =H196*I196 -> 3.812865741 | K196: =$F$210 -> 2.66 | L196: =$K196/I196 -> 0.266 | M196: 1.014222287 | N196: =$G$210 -> 0.5 | O196: =$N196/I196 -> 0.05 | P196: 0.190643287
D197: >=50 | F197: 298.8166667 | G197: =$D$210 -> 0.8372093023 | H197: =F197*1/(G197*1000) -> 0.3569199074 | I197: =$E$210 -> 10 | J197: =H197*I197 -> 3.569199074 | K197: =$F$210 -> 2.66 | L197: =$K197/I197 -> 0.266 | M197: 0.9494069537 | N197: =$G$210 -> 0.5 | O197: =$N197/I197 -> 0.05 | P197: 0.1784599537
C198: Biodiesel | D198: <50 | F198: 373.0837602 | G198: =$D$211 -> 0.8918918919 | H198: =J198/I198 -> 0.4159489899 | I198: =$E$211 -> 9.166666667 | J198: =J196 -> 3.812865741 | K198: =$F$211 -> 0 | L198: =$K198/I198 -> 0 | M198: 0 | N198: =$G$211 -> 2.333333333 | O198: =$N198/I198 -> 0.2545454545 | P198: 0.9705476431
D199: >=50 | F199: 349.2413062 | G199: =$D$211 -> 0.8918918919 | H199: =J199/I199 -> 0.3893671717 | I199: =$E$211 -> 9.166666667 | J199: =J197 -> 3.569199074 | K199: =$F$211 -> 0 | L199: =$K199/I199 -> 0 | M199: 0 | N199: =$G$211 -> 2.333333333 | O199: =$N199/I199 -> 0.2545454545 | P199: 0.9085234007
C200: Electricity | D200: <50 | J200: 1.28 | L200: 0 | M200: 0 | O200: 0.123 | P200: 0.15744
D201: >=50 | J201: 1.28 | L201: 0 | M201: 0 | O201: 0.123 | P201: 0.15744
B202: Rail | C202: Electricity | D202: <50 | J202: 3.74529154
D203: >=50 | J203: 3.74529154 | L203: 0 | M203: =L203*$J203 -> 0 | O203: 0.123 | P203: =O203*$J203 -> 0.4606708594
D204: Kilde | E204: https://www.ssb.no/natur-og-miljo/artikler-og-publikasjoner/_attachment/225115?_ts=14ce05a5658 | F204: Universell enhet | G204: Utregnet | H204: Universell enhet | I204: http://publikasjoner.nve.no/rapport/2018/rapport2018_88.pdf | J204: Universell enhet, Miljødirektoratet
B207: Energiinnhold vekt [MJ/kg] | C207: Energiinhold volum [MJ/L] | D207: Massetetthet [kg/L] | E207: Energiinhold per volum [kWh/L] | F207: Utslipp forrenning [kgCO2e/L] | G207: Utslipp produksjon av drivstoff [kgCO2e/L] | H207: Utslipp [kgCO2e/kWh]
A208: Elektrisitet | H208: =LocalEnergySupplyData!D3/1000 -> 0.123
A209: Bensin | B209: 43 | C209: 32 | D209: =C209/B209 -> 0.7441860465 | E209: =C209/3.6 -> 8.888888889 | F209: 2.32 | G209: 0.6
A210: Diesel | B210: 43 | C210: 36 | D210: =C210/B210 -> 0.8372093023 | E210: =C210/3.6 -> 10 | F210: 2.66 | G210: 0.5
A211: Biodiesel | B211: 37 | C211: 33 | D211: =C211/B211 -> 0.8918918919 | E211: =C211/3.6 -> 9.166666667 | F211: 0 | G211: =0.14/0.03*G210 -> 2.333333333
A212: Ethanol | B212: 27 | C212: 21 | D212: =C212/B212 -> 0.7777777778 | E212: =C212/3.6 -> 5.833333333 | F212: 0 | G212: =0.12/0.045*G209 -> 1.6
A213: Kilde | B213: https://eur-lex.europa.eu/legal-content/EN/TXT/PDF/?uri=CELEX:32009L0028&from=EN | C213: https://eur-lex.europa.eu/legal-content/EN/TXT/PDF/?uri=CELEX:32009L0028&from=EN | D213: Utregnet | E213: Utregnet | F213: Lenger ned. Universalverdi | G213: Beregnet utifra NS3720

Sheet Test (hidden)
B1: Work | C1: Service | D1: Private errand | E1: Utside Service | F1: Goods transport | G1: Other | I1: Walk/bike | J1: Work | K1: Service | L1: Private errand | M1: Utside Service | N1: Goods transport | O1: Other | Q1: Walk/bike | R1: Work | S1: Service | T1: Private errand | U1: Utside Service | V1: Goods transport | W1: Other | Y1: Walk/bike | Z1: Work | AA1: Service | AB1: Private errand | AC1: Utside Service | AD1: Goods transport | AE1: Other | AG1: Walk/bike | AH1: Work | AI1: Service | AJ1: Private errand | AK1: Utside Service | AL1: Goods transport | AM1: Other | AO1: Walk/bike | AP1: Work | AQ1: Service | AR1: Private errand | AS1: Utside Service | AT1: Goods transport | AU1: Other
A2: Residential individual housing | B2: 0 | C2: 0 | D2: 0 | E2: 0 | F2: 0 | G2: 0 | J2: 0 | K2: 0 | L2: 0 | M2: 0 | N2: 0 | O2: 0 | Z2: 0 | AA2: 0 | AB2: 0 | AC2: 0 | AD2: 0 | AE2: 0 | AH2: 0 | AI2: 0 | AJ2: 0 | AK2: 0 | AL2: 0 | AM2: 0 | AP2: 0 | AQ2: 0 | AR2: 0 | AS2: 0 | AT2: 0 | AU2: 0 | AX2: 0 | AY2: 0 | AZ2: 0 | BA2: 0 | BB2: 0 | BC2: 0 | BF2: 0 | BG2: 0 | BH2: 0 | BI2: 0 | BJ2: 0 | BK2: 0 | BN2: 0 | BO2: 0 | BP2: 0 | BQ2: 0 | BR2: 0 | BS2: 0 | BV2: 0 | CD2: 0
A3: Residential apartment building | B3: 2489.6 | C3: 311.2 | D3: 3112 | E3: 5290.4 | F3: 311.2 | G3: 0 | J3: 497.92 | K3: 52.904 | L3: 1431.52 | M3: 899.368 | N3: 0 | O3: 0 | Z3: 497.92 | AA3: 52.904 | AB3: 1431.52 | AC3: 899.368 | AD3: 0 | AE3: 0 | AH3: 0 | AI3: 0 | AJ3: 0 | AK3: 0 | AL3: 0 | AM3: 0 | AP3: 0 | AQ3: 0 | AR3: 0 | AS3: 0 | AT3: 0 | AU3: 0 | AX3: 0 | AY3: 0 | AZ3: 0 | BA3: 0 | BB3: 0 | BC3: 0 | BF3: 0 | BG3: 0 | BH3: 0 | BI3: 0 | BJ3: 0 | BK3: 0 | BN3: 0 | BO3: 0 | BP3: 0 | BQ3: 0 | BR3: 0 | BS3: 0 | BV3: 44419539.97 | CD3: 361134.4713
A4: Office building | B4: 816 | C4: 306 | D4: 102 | E4: 51 | F4: 102 | G4: 729.3 | J4: 122.4 | K4: 52.02 | L4: 46.92 | M4: 8.67 | N4: 0 | O4: 313.599 | Z4: 122.4 | AA4: 52.02 | AB4: 46.92 | AC4: 8.67 | AD4: 0 | AE4: 313.599 | AH4: 0 | AI4: 0 | AJ4: 0 | AK4: 0 | AL4: 0 | AM4: 0 | AP4: 0 | AQ4: 0 | AR4: 0 | AS4: 0 | AT4: 0 | AU4: 0 | AX4: 0 | AY4: 0 | AZ4: 0 | BA4: 0 | BB4: 0 | BC4: 0 | BF4: 0 | BG4: 0 | BH4: 0 | BI4: 0 | BJ4: 0 | BK4: 0 | BN4: 0 | BO4: 0 | BP4: 0 | BQ4: 0 | BR4: 0 | BS4: 0 | BV4: 3835542138 | CD4: 11977715.15
A5: Kindergarten | B5: 73.6 | C5: 27.6 | D5: 9.2 | E5: 4.6 | F5: 9.2 | G5: 237 | J5: 11.04 | K5: 4.692 | L5: 4.232 | M5: 0.782 | N5: 0 | O5: 101.91 | Z5: 11.04 | AA5: 4.692 | AB5: 4.232 | AC5: 0.782 | AD5: 0 | AE5: 101.91 | AH5: 0 | AI5: 0 | AJ5: 0 | AK5: 0 | AL5: 0 | AM5: 0 | AP5: 0 | AQ5: 0 | AR5: 0 | AS5: 0 | AT5: 0 | AU5: 0 | AX5: 0 | AY5: 0 | AZ5: 0 | BA5: 0 | BB5: 0 | BC5: 0 | BF5: 0 | BG5: 0 | BH5: 0 | BI5: 0 | BJ5: 0 | BK5: 0 | BN5: 0 | BO5: 0 | BP5: 0 | BQ5: 0 | BR5: 0 | BS5: 0 | BV5: 34507622.97 | CD5: 280549.7803
A6: School | B6: 160 | C6: 60 | D6: 20 | E6: 10 | F6: 20 | G6: 614.2 | J6: 24 | K6: 10.2 | L6: 9.2 | M6: 1.7 | N6: 0 | O6: 264.106 | Z6: 24 | AA6: 10.2 | AB6: 9.2 | AC6: 1.7 | AD6: 0 | AE6: 264.106 | AH6: 0 | AI6: 0 | AJ6: 0 | AK6: 0 | AL6: 0 | AM6: 0 | AP6: 0 | AQ6: 0 | AR6: 0 | AS6: 0 | AT6: 0 | AU6: 0 | AX6: 0 | AY6: 0 | AZ6: 0 | BA6: 0 | BB6: 0 | BC6: 0 | BF6: 0 | BG6: 0 | BH6: 0 | BI6: 0 | BJ6: 0 | BK6: 0 | BN6: 0 | BO6: 0 | BP6: 0 | BQ6: 0 | BR6: 0 | BS6: 0 | BV6: 2499359941 | CD6: 3407491.78
A7: University/Collage | B7: 0 | C7: 0 | D7: 0 | E7: 0 | F7: 0 | G7: 0 | J7: 0 | K7: 0 | L7: 0 | M7: 0 | N7: 0 | O7: 0 | Z7: 0 | AA7: 0 | AB7: 0 | AC7: 0 | AD7: 0 | AE7: 0 | AH7: 0 | AI7: 0 | AJ7: 0 | AK7: 0 | AL7: 0 | AM7: 0 | AP7: 0 | AQ7: 0 | AR7: 0 | AS7: 0 | AT7: 0 | AU7: 0 | AX7: 0 | AY7: 0 | AZ7: 0 | BA7: 0 | BB7: 0 | BC7: 0 | BF7: 0 | BG7: 0 | BH7: 0 | BI7: 0 | BJ7: 0 | BK7: 0 | BN7: 0 | BO7: 0 | BP7: 0 | BQ7: 0 | BR7: 0 | BS7: 0 | BV7: 14243833.51 | CD7: 115803.5245
A8: Hospital | B8: 0 | C8: 0 | D8: 0 | E8: 0 | F8: 0 | G8: 0 | J8: 0 | K8: 0 | L8: 0 | M8: 0 | N8: 0 | O8: 0 | Z8: 0 | AA8: 0 | AB8: 0 | AC8: 0 | AD8: 0 | AE8: 0 | AH8: 0 | AI8: 0 | AJ8: 0 | AK8: 0 | AL8: 0 | AM8: 0 | AP8: 0 | AQ8: 0 | AR8: 0 | AS8: 0 | AT8: 0 | AU8: 0 | AX8: 0 | AY8: 0 | AZ8: 0 | BA8: 0 | BB8: 0 | BC8: 0 | BF8: 0 | BG8: 0 | BH8: 0 | BI8: 0 | BJ8: 0 | BK8: 0 | BN8: 0 | BO8: 0 | BP8: 0 | BQ8: 0 | BR8: 0 | BS8: 0 | BV8: 410759057.9 | CD8: 1299870.437
A9: Nursing home | B9: 334.4 | C9: 125.4 | D9: 41.8 | E9: 20.9 | F9: 41.8 | G9: 370 | J9: 50.16 | K9: 21.318 | L9: 19.228 | M9: 3.553 | N9: 0 | O9: 159.1 | Z9: 50.16 | AA9: 21.318 | AB9: 19.228 | AC9: 3.553 | AD9: 0 | AE9: 159.1 | AH9: 0 | AI9: 0 | AJ9: 0 | AK9: 0 | AL9: 0 | AM9: 0 | AP9: 0 | AQ9: 0 | AR9: 0 | AS9: 0 | AT9: 0 | AU9: 0 | AX9: 0 | AY9: 0 | AZ9: 0 | BA9: 0 | BB9: 0 | BC9: 0 | BF9: 0 | BG9: 0 | BH9: 0 | BI9: 0 | BJ9: 0 | BK9: 0 | BN9: 0 | BO9: 0 | BP9: 0 | BQ9: 0 | BR9: 0 | BS9: 0
A10: Hotel | B10: 0 | C10: 0 | D10: 0 | E10: 0 | F10: 0 | G10: 0 | J10: 0 | K10: 0 | L10: 0 | M10: 0 | N10: 0 | O10: 0 | Z10: 0 | AA10: 0 | AB10: 0 | AC10: 0 | AD10: 0 | AE10: 0 | AH10: 0 | AI10: 0 | AJ10: 0 | AK10: 0 | AL10: 0 | AM10: 0 | AP10: 0 | AQ10: 0 | AR10: 0 | AS10: 0 | AT10: 0 | AU10: 0 | AX10: 0 | AY10: 0 | AZ10: 0 | BA10: 0 | BB10: 0 | BC10: 0 | BF10: 0 | BG10: 0 | BH10: 0 | BI10: 0 | BJ10: 0 | BK10: 0 | BN10: 0 | BO10: 0 | BP10: 0 | BQ10: 0 | BR10: 0 | BS10: 0
A11: Sports Facility | B11: 40 | C11: 15 | D11: 5 | E11: 2.5 | F11: 5 | G11: 0 | J11: 6 | K11: 2.55 | L11: 2.3 | M11: 0.425 | N11: 0 | O11: 0 | Z11: 6 | AA11: 2.55 | AB11: 2.3 | AC11: 0.425 | AD11: 0 | AE11: 0 | AH11: 0 | AI11: 0 | AJ11: 0 | AK11: 0 | AL11: 0 | AM11: 0 | AP11: 0 | AQ11: 0 | AR11: 0 | AS11: 0 | AT11: 0 | AU11: 0 | AX11: 0 | AY11: 0 | AZ11: 0 | BA11: 0 | BB11: 0 | BC11: 0 | BF11: 0 | BG11: 0 | BH11: 0 | BI11: 0 | BJ11: 0 | BK11: 0 | BN11: 0 | BO11: 0 | BP11: 0 | BQ11: 0 | BR11: 0 | BS11: 0
A12: Comercial building | B12: 432 | C12: 54 | D12: 27 | E12: 27 | F12: 270 | G12: 8250 | J12: 86.4 | K12: 9.18 | L12: 12.42 | M12: 4.59 | N12: 0 | O12: 3630 | Z12: 86.4 | AA12: 9.18 | AB12: 12.42 | AC12: 4.59 | AD12: 0 | AE12: 3630 | AH12: 0 | AI12: 0 | AJ12: 0 | AK12: 0 | AL12: 0 | AM12: 0 | AP12: 0 | AQ12: 0 | AR12: 0 | AS12: 0 | AT12: 0 | AU12: 0 | AX12: 0 | AY12: 0 | AZ12: 0 | BA12: 0 | BB12: 0 | BC12: 0 | BF12: 0 | BG12: 0 | BH12: 0 | BI12: 0 | BJ12: 0 | BK12: 0 | BN12: 0 | BO12: 0 | BP12: 0 | BQ12: 0 | BR12: 0 | BS12: 0
A13: Cultural building | B13: 48 | C13: 18 | D13: 6 | E13: 3 | F13: 6 | G13: 4207.5 | J13: 9.6 | K13: 3.06 | L13: 2.76 | M13: 0.51 | N13: 0 | O13: 1851.3 | Z13: 9.6 | AA13: 3.06 | AB13: 2.76 | AC13: 0.51 | AD13: 0 | AE13: 1851.3 | AH13: 0 | AI13: 0 | AJ13: 0 | AK13: 0 | AL13: 0 | AM13: 0 | AP13: 0 | AQ13: 0 | AR13: 0 | AS13: 0 | AT13: 0 | AU13: 0 | AX13: 0 | AY13: 0 | AZ13: 0 | BA13: 0 | BB13: 0 | BC13: 0 | BF13: 0 | BG13: 0 | BH13: 0 | BI13: 0 | BJ13: 0 | BK13: 0 | BN13: 0 | BO13: 0 | BP13: 0 | BQ13: 0 | BR13: 0 | BS13: 0
A14: Industry/Workshop | B14: 288 | C14: 36 | D14: 18 | E14: 18 | F14: 180 | G14: 0 | J14: 43.2 | K14: 6.12 | L14: 8.28 | M14: 3.06 | N14: 0 | O14: 0 | Z14: 43.2 | AA14: 6.12 | AB14: 8.28 | AC14: 3.06 | AD14: 0 | AE14: 0 | AH14: 0 | AI14: 0 | AJ14: 0 | AK14: 0 | AL14: 0 | AM14: 0 | AP14: 0 | AQ14: 0 | AR14: 0 | AS14: 0 | AT14: 0 | AU14: 0 | AX14: 0 | AY14: 0 | AZ14: 0 | BA14: 0 | BB14: 0 | BC14: 0 | BF14: 0 | BG14: 0 | BH14: 0 | BI14: 0 | BJ14: 0 | BK14: 0 | BN14: 0 | BO14: 0 | BP14: 0 | BQ14: 0 | BR14: 0 | BS14: 0
I16: Public | J16: 0 | K16: 0 | L16: 0 | M16: 0 | N16: 0 | O16: 0 | Q16: Public | Y16: Public | Z16: 0 | AA16: 0 | AB16: 0 | AC16: 0 | AD16: 0 | AE16: 0 | AG16: Bus | AH16: 0 | AI16: 0 | AJ16: 0 | AK16: 0 | AL16: 0 | AM16: 0 | AO16: Bus | AP16: 0 | AQ16: 0 | AR16: 0 | AS16: 0 | AT16: 0 | AU16: 0 | AX16: 0 | AY16: 0 | AZ16: 0 | BA16: 0 | BB16: 0 | BC16: 0 | BF16: 0 | BG16: 0 | BH16: 0 | BI16: 0 | BJ16: 0 | BK16: 0 | BN16: 0 | BO16: 0 | BP16: 0 | BQ16: 0 | BR16: 0 | BS16: 0
J17: 1244.8 | K17: 87.136 | L17: 684.64 | M17: 1481.312 | N17: 0 | O17: 0 | Z17: 1244.8 | AA17: 87.136 | AB17: 684.64 | AC17: 1481.312 | AD17: 0 | AE17: 0 | AH17: 58763.42643 | AI17: 4113.43985 | AJ17: 32319.88454 | AK17: 69928.47745 | AL17: 0 | AM17: 0 | AP17: 62610880.49 | AQ17: 4382761.634 | AR17: 34435984.27 | AS17: 74506947.78 | AT17: 0 | AU17: 0 | AX17: 7521.718583 | AY17: 526.5203008 | AZ17: 4136.945221 | BA17: 8950.845114 | BB17: 0 | BC17: 0 | BF17: 195207.9402 | BG17: 13664.55581 | BH17: 107364.3671 | BI17: 232297.4488 | BJ17: 0 | BK17: 0 | BN17: 202729.6588 | BO17: 14191.07611 | BP17: 111501.3123 | BQ17: 241248.2939 | BR17: 0 | BS17: 0
J18: 301.92 | K18: 85.68 | L18: 22.44 | M18: 14.28 | N18: 0 | O18: 182.325 | Z18: 301.92 | AA18: 85.68 | AB18: 22.44 | AC18: 14.28 | AD18: 0 | AE18: 182.325 | AH18: 14252.77451 | AI18: 4044.706279 | AJ18: 1059.327835 | AK18: 674.1177132 | AL18: 0 | AM18: 8607.03866 | AP18: 15185955.2 | AQ18: 4309527.828 | AR18: 1128685.86 | AS18: 718254.638 | AT18: 0 | AU18: 9170572.61 | AX18: 1824.355137 | AY18: 517.7224037 | AZ18: 135.5939629 | BA18: 86.28706729 | BB18: 0 | BC18: 1101.700948 | BF18: 47346.70734 | BG18: 13436.22776 | BH18: 3519.012032 | BI18: 2239.371293 | BJ18: 0 | BK18: 28591.97276 | BN18: 49171.06248 | BO18: 13953.95016 | BP18: 3654.605995 | BQ18: 2325.658361 | BR18: 0 | BS18: 29693.67371
J19: 27.232 | K19: 7.728 | L19: 2.024 | M19: 1.288 | N19: 0 | O19: 59.25 | Z19: 27.232 | AA19: 7.728 | AB19: 2.024 | AC19: 1.288 | AD19: 0 | AE19: 59.25 | AH19: 1285.544367 | AI19: 364.8166448 | AJ19: 95.54721649 | AK19: 60.80277413 | AL19: 0 | AM19: 2797.022024 | AP19: 1369713.607 | AQ19: 388702.51 | AR19: 101803.0383 | AS19: 64783.75166 | AT19: 0 | AU19: 2980153.172 | AX19: 164.549679 | AY19: 46.69653053 | AZ19: 12.23004371 | BA19: 7.782755089 | BB19: 0 | BC19: 358.0188191 | BF19: 4270.487329 | BG19: 1211.895053 | BH19: 317.4010853 | BI19: 201.9825088 | BJ19: 0 | BK19: 9291.509043 | BN19: 4435.037008 | BO19: 1258.591583 | BP19: 329.631129 | BQ19: 209.7652639 | BR19: 0 | BS19: 9649.527862
J20: 59.2 | K20: 16.8 | L20: 4.4 | M20: 2.8 | N20: 0 | O20: 153.55 | Z20: 59.2 | AA20: 16.8 | AB20: 4.4 | AC20: 2.8 | AD20: 0 | AE20: 153.55 | AH20: 2794.661668 | AI20: 793.0796626 | AJ20: 207.7113402 | AK20: 132.1799438 | AL20: 0 | AM20: 7248.653702 | AP20: 2977638.275 | AQ20: 845005.4564 | AR20: 221310.9529 | AS20: 140834.2427 | AT20: 0 | AU20: 7723249.276 | AX20: 357.7166935 | AY20: 101.5141968 | AZ20: 26.58705155 | BA20: 16.9190328 | BB20: 0 | BC20: 927.8276739 | BF20: 9283.668107 | BG20: 2634.554463 | BH20: 690.0023593 | BI20: 439.0924104 | BJ20: 0 | BK20: 24079.51415 | BN20: 9641.3848 | BO20: 2736.06866 | BP20: 716.5894108 | BQ20: 456.0114433 | BR20: 0 | BS20: 25007.34183
J21: 0 | K21: 0 | L21: 0 | M21: 0 | N21: 0 | O21: 0 | Z21: 0 | AA21: 0 | AB21: 0 | AC21: 0 | AD21: 0 | AE21: 0 | AH21: 0 | AI21: 0 | AJ21: 0 | AK21: 0 | AL21: 0 | AM21: 0 | AP21: 0 | AQ21: 0 | AR21: 0 | AS21: 0 | AT21: 0 | AU21: 0 | AX21: 0 | AY21: 0 | AZ21: 0 | BA21: 0 | BB21: 0 | BC21: 0 | BF21: 0 | BG21: 0 | BH21: 0 | BI21: 0 | BJ21: 0 | BK21: 0 | BN21: 0 | BO21: 0 | BP21: 0 | BQ21: 0 | BR21: 0 | BS21: 0
J22: 0 | K22: 0 | L22: 0 | M22: 0 | N22: 0 | O22: 0 | Z22: 0 | AA22: 0 | AB22: 0 | AC22: 0 | AD22: 0 | AE22: 0 | AH22: 0 | AI22: 0 | AJ22: 0 | AK22: 0 | AL22: 0 | AM22: 0 | AP22: 0 | AQ22: 0 | AR22: 0 | AS22: 0 | AT22: 0 | AU22: 0 | AX22: 0 | AY22: 0 | AZ22: 0 | BA22: 0 | BB22: 0 | BC22: 0 | BF22: 0 | BG22: 0 | BH22: 0 | BI22: 0 | BJ22: 0 | BK22: 0 | BN22: 0 | BO22: 0 | BP22: 0 | BQ22: 0 | BR22: 0 | BS22: 0
J23: 123.728 | K23: 35.112 | L23: 9.196 | M23: 5.852 | N23: 0 | O23: 92.5 | Z23: 123.728 | AA23: 35.112 | AB23: 9.196 | AC23: 5.852 | AD23: 0 | AE23: 92.5 | AH23: 5840.842887 | AI23: 1657.536495 | AJ23: 434.116701 | AK23: 276.2560825 | AL23: 0 | AM23: 4366.658857 | AP23: 6223263.995 | AQ23: 1766061.404 | AR23: 462539.8915 | AS23: 294343.5673 | AT23: 0 | AU23: 4652559.805 | AX23: 747.6278895 | AY23: 212.1646713 | AZ23: 55.56693773 | BA23: 35.36077856 | BB23: 0 | BC23: 558.9323336 | BF23: 19402.86634 | BG23: 5506.218827 | BH23: 1442.104931 | BI23: 917.7031378 | BJ23: 0 | BK23: 14505.73142 | BN23: 20150.49423 | BO23: 5718.383498 | BP23: 1497.671869 | BQ23: 953.0639164 | BR23: 0 | BS23: 15064.66375
J24: 0 | K24: 0 | L24: 0 | M24: 0 | N24: 0 | O24: 0 | Z24: 0 | AA24: 0 | AB24: 0 | AC24: 0 | AD24: 0 | AE24: 0 | AH24: 0 | AI24: 0 | AJ24: 0 | AK24: 0 | AL24: 0 | AM24: 0 | AP24: 0 | AQ24: 0 | AR24: 0 | AS24: 0 | AT24: 0 | AU24: 0 | AX24: 0 | AY24: 0 | AZ24: 0 | BA24: 0 | BB24: 0 | BC24: 0 | BF24: 0 | BG24: 0 | BH24: 0 | BI24: 0 | BJ24: 0 | BK24: 0 | BN24: 0 | BO24: 0 | BP24: 0 | BQ24: 0 | BR24: 0 | BS24: 0
J25: 14.8 | K25: 4.2 | L25: 1.1 | M25: 0.7 | N25: 0 | O25: 0 | Z25: 14.8 | AA25: 4.2 | AB25: 1.1 | AC25: 0.7 | AD25: 0 | AE25: 0 | AH25: 698.6654171 | AI25: 198.2699157 | AJ25: 51.92783505 | AK25: 33.04498594 | AL25: 0 | AM25: 0 | AP25: 744409.5688 | AQ25: 211251.3641 | AR25: 55327.73822 | AS25: 35208.56068 | AT25: 0 | AU25: 0 | AX25: 89.42917338 | AY25: 25.3785492 | AZ25: 6.646762887 | BA25: 4.229758201 | BB25: 0 | BC25: 0 | BF25: 2320.917027 | BG25: 658.6386157 | BH25: 172.5005898 | BI25: 109.7731026 | BJ25: 0 | BK25: 0 | BN25: 2410.3462 | BO25: 684.0171649 | BP25: 179.1473527 | BQ25: 114.0028608 | BR25: 0 | BS25: 0
J26: 216 | K26: 15.12 | L26: 5.94 | M26: 7.56 | N26: 0 | O26: 2310 | Z26: 216 | AA26: 15.12 | AB26: 5.94 | AC26: 7.56 | AD26: 0 | AE26: 2310 | AH26: 10196.73852 | AI26: 713.7716963 | AJ26: 280.4103093 | AK26: 356.8858482 | AL26: 0 | AM26: 109048.4536 | AP26: 10864355.87 | AQ26: 760504.9108 | AR26: 298769.7864 | AS26: 380252.4554 | AT26: 0 | AU26: 116188250.3 | AX26: 1305.18253 | AY26: 91.36277713 | AZ26: 35.89251959 | BA26: 45.68138857 | BB26: 0 | BC26: 13958.20206 | BF26: 33872.84309 | BG26: 2371.099016 | BH26: 931.503185 | BI26: 1185.549508 | BJ26: 0 | BK26: 362251.2386 | BN26: 35178.02562 | BO26: 2462.461794 | BP26: 967.3957046 | BQ26: 1231.230897 | BR26: 0 | BS26: 376209.4407
J27: 24 | K27: 5.04 | L27: 1.32 | M27: 0.84 | N27: 0 | O27: 1178.1 | Z27: 24 | AA27: 5.04 | AB27: 1.32 | AC27: 0.84 | AD27: 0 | AE27: 1178.1 | AH27: 1132.970947 | AI27: 237.9238988 | AJ27: 62.31340206 | AK27: 39.65398313 | AL27: 0 | AM27: 55614.71134 | AP27: 1207150.652 | AQ27: 253501.6369 | AR27: 66393.28586 | AS27: 42250.27282 | AT27: 0 | AU27: 59256007.63 | AX27: 145.0202812 | AY27: 30.45425904 | AZ27: 7.976115464 | BA27: 5.075709841 | BB27: 0 | BC27: 7118.683052 | BF27: 3763.649232 | BG27: 790.3663388 | BH27: 207.0007078 | BI27: 131.7277231 | BJ27: 0 | BK27: 184748.1317 | BN27: 3908.669514 | BO27: 820.8205979 | BP27: 214.9768232 | BQ27: 136.803433 | BR27: 0 | BS27: 191866.8147
J28: 106.56 | K28: 10.08 | L28: 3.96 | M28: 5.04 | N28: 0 | O28: 0 | Z28: 106.56 | AA28: 10.08 | AB28: 3.96 | AC28: 5.04 | AD28: 0 | AE28: 0 | AH28: 5030.391003 | AI28: 475.8477976 | AJ28: 186.9402062 | AK28: 237.9238988 | AL28: 0 | AM28: 0 | AP28: 5359748.895 | AQ28: 507003.2739 | AR28: 199179.8576 | AS28: 253501.6369 | AT28: 0 | AU28: 0 | AX28: 643.8900484 | AY28: 60.90851809 | AZ28: 23.92834639 | BA28: 30.45425904 | BB28: 0 | BC28: 0 | BF28: 16710.60259 | BG28: 1580.732678 | BH28: 621.0021234 | BI28: 790.3663388 | BJ28: 0 | BK28: 0 | BN28: 17354.49264 | BO28: 1641.641196 | BP28: 644.9304697 | BQ28: 820.8205979 | BR28: 0 | BS28: 0
I30: Car | J30: 0 | K30: 0 | L30: 0 | M30: 0 | N30: 0 | O30: 0 | Q30: Car | Y30: Car | Z30: 0 | AA30: 0 | AB30: 0 | AC30: 0 | AD30: 0 | AE30: 0 | AG30: Rail | AH30: 0 | AI30: 0 | AJ30: 0 | AK30: 0 | AL30: 0 | AM30: 0 | AO30: Rail | AP30: 0 | AQ30: 0 | AR30: 0 | AS30: 0 | AT30: 0 | AU30: 0 | AX30: 0 | AY30: 0 | AZ30: 0 | BA30: 0 | BB30: 0 | BC30: 0 | BF30: 0 | BG30: 0 | BH30: 0 | BI30: 0 | BJ30: 0 | BK30: 0 | BN30: 0 | BO30: 0 | BP30: 0 | BQ30: 0 | BR30: 0 | BS30: 0
J31: 746.88 | K31: 171.16 | L31: 995.84 | M31: 2909.72 | N31: 311.2 | O31: 0 | Z31: 746.88 | AA31: 171.16 | AB31: 995.84 | AC31: 2909.72 | AD31: 311.2 | AE31: 0 | AH31: 88145.13964 | AI31: 6170.159775 | AJ31: 48479.8268 | AK31: 104892.7162 | AL31: 0 | AM31: 0 | AP31: 303489629.1 | AQ31: 21244274.04 | AR31: 166919296 | AS31: 361152658.6 | AT31: 0 | AU31: 0 | AX31: 33012.92458 | AY31: 2310.90472 | AZ31: 18157.10852 | BA31: 39285.38025 | BB31: 0 | BC31: 0 | BF31: 297116.3212 | BG31: 20798.14248 | BH31: 163413.9767 | BI31: 353568.4222 | BJ31: 0 | BK31: 0 | BN31: 330129.2458 | BO31: 23109.0472 | BP31: 181571.0852 | BQ31: 392853.8025 | BR31: 0 | BS31: 0
J32: 391.68 | K32: 168.3 | L32: 32.64 | M32: 28.05 | N32: 102 | O32: 233.376 | R32: 391.68 | W32: 233.376 | Z32: 391.68 | AA32: 168.3 | AB32: 32.64 | AC32: 28.05 | AD32: 102 | AE32: 233.376 | AH32: 21379.16176 | AI32: 6067.059419 | AJ32: 1588.991753 | AK32: 1011.17657 | AL32: 0 | AM32: 12910.55799 | AP32: 73609888.19 | AQ32: 20889292.59 | AR32: 5471005.203 | AS32: 3481548.766 | AT32: 0 | AU32: 44451917.28 | AX32: 8007.119367 | AY32: 2272.290631 | AZ32: 595.1237368 | BA32: 378.7151052 | BB32: 0 | BC32: 4835.380361 | BF32: 72064.07431 | BG32: 20450.61568 | BH32: 5356.113631 | BI32: 3408.435947 | BJ32: 0 | BK32: 43518.42325 | BN32: 80071.19367 | BO32: 22722.90631 | BP32: 5951.237368 | BQ32: 3787.151052 | BR32: 0 | BS32: 48353.80361
J33: 35.328 | K33: 15.18 | L33: 2.944 | M33: 2.53 | N33: 9.2 | O33: 75.84 | R33: 35.328 | W33: 75.84 | Z33: 35.328 | AA33: 15.18 | AB33: 2.944 | AC33: 2.53 | AD33: 9.2 | AE33: 75.84 | AH33: 1928.316551 | AI33: 547.2249672 | AJ33: 143.3208247 | AK33: 91.2041612 | AL33: 0 | AM33: 4195.533037 | AP33: 6639323.248 | AQ33: 1884132.273 | AR33: 493463.2144 | AS33: 314022.0455 | AT33: 0 | AU33: 14445501.71 | AX33: 722.2107665 | AY33: 204.951704 | AZ33: 53.67782724 | BA33: 34.15861733 | BB33: 0 | BC33: 1571.349439 | BF33: 6499.896898 | BG33: 1844.565336 | BH33: 483.1004451 | BI33: 307.427556 | BJ33: 0 | BK33: 14142.14495 | BN33: 7222.107665 | BO33: 2049.51704 | BP33: 536.7782724 | BQ33: 341.5861733 | BR33: 0 | BS33: 15713.49439
J34: 76.8 | K34: 33 | L34: 6.4 | M34: 5.5 | N34: 20 | O34: 196.544 | R34: 76.8 | W34: 196.544 | Z34: 76.8 | AA34: 33 | AB34: 6.4 | AC34: 5.5 | AD34: 20 | AE34: 196.544 | AH34: 4191.992502 | AI34: 1189.619494 | AJ34: 311.5670103 | AK34: 198.2699157 | AL34: 0 | AM34: 10872.98055 | AP34: 14433311.41 | AQ34: 4095939.724 | AR34: 1072746.118 | AS34: 682656.6207 | AT34: 0 | AU34: 37436401.47 | AX34: 1570.023405 | AY34: 445.5471826 | AZ34: 116.6909288 | BA34: 74.25786377 | BB34: 0 | BC34: 4072.248208 | BF34: 14130.21065 | BG34: 4009.924643 | BH34: 1050.218359 | BI34: 668.3207739 | BJ34: 0 | BK34: 36650.23387 | BN34: 15700.23405 | BO34: 4455.471826 | BP34: 1166.909288 | BQ34: 742.5786377 | BR34: 0 | BS34: 40722.48208
J35: 0 | K35: 0 | L35: 0 | M35: 0 | N35: 0 | O35: 0 | R35: 0 | W35: 0 | Z35: 0 | AA35: 0 | AB35: 0 | AC35: 0 | AD35: 0 | AE35: 0 | AH35: 0 | AI35: 0 | AJ35: 0 | AK35: 0 | AL35: 0 | AM35: 0 | AP35: 0 | AQ35: 0 | AR35: 0 | AS35: 0 | AT35: 0 | AU35: 0 | AX35: 0 | AY35: 0 | AZ35: 0 | BA35: 0 | BB35: 0 | BC35: 0 | BF35: 0 | BG35: 0 | BH35: 0 | BI35: 0 | BJ35: 0 | BK35: 0 | BN35: 0 | BO35: 0 | BP35: 0 | BQ35: 0 | BR35: 0 | BS35: 0
J36: 0 | K36: 0 | L36: 0 | M36: 0 | N36: 0 | O36: 0 | R36: 0 | W36: 0 | Z36: 0 | AA36: 0 | AB36: 0 | AC36: 0 | AD36: 0 | AE36: 0 | AH36: 0 | AI36: 0 | AJ36: 0 | AK36: 0 | AL36: 0 | AM36: 0 | AP36: 0 | AQ36: 0 | AR36: 0 | AS36: 0 | AT36: 0 | AU36: 0 | AX36: 0 | AY36: 0 | AZ36: 0 | BA36: 0 | BB36: 0 | BC36: 0 | BF36: 0 | BG36: 0 | BH36: 0 | BI36: 0 | BJ36: 0 | BK36: 0 | BN36: 0 | BO36: 0 | BP36: 0 | BQ36: 0 | BR36: 0 | BS36: 0
J37: 160.512 | K37: 68.97 | L37: 13.376 | M37: 11.495 | N37: 41.8 | O37: 118.4 | R37: 160.512 | W37: 118.4 | Z37: 160.512 | AA37: 68.97 | AB37: 13.376 | AC37: 11.495 | AD37: 41.8 | AE37: 118.4 | AH37: 8761.26433 | AI37: 2486.304742 | AJ37: 651.1750515 | AK37: 414.3841237 | AL37: 0 | AM37: 6549.988285 | AP37: 30165620.85 | AQ37: 8560514.024 | AR37: 2242039.387 | AS37: 1426752.337 | AT37: 0 | AU37: 22552049.08 | AX37: 3281.348917 | AY37: 931.1936117 | AZ37: 243.8840411 | BA37: 155.1989353 | BB37: 0 | BC37: 2453.161571 | BF37: 29532.14026 | BG37: 8380.742505 | BH37: 2194.95637 | BI37: 1396.790417 | BJ37: 0 | BK37: 22078.45414 | BN37: 32813.48917 | BO37: 9311.936117 | BP37: 2438.840411 | BQ37: 1551.989353 | BR37: 0 | BS37: 24531.61571
J38: 0 | K38: 0 | L38: 0 | M38: 0 | N38: 0 | O38: 0 | R38: 0 | W38: 0 | Z38: 0 | AA38: 0 | AB38: 0 | AC38: 0 | AD38: 0 | AE38: 0 | AH38: 0 | AI38: 0 | AJ38: 0 | AK38: 0 | AL38: 0 | AM38: 0 | AP38: 0 | AQ38: 0 | AR38: 0 | AS38: 0 | AT38: 0 | AU38: 0 | AX38: 0 | AY38: 0 | AZ38: 0 | BA38: 0 | BB38: 0 | BC38: 0 | BF38: 0 | BG38: 0 | BH38: 0 | BI38: 0 | BJ38: 0 | BK38: 0 | BN38: 0 | BO38: 0 | BP38: 0 | BQ38: 0 | BR38: 0 | BS38: 0
J39: 19.2 | K39: 8.25 | L39: 1.6 | M39: 1.375 | N39: 5 | O39: 0 | R39: 19.2 | W39: 0 | Z39: 19.2 | AA39: 8.25 | AB39: 1.6 | AC39: 1.375 | AD39: 5 | AE39: 0 | AH39: 1047.998126 | AI39: 297.4048735 | AJ39: 77.89175258 | AK39: 49.56747891 | AL39: 0 | AM39: 0 | AP39: 3608327.852 | AQ39: 1023984.931 | AR39: 268186.5296 | AS39: 170664.1552 | AT39: 0 | AU39: 0 | AX39: 392.5058513 | AY39: 111.3867957 | AZ39: 29.17273219 | BA39: 18.56446594 | BB39: 0 | BC39: 0 | BF39: 3532.552662 | BG39: 1002.481161 | BH39: 262.5545898 | BI39: 167.0801935 | BJ39: 0 | BK39: 0 | BN39: 3925.058513 | BO39: 1113.867957 | BP39: 291.7273219 | BQ39: 185.6446594 | BR39: 0 | BS39: 0
J40: 129.6 | K40: 29.7 | L40: 8.64 | M40: 14.85 | N40: 270 | O40: 2310 | R40: 129.6 | W40: 2310 | Z40: 129.6 | AA40: 29.7 | AB40: 8.64 | AC40: 14.85 | AD40: 270 | AE40: 2310 | AH40: 15295.10778 | AI40: 1070.657545 | AJ40: 420.6154639 | AK40: 535.3287723 | AL40: 0 | AM40: 163572.6804 | AP40: 52662082.17 | AQ40: 3686345.752 | AR40: 1448207.26 | AS40: 1843172.876 | AT40: 0 | AU40: 563191712.1 | AX40: 5728.463776 | AY40: 400.9924643 | AZ40: 157.5327539 | BA40: 200.4962322 | BB40: 0 | BC40: 61262.73761 | BF40: 51556.17399 | BG40: 3608.932179 | BH40: 1417.794785 | BI40: 1804.46609 | BJ40: 0 | BK40: 551364.6385 | BN40: 57284.63776 | BO40: 4009.924643 | BP40: 1575.327539 | BQ40: 2004.962322 | BR40: 0 | BS40: 612627.3761
J41: 14.4 | K41: 9.9 | L41: 1.92 | M41: 1.65 | N41: 6 | O41: 1178.1 | R41: 14.4 | W41: 1178.1 | Z41: 14.4 | AA41: 9.9 | AB41: 1.92 | AC41: 1.65 | AD41: 6 | AE41: 1178.1 | AH41: 1699.45642 | AI41: 356.8858482 | AJ41: 93.47010309 | AK41: 59.4809747 | AL41: 0 | AM41: 83422.06701 | AP41: 5851342.463 | AQ41: 1228781.917 | AR41: 321823.8355 | AS41: 204796.9862 | AT41: 0 | AU41: 287227773.2 | AX41: 636.4959752 | AY41: 133.6641548 | AZ41: 35.00727863 | BA41: 22.27735913 | BB41: 0 | BC41: 31243.99618 | BF41: 5728.463776 | BG41: 1202.977393 | BH41: 315.0655077 | BI41: 200.4962322 | BJ41: 0 | BK41: 281195.9656 | BN41: 6364.959752 | BO41: 1336.641548 | BP41: 350.0727863 | BQ41: 222.7735913 | BR41: 0 | BS41: 312439.9618
J42: 138.24 | K42: 19.8 | L42: 5.76 | M42: 9.9 | N42: 180 | O42: 0 | R42: 138.24 | W42: 0 | Z42: 138.24 | AA42: 19.8 | AB42: 5.76 | AC42: 9.9 | AD42: 180 | AE42: 0 | AH42: 7545.586504 | AI42: 713.7716963 | AJ42: 280.4103093 | AK42: 356.8858482 | AL42: 0 | AM42: 0 | AP42: 25979960.54 | AQ42: 2457563.835 | AR42: 965471.5064 | AS42: 1228781.917 | AT42: 0 | AU42: 0 | AX42: 2826.04213 | AY42: 267.3283096 | AZ42: 105.0218359 | BA42: 133.6641548 | BB42: 0 | BC42: 0 | BF42: 25434.37917 | BG42: 2405.954786 | BH42: 945.1965231 | BI42: 1202.977393 | BJ42: 0 | BK42: 0 | BN42: 28260.4213 | BO42: 2673.283096 | BP42: 1050.218359 | BQ42: 1336.641548 | BR42: 0 | BS42: 0
AH44: 0 | AI44: 0 | AJ44: 0 | AK44: 0 | AL44: 0 | AM44: 0 | AP44: 0 | AQ44: 0 | AR44: 0 | AS44: 0 | AT44: 0 | AU44: 0 | AX44: 0 | AY44: 0 | AZ44: 0 | BA44: 0 | BB44: 0 | BC44: 0 | BF44: 0 | BG44: 0 | BH44: 0 | BI44: 0 | BJ44: 0 | BK44: 0 | BN44: 0 | BO44: 0 | BP44: 0 | BQ44: 0 | BR44: 0 | BS44: 0
AG45: Car | AH45: 1525097.622 | AI45: 349501.5385 | AJ45: 2033463.497 | AK45: 5941526.154 | AL45: 635457.3427 | AM45: 0 | AO45: Car | AP45: 278551214.6 | AQ45: 63834653.34 | AR45: 371401619.4 | AS45: 1085189107 | AT45: 139929009.5 | AU45: 0 | AX45: 25926.65958 | AY45: 5941.526154 | AZ45: 34568.87944 | BA45: 101005.9446 | BB45: 38127.44056 | BC45: 0 | BF45: 859907.2307 | BG45: 197062.0737 | BH45: 1146542.974 | BI45: 3350055.253 | BJ45: 427972.5771 | BK45: 0 | BN45: 885833.8902 | BO45: 203003.5998 | BP45: 1181111.854 | BQ45: 3451061.197 | BR45: 466100.0176 | BS45: 0
AH46: 799794.1259 | AI46: 343661.5385 | AJ46: 66649.51049 | AK46: 57276.92308 | AL46: 208279.7203 | AM46: 476544 | AP46: 146078271.9 | AQ46: 62768007.46 | AR46: 12173189.33 | AS46: 10461334.58 | AT46: 45863621.38 | AU46: 87038303.68 | AX46: 13596.50014 | AY46: 5842.246154 | AZ46: 1133.041678 | BA46: 973.7076923 | BB46: 12496.78322 | BC46: 8101.248 | BF46: 450953.9204 | BG46: 193769.2627 | BH46: 37579.49337 | BI46: 32294.87712 | BJ46: 140273.7881 | BK46: 268693.3776 | BN46: 464550.4206 | BO46: 199611.5088 | BP46: 38712.53505 | BQ46: 33268.58481 | BR46: 152770.5713 | BS46: 276794.6256
AH47: 72138.29371 | AI47: 30996.92308 | AJ47: 6011.524476 | AK47: 5166.153846 | AL47: 18786.01399 | AM47: 154862.0979 | AP47: 13175687.27 | AQ47: 5661428.124 | AR47: 1097973.939 | AS47: 943571.3539 | AT47: 4136718.791 | AU47: 28284763.43 | AX47: 1226.350993 | AY47: 526.9476923 | AZ47: 102.1959161 | BA47: 87.82461538 | BB47: 1127.160839 | BC47: 2632.655664 | BF47: 40674.27518 | BG47: 17477.22762 | BH47: 3389.522931 | BI47: 2912.871269 | BJ47: 12652.14559 | BK47: 87317.05813 | BN47: 41900.62617 | BO47: 18004.17531 | BP47: 3491.718848 | BQ47: 3000.695885 | BR47: 13779.30643 | BS47: 89949.71379
AH48: 156822.3776 | AI48: 67384.61538 | AJ48: 13068.53147 | AK48: 11230.76923 | AL48: 40839.16084 | AM48: 401334.6014 | AP48: 28642798.41 | AQ48: 12307452.44 | AR48: 2386899.868 | AS48: 2051242.074 | AT48: 8992866.937 | AU48: 73301694.94 | AX48: 2665.98042 | AY48: 1145.538462 | AZ48: 222.165035 | BA48: 190.9230769 | BB48: 2450.34965 | BC48: 6822.688224 | BF48: 88422.33734 | BG48: 37993.97308 | BH48: 7368.528112 | BI48: 6332.328846 | BJ48: 27504.66434 | BK48: 226287.4983 | BN48: 91088.31776 | BO48: 39139.51154 | BP48: 7590.693147 | BQ48: 6523.251923 | BR48: 29955.01399 | BS48: 233110.1865
AH49: 0 | AI49: 0 | AJ49: 0 | AK49: 0 | AL49: 0 | AM49: 0 | AP49: 0 | AQ49: 0 | AR49: 0 | AS49: 0 | AT49: 0 | AU49: 0 | AX49: 0 | AY49: 0 | AZ49: 0 | BA49: 0 | BB49: 0 | BC49: 0 | BF49: 0 | BG49: 0 | BH49: 0 | BI49: 0 | BJ49: 0 | BK49: 0 | BN49: 0 | BO49: 0 | BP49: 0 | BQ49: 0 | BR49: 0 | BS49: 0
AH50: 0 | AI50: 0 | AJ50: 0 | AK50: 0 | AL50: 0 | AM50: 0 | AP50: 0 | AQ50: 0 | AR50: 0 | AS50: 0 | AT50: 0 | AU50: 0 | AX50: 0 | AY50: 0 | AZ50: 0 | BA50: 0 | BB50: 0 | BC50: 0 | BF50: 0 | BG50: 0 | BH50: 0 | BI50: 0 | BJ50: 0 | BK50: 0 | BN50: 0 | BO50: 0 | BP50: 0 | BQ50: 0 | BR50: 0 | BS50: 0
AH51: 327758.7692 | AI51: 140833.8462 | AJ51: 27313.23077 | AK51: 23472.30769 | AL51: 85353.84615 | AM51: 241767.8322 | AP51: 59863448.68 | AQ51: 25722575.61 | AR51: 4988620.723 | AS51: 4287095.934 | AT51: 18795091.9 | AU51: 44157647.55 | AX51: 5571.899077 | AY51: 2394.175385 | AZ51: 464.3249231 | BA51: 399.0292308 | BB51: 5121.230769 | BC51: 4110.053147 | BF51: 184802.685 | BG51: 79407.40373 | BH51: 15400.22375 | BI51: 13234.56729 | BJ51: 57484.74846 | BK51: 136317.7701 | BN51: 190374.5841 | BO51: 81801.57912 | BP51: 15864.54868 | BQ51: 13633.59652 | BR51: 62605.97923 | BS51: 140427.8232
AH52: 0 | AI52: 0 | AJ52: 0 | AK52: 0 | AL52: 0 | AM52: 0 | AP52: 0 | AQ52: 0 | AR52: 0 | AS52: 0 | AT52: 0 | AU52: 0 | AX52: 0 | AY52: 0 | AZ52: 0 | BA52: 0 | BB52: 0 | BC52: 0 | BF52: 0 | BG52: 0 | BH52: 0 | BI52: 0 | BJ52: 0 | BK52: 0 | BN52: 0 | BO52: 0 | BP52: 0 | BQ52: 0 | BR52: 0 | BS52: 0
AH53: 39205.59441 | AI53: 16846.15385 | AJ53: 3267.132867 | AK53: 2807.692308 | AL53: 10209.79021 | AM53: 0 | AP53: 7160699.603 | AQ53: 3076863.111 | AR53: 596724.9669 | AS53: 512810.5184 | AT53: 2248216.734 | AU53: 0 | AX53: 666.4951049 | AY53: 286.3846154 | AZ53: 55.54125874 | BA53: 47.73076923 | BB53: 612.5874126 | BC53: 0 | BF53: 22105.58434 | BG53: 9498.493269 | BH53: 1842.132028 | BI53: 1583.082212 | BJ53: 6876.166084 | BK53: 0 | BN53: 22772.07944 | BO53: 9784.877885 | BP53: 1897.673287 | BQ53: 1630.812981 | BR53: 7488.753497 | BS53: 0
AH54: 264637.7622 | AI54: 60646.15385 | AJ54: 17642.51748 | AK54: 30323.07692 | AL54: 551328.6713 | AM54: 4716923.077 | AP54: 48334722.32 | AQ54: 11076707.2 | AR54: 3222314.821 | AS54: 5538353.599 | AT54: 121403703.7 | AU54: 861521671 | AX54: 4498.841958 | AY54: 1030.984615 | AZ54: 299.9227972 | BA54: 515.4923077 | BB54: 33079.72028 | BC54: 80187.69231 | BF54: 149212.6943 | BG54: 34194.57577 | BH54: 9947.512951 | BI54: 17097.28788 | BJ54: 371312.9685 | BK54: 2659578.115 | BN54: 153711.5362 | BO54: 35225.56038 | BP54: 10247.43575 | BQ54: 17612.78019 | BR54: 404392.6888 | BS54: 2739765.808
AH55: 29404.1958 | AI55: 20215.38462 | AJ55: 3920.559441 | AK55: 3369.230769 | AL55: 12251.74825 | AM55: 2405630.769 | AP55: 5370524.702 | AQ55: 3692235.733 | AR55: 716069.9603 | AS55: 615372.6221 | AT55: 2697860.081 | AU55: 439376052.2 | AX55: 499.8713287 | AY55: 343.6615385 | AZ55: 66.64951049 | BA55: 57.27692308 | BB55: 735.1048951 | BC55: 40895.72308 | BF55: 16579.18825 | BG55: 11398.19192 | BH55: 2210.558434 | BI55: 1899.698654 | BJ55: 8251.399301 | BK55: 1356384.839 | BN55: 17079.05958 | BO55: 11741.85346 | BP55: 2277.207944 | BQ55: 1956.975577 | BR55: 8986.504196 | BS55: 1397280.562
AH56: 282280.2797 | AI56: 40430.76923 | AJ56: 11761.67832 | AK56: 20215.38462 | AL56: 367552.4476 | AM56: 0 | AP56: 51557037.14 | AQ56: 7384471.466 | AR56: 2148209.881 | AS56: 3692235.733 | AT56: 80935802.43 | AU56: 0 | AX56: 4798.764755 | AY56: 687.3230769 | AZ56: 199.9485315 | BA56: 343.6615385 | BB56: 22053.14685 | BC56: 0 | BF56: 159160.2072 | BG56: 22796.38385 | BH56: 6631.675301 | BI56: 11398.19192 | BJ56: 247541.979 | BK56: 0 | BN56: 163958.972 | BO56: 23483.70692 | BP56: 6831.623832 | BQ56: 11741.85346 | BR56: 269595.1259 | BS56: 0

Sheet EnergyPerformanceData
A1: Building energy perfromance data [kWh/m2] | B1: =COUNTA(A2:A144) -> 143 | G1: Street Utilities Energy performance data | J1: Klimasone
A2: Residential individual housing | B2: Heating | C2: Hot Water | D2: Cooling | E2: Electric | G2: Outdoor lighting | H2: kWh/unit | J2: Klimasone | K2: DUT | L2: Mean T | M2: Heating days | N2: degree days | O2: Rel degree days
A3: Passivhouse | B3: 19.79375 | C3: 25 | D3: 0 | E3: 31.32875 | G3: High efficicency | H3: 160 | J3: 1. Sør-Norge, innland | K3: -21.4 | L3: 5.1 | M3: 250 | N3: 4051 | O3: 1
A4: Low energy | B4: 37.1875 | C4: 25 | D4: 0 | E4: 32.86 | G4: Low efficiency | H4: 550 | J4: 2. Sør-Norge, kyst | K4: -14.2 | L4: 7.1 | M4: 237 | N4: 3179 | O4: 0.78
A5: TEK 17 | B5: 51.963729 | C5: 25 | D5: 0 | E5: 33.036271 | G5: Manual | J5: 3. Sør-Norge, høyfjell | K5: -28.3 | L5: 2.3 | M5: 277 | N5: 5101 | O5: 1.26
A6: TEK 10 | B6: 68.2797 | C6: 25 | D6: 0 | E6: 36.7203 | G6: Snow Melting | H6: kWh/m2 | J6: 4. Midt-Norge, kyst | K6: -15.6 | L6: 5.4 | M6: 265 | N6: 3763 | O6: 0.93
A7: TEK 07 | B7: 68.2797 | C7: 25 | D7: 0 | E7: 36.7203 | G7: High efficicency | H7: 100 | J7: 5. Midt-Norge, innland | K7: -23.9 | L7: 3 | M7: 274 | N7: 4772 | O7: 1.18
A8: TEK 97 | B8: 76.5125 | C8: 25 | D8: 0 | E8: 29.4875 | G8: Low efficiency | H8: 350 | J8: 6. Nord-Norge, kyst | K8: -13.9 | L8: 3.8 | M8: 286 | N8: 4329 | O8: 1.07
A9: TEK 87 | B9: 88.5125 | C9: 25 | D9: 0 | E9: 29.4875 | G9: Manual | J9: 7. Finnmark og innland Troms | K9: -24.5 | L9: 0.7 | M9: 319 | N9: 5766 | O9: 1.42
A10: TEK 69 | B10: 98.5125 | C10: 25 | D10: 0 | E10: 29.4875
A11: TEK 49 | B11: 120.5125 | C11: 25 | D11: 0 | E11: 29.4875
A12: Older | B12: 193.5125 | C12: 25 | D12: 0 | E12: 29.4875
A13: Residential apartment building | B13: Heating | C13: Hot Water | D13: Cooling | E13: Electric
A14: Passivhouse | B14: 14.69777778 | C14: 25 | D14: 0 | E14: 32.23755556
A15: Low energy | B15: 29.61666667 | C15: 25 | D15: 0 | E15: 34.19422222
A16: TEK 17 | B16: 35.80577778 | C16: 25 | D16: 0 | E16: 34.19422222
A17: TEK 10 | B17: 51.77237778 | C17: 25 | D17: 0 | E17: 38.22762222
A18: TEK 07 | B18: 62.77237778 | C18: 25 | D18: 0 | E18: 38.22762222
A19: TEK 97 | B19: 76.51430556 | C19: 25 | D19: 0 | E19: 29.48569444
A20: TEK 87 | B20: 85.51430556 | C20: 25 | D20: 0 | E20: 29.48569444
A21: TEK 69 | B21: 92.51430556 | C21: 25 | D21: 0 | E21: 29.48569444
A22: TEK 49 | B22: 125.5143056 | C22: 25 | D22: 0 | E22: 29.48569444
A23: Older | B23: 202.5143056 | C23: 25 | D23: 0 | E23: 29.48569444
A24: Office building | B24: Heating | C24: Hot Water | D24: Cooling | E24: Electric
A25: Passivhouse | B25: 20 | C25: 5.011111111 | D25: 9.693611111 | E25: 58.48361111
A26: Low energy | B26: 20.51166667 | C26: 5.011111111 | D26: 9.693611111 | E26: 65.98361111
A27: TEK 17 | B27: 28.38924912 | C27: 5.011111111 | D27: 9.8 | E27: 67
A28: TEK 10 | B28: 42.37201361 | C28: 5.011111111 | D28: 18.8 | E28: 79.7
A29: TEK 07 | B29: 59.4 | C29: 5.011111111 | D29: 18.8 | E29: 83.4
A30: TEK 97 | B30: 78.3 | C30: 5.011111111 | D30: 20.8 | E30: 99.7
A31: TEK 87 | B31: 96.4 | C31: 5.011111111 | D31: 21.4 | E31: 105.3
A32: TEK 69 | B32: 162.6 | C32: 5.011111111 | D32: 11.4 | E32: 85.3
A33: TEK 49 | B33: 173.5 | C33: 5.011111111 | D33: 0 | E33: 69.9
A34: Older | B34: 188.7 | C34: 5.011111111 | D34: 0 | E34: 60.3
A35: Kindergarten | B35: Heating | C35: Hot Water | D35: Cooling | E35: Electric
A36: Passivhouse | B36: 30.68333333 | C36: 10.02333333 | D36: 0 | E36: 29.40666667
A37: Low energy | B37: 46.77 | C37: 10.02333333 | D37: 0 | E37: 33.20666667
A38: TEK 17 | B38: 83.87666667 | C38: 10.02333333 | D38: 0 | E38: 41.1
A39: TEK 10 | B39: 84.67666667 | C39: 10.02333333 | D39: 0 | E39: 45.3
A40: TEK 07 | B40: 100.6 | C40: 10.02333333 | D40: 0 | E40: 49.1
A41: TEK 97 | B41: 129.5 | C41: 10.02333333 | D41: 0 | E41: 66.1
A42: TEK 87 | B42: 163.2 | C42: 10.02333333 | D42: 0 | E42: 71.8
A43: TEK 69 | B43: 287 | C43: 10.02333333 | D43: 0 | E43: 54.4
A44: TEK 49 | B44: 339.6 | C44: 10.02333333 | D44: 0 | E44: 27.5
A45: Older | B45: 381.1 | C45: 10.02333333 | D45: 0 | E45: 27.5
A46: School | B46: Heating | C46: Hot Water | D46: Cooling | E46: Electric
A47: Passivhouse | B47: 20 | C47: 10 | D47: 0 | E47: 34.70708333
A48: Low energy | B48: 24.9 | C48: 10 | D48: 0 | E48: 42.5
A49: TEK 17 | B49: 45.48790597 | C49: 10 | D49: 0 | E49: 54.51209403
A50: TEK 10 | B50: 50.34835667 | C50: 10 | D50: 0 | E50: 59.65164333
A51: TEK 07 | B51: 73.4 | C51: 10 | D51: 0 | E51: 60.4
A52: TEK 97 | B52: 104.1 | C52: 10 | D52: 0 | E52: 79
A53: TEK 87 | B53: 127.2 | C53: 10 | D53: 0 | E53: 85
A54: TEK 69 | B54: 196.6 | C54: 10 | D54: 0 | E54: 59.6
A55: TEK 49 | B55: 208.3 | C55: 10 | D55: 0 | E55: 36.4
A56: Older | B56: 227.3 | C56: 10 | D56: 0 | E56: 36.4
A57: University/Collage | B57: Heating | C57: Hot Water | D57: Cooling | E57: Electric
A58: Passivhouse | B58: 20 | C58: 5.011111111 | D58: 10.15916667 | E58: 61.31305556
A59: Low energy | B59: 20.58888889 | C59: 5.011111111 | D59: 10.8 | E59: 68.8
A60: TEK 17 | B60: 27.27262854 | C60: 5.011111111 | D60: 19.2249 | E60: 73.49136035
A61: TEK 10 | B61: 43.01152472 | C61: 5.011111111 | D61: 23.445 | E61: 88.53236417
A62: TEK 07 | B62: 63.1 | C62: 5.011111111 | D62: 23.4 | E62: 89.2
A63: TEK 97 | B63: 83 | C63: 5.011111111 | D63: 25.8 | E63: 109.6
A64: TEK 87 | B64: 102.5 | C64: 5.011111111 | D64: 26.6 | E64: 116.3
A65: TEK 69 | B65: 174 | C65: 5.011111111 | D65: 15.1 | E65: 92.7
A66: TEK 49 | B66: 167.1 | C66: 5.011111111 | D66: 0 | E66: 60.2
A67: Older | B67: 182.2 | C67: 5.011111111 | D67: 0 | E67: 60.3
A68: Hospital | B68: Heating | C68: Hot Water | D68: Cooling | E68: Electric
A69: Passivhouse | B69: 20 | C69: 30 | D69: 17.12083333 | E69: 102.6769444
A70: Low energy | B70: 51.24555556 | C70: 30 | D70: 20.95444444 | E70: 115.4
A71: TEK 17 | B71: 76.24393458 | C71: 30 | D71: 30.77232222 | E71: 127.9837432
A72: TEK 10 | B72: 114.8460978 | C72: 30 | D72: 37.52722222 | E72: 152.62668
A73: TEK 07 | B73: 114.8 | C73: 30 | D73: 37.5 | E73: 152.3
A74: TEK 97 | B74: 136.4 | C74: 30 | D74: 42 | E74: 193.3
A75: TEK 87 | B75: 144.3 | C75: 30 | D75: 43.6 | E75: 206.8
A76: TEK 69 | B76: 181.4 | C76: 30 | D76: 19.6 | E76: 146.5
A77: TEK 49 | B77: 134.6 | C77: 30 | D77: 0 | E77: 95.1
A78: Older | B78: 149.3 | C78: 30 | D78: 0 | E78: 95.3
A79: Nursing home | B79: Heating | C79: Hot Water | D79: Cooling | E79: Electric
A80: Passivhouse | B80: 20 | C80: 30 | D80: 0 | E80: 75.41916667
A81: Low energy | B81: 30.3 | C81: 30 | D81: 0 | E81: 84.5
A82: TEK 17 | B82: 90.95335455 | C82: 30 | D82: 0 | E82: 109.0466454
A83: TEK 10 | B83: 99 | C83: 30 | D83: 0 | E83: 121
A84: TEK 07 | B84: 99 | C84: 30 | D84: 0 | E84: 118.7
A85: TEK 97 | B85: 132.7 | C85: 30 | D85: 0 | E85: 154.7
A86: TEK 87 | B86: 149.1 | C86: 30 | D86: 0 | E86: 166.7
A87: TEK 69 | B87: 177.1 | C87: 30 | D87: 0 | E87: 106.6
A88: TEK 49 | B88: 169.9 | C88: 30 | D88: 0 | E88: 71.3
A89: Older | B89: 188.5 | C89: 30 | D89: 0 | E89: 71.4
A90: Hotel | B90: Heating | C90: Hot Water | D90: Cooling | E90: Electric
A91: Passivhouse | B91: 25 | C91: 30 | D91: 9.96875 | E91: 42.36458333
A92: Low energy | B92: 35.3 | C92: 30 | D92: 11.9 | E92: 64.8
A93: TEK 17 | B93: 47.1021875 | C93: 30 | D93: 20.92845 | E93: 71.9693625
A94: TEK 10 | B94: 73.65168333 | C94: 30 | D94: 25.5225 | E94: 90.82581667
A95: TEK 07 | B95: 100.9 | C95: 30 | D95: 25.5 | E95: 101.4
A96: TEK 97 | B96: 130.3 | C96: 30 | D96: 28.6 | E96: 118.7
A97: TEK 87 | B97: 137.3 | C97: 30 | D97: 29.7 | E97: 127.5
A98: TEK 69 | B98: 194 | C98: 30 | D98: 14.9 | E98: 91.7
A99: TEK 49 | B99: 187.5 | C99: 30 | D99: 0 | E99: 54.3
A100: Older | B100: 206.3 | C100: 30 | D100: 0 | E100: 54.4
A101: Sports Facility | B101: Heating | C101: Hot Water | D101: Cooling | E101: Electric
A102: Passivhouse | B102: 20 | C102: 50 | D102: 0 | E102: 28.8271875 | F102: 101
A103: Low energy | B103: 45.9728125 | C103: 50 | D103: 0 | E103: 31.1271875
A104: TEK 17 | B104: 57.57140169 | C104: 50 | D104: 0 | E104: 37.42859831
A105: TEK 10 | B105: 73.8256625 | C105: 50 | D105: 0 | E105: 46.1743375
A106: TEK 07 | B106: 96.7 | C106: 50 | D106: 0 | E106: 46.9
A107: TEK 97 | B107: 141.2 | C107: 50 | D107: 0 | E107: 63.8
A108: TEK 87 | B108: 170.7 | C108: 50 | D108: 0 | E108: 69.5
A109: TEK 69 | B109: 301.5 | C109: 50 | D109: 0 | E109: 61
A110: TEK 49 | B110: 295.8 | C110: 50 | D110: 0 | E110: 25.4
A111: Older | B111: 326.3 | C111: 50 | D111: 0 | E111: 25.4
A112: Comercial building | B112: Heating | C112: Hot Water | D112: Cooling | E112: Electric
A113: Passivhouse | B113: 25 | C113: 10 | D113: 15.43833333 | E113: 55.6375
A114: Low energy | B114: 27 | C114: 10 | D114: 18.7 | E114: 76.7
A115: TEK 17 | B115: 51.52527156 | C115: 10 | D115: 29.89947778 | E115: 88.57525067
A116: TEK 10 | B116: 59.82815556 | C116: 10 | D116: 36.46277778 | E116: 103.7090667
A117: TEK 07 | B117: 117.5 | C117: 10 | D117: 40.8 | E117: 112.5
A118: TEK 97 | B118: 139.1 | C118: 10 | D118: 45 | E118: 148.7
A119: TEK 87 | B119: 140.6 | C119: 10 | D119: 46.4 | E119: 160.7
A120: TEK 69 | B120: 137.8 | C120: 10 | D120: 12.7 | E120: 89.1
A121: TEK 49 | B121: 141.9 | C121: 10 | D121: 0 | E121: 61.2
A122: Older | B122: 156.8 | C122: 10 | D122: 0 | E122: 61.3
A123: Cultural building | B123: Heating | C123: Hot Water | D123: Cooling | E123: Electric
A124: Passivhouse | B124: 25 | C124: 10.0225 | D124: 7.377916667 | E124: 32.74791667
A125: Low energy | B125: 35.04541667 | C125: 10.0225 | D125: 9.384166667 | E125: 33.94791667
A126: TEK 17 | B126: 62.3483928 | C126: 10.0225 | D126: 15.93465 | E126: 41.6944572
A127: TEK 10 | B127: 83.18856208 | C127: 10.0225 | D127: 19.4325 | E127: 52.35643792
A128: TEK 07 | B128: 103.1 | C128: 10.0225 | D128: 19.4 | E128: 52.8
A129: TEK 97 | B129: 130.7 | C129: 10.0225 | D129: 21.4 | E129: 70.6
A130: TEK 87 | B130: 149.9 | C130: 10.0225 | D130: 22.1 | E130: 76.7
A131: TEK 69 | B131: 210 | C131: 10.0225 | D131: 10.4 | E131: 51.2
A132: TEK 49 | B132: 231.8 | C132: 10.0225 | D132: 0 | E132: 27.4
A133: Older | B133: 252.7 | C133: 10.0225 | D133: 0 | E133: 27.4
A134: Industry/Workshop | B134: Heating | C134: Hot Water | D134: Cooling | E134: Electric
A135: Passivhouse | B135: 25 | C135: 10.0225 | D135: 7 | E135: 44.9
A136: Low energy | B136: 45.1775 | C136: 10.0225 | D136: 7 | E136: 49.6
A137: TEK 17 | B137: 82.1775 | C137: 10.0225 | D137: 14.5 | E137: 53.3
A138: TEK 10 | B138: 95.2775 | C138: 10.0225 | D138: 17.7 | E138: 67
A139: TEK 07 | B139: 99.1 | C139: 10.0225 | D139: 17.7 | E139: 67.7
A140: TEK 97 | B140: 128.2 | C140: 10.0225 | D140: 19.5 | E140: 83.2
A141: TEK 87 | B141: 161.3 | C141: 10.0225 | D141: 20.2 | E141: 88.6
A142: TEK 69 | B142: 313.5 | C142: 10.0225 | D142: 16.1 | E142: 80.9
A143: TEK 49 | B143: 303.6 | C143: 10.0225 | D143: 0 | E143: 43.4
A144: Older | B144: 333.2 | C144: 10.0225 | D144: 0 | E144: 43.4

Sheet LocalEnergySupplyData (hidden)
A1: Emission Factors | B1: Emissions [gCO2/kWh] | F1: Tall må oppdateres og sjekkes
A2: Energy Sources | B2: Indirect | C2: upstream | D2: Total
A3: Electricity | B3: 17 | C3: 0 | D3: ='Emission factors'!B3 -> 123
A4: Solar Thermal | B4: 0 | C4: 0 | D4: ='Emission factors'!B4 -> 0
A5: Firewood | B5: 14 | C5: 0 | D5: ='Emission factors'!B5 -> 14
A6: Wood Chips | B6: 14 | C6: 0 | D6: ='Emission factors'!B6 -> 14
A7: Pellets | B7: 25 | C7: 0 | D7: ='Emission factors'!B7 -> 25
A8: Bio-oil | B8: 25 | C8: 0 | D8: ='Emission factors'!B8 -> 25
A9: Bio-gas | B9: 10 | C9: 0 | D9: ='Emission factors'!B9 -> 10
A10: Waste | B10: 138 | C10: 0 | D10: ='Emission factors'!B10 -> 138
A11: Fossile oil | B11: 50 | C11: 265 | D11: ='Emission factors'!B11 -> 315
A12: LPG | B12: 70 | C12: 234 | D12: ='Emission factors'!B12 -> 304
A13: Natural Gas | B13: 53 | C13: 202 | D13: ='Emission factors'!B13 -> 255
B15: Efficiency | F15: CO2 factor
A16: Heating | B16: Production- Efficiency | C16: Distribution- Efficiency | D16: Control- Efficiency | E16: Total Efficiency | F16: Source | G16: Efficiency | H16: Total
A17: Electric heater | B17: 0.99 | C17: 0.99 | D17: 0.9 | E17: =B17*C17*D17 -> 0.88209 | F17: Electricity | G17: 1 | H17: =OFFSET($A$3,MATCH(F17,emissionSourcesRange,0)-1,3)/G17 -> 123
A18: Electric boiler | B18: 0.98 | C18: 0.95 | D18: 0.92 | E18: =B18*C18*D18 -> 0.85652 | F18: Electricity | G18: 1 | H18: =OFFSET($A$3,MATCH(F18,emissionSourcesRange,0)-1,3)/G18 -> 123
A19: Solar collector | B19: 1 | C19: 0.95 | D19: 0.95 | E19: 0.9025 | F19: Solar Thermal | G19: 1 | H19: 0
A20: Heat pump | B20: 2.55 | C20: 0.95 | D20: 0.93 | E20: 2.252925 | F20: Electricity | G20: 1 | H20: 123
A21: Wood chip boiler | B21: 0.85 | C21: 0.97 | D21: 0.9 | E21: =B21*C21*D21 -> 0.74205 | F21: Wood Chips | G21: 1 | H21: 14
A22: Pellets boiler | B22: 0.85 | C22: 0.975 | D22: 0.9 | E22: 0.745875 | F22: Pellets | G22: 1 | H22: 25
A23: Wood-burning Stove | B23: 0.8 | C23: 1 | D23: 0.8 | E23: 0.64 | F23: Firewood | G23: 1 | H23: 14
A24: Bio-oil boiler | B24: 0.85 | C24: 0.95 | D24: 0.94 | E24: 0.75905 | F24: Bio-oil | G24: 1 | H24: 25
A25: Oil boiler | B25: 0.85 | C25: 0.95 | D25: 0.95 | E25: 0.767125 | F25: Fossile oil | G25: 1 | H25: 315
A26: LPG boiler | B26: 0.95 | C26: 0.95 | D26: 0.95 | E26: 0.857375 | F26: LPG | G26: 1 | H26: 304
A27: District Heating | B27: 0.98 | C27: 0.95 | D27: 0.93 | E27: 0.86583
A29: Hot Water
A30: Electric water heater | B30: 0.99 | C30: 0.6 | D30: 0.98 | E30: =B30*C30*D30 -> 0.58212 | F30: Electricity | G30: 1 | H30: =OFFSET($A$3,MATCH(F30,emissionSourcesRange,0)-1,3)/G30 -> 123
A31: Electric boiler | B31: 0.98 | C31: 0.6 | D31: 0.92 | E31: =B31*C31*D31 -> 0.54096 | F31: Electricity | G31: 1 | H31: 123
A32: Solar collector | B32: 1 | C32: 0.6 | D32: 0.95 | E32: =B32*C32*D32 -> 0.57 | F32: Solar Thermal | G32: 1 | H32: 0
A33: Heat Pump | B33: 2.55 | C33: 0.6 | D33: 0.93 | E33: 1.4229 | F33: Electricity | G33: 1 | H33: 123
A34: Wood chip boiler | B34: 0.85 | C34: 0.6 | D34: 0.9 | E34: =B34*C34*D34 -> 0.459 | F34: Wood Chips | G34: 1 | H34: 14
A35: Pellets boiler | B35: 0.85 | C35: 0.6 | D35: 0.9 | E35: 0.459 | F35: Pellets | G35: 1 | H35: 25
A36: Bio-oil boiler | B36: 0.85 | C36: 0.6 | D36: 0.94 | E36: =B36*C36*D36 -> 0.4794 | F36: Bio-oil | G36: 1 | H36: 25
A37: Oil boiler | B37: 0.85 | C37: 0.6 | D37: 0.95 | E37: 0.4845 | F37: Fossile oil | G37: 1 | H37: 315
A38: LPG boiler | B38: 0.95 | C38: 0.6 | D38: 0.95 | E38: 0.5415 | F38: LPG | G38: 1 | H38: 304
A39: District Heating | B39: 0.98 | C39: 0.6 | D39: 0.93 | E39: 0.54684
A41: Cooling
A42: Local Chiller | B42: 2.45 | C42: 1 | D42: 1 | E42: =B42*C42*D42 -> 2.45 | F42: Electricity | G42: 1 | H42: =OFFSET($A$3,MATCH(F42,emissionSourcesRange,0)-1,3)/G42 -> 123
A43: District cooling | B43: 2.5 | C43: 0.95 | D43: 0.93 | E43: 2.20875 | F43: Electricity | G43: 1 | H43: =OFFSET($A$3,MATCH(F43,emissionSourcesRange,0)-1,3)/G43 -> 123
A45: Electric
A46: Electric consumption | B46: 1 | C46: 1 | D46: 1 | E46: =B46*C46*D46 -> 1 | F46: Electricity | G46: 1 | H46: =OFFSET($A$3,MATCH(F46,emissionSourcesRange,0)-1,3)/G46 -> 123
A48: Local energy plant sources
A49: Electricity | F49: Electricity | G49: 1 | H49: =OFFSET($A$3,MATCH(F49,emissionSourcesRange,0)-1,3)/G49 -> 123
A50: Sun | F50: Solar Thermal | G50: 1 | H50: =OFFSET($A$3,MATCH(F50,emissionSourcesRange,0)-1,3)/G50 -> 0
A51: Surplus Heat
A52: Waste Incineration | F52: Waste | G52: 1 | H52: =OFFSET($A$3,MATCH(F52,emissionSourcesRange,0)-1,3)/G52 -> 138
A53: Wood Chips | F53: Wood Chips | G53: 1 | H53: 14
A54: Pellets | F54: Pellets | G54: 1 | H54: 25
A55: Bio-oil | F55: Bio-oil | G55: 1 | H55: 25
A56: Bio-gas | F56: Bio-gas | G56: 1 | H56: 10
A57: Fossile Oil | F57: Fossile oil | G57: 1 | H57: 315
A58: LPG | F58: LPG | G58: 1 | H58: 304

Sheet Lists (hidden)
A1: Building Categories | B1: Building performance data | C1: Energy Certificates | D1: Ownership | E1: PV input | F1: Energy technology
A2: Residential individual housing | B2: Passivhouse | C2: A | D2: Public | E2: Auto | F2: Fossile
A3: Residential apartment building | B3: Low energy | C3: B | D3: Private | E3: Manual | F3: Renewable/electric
A4: Office building | B4: TEK 17 | C4: C | D4: Housing cooperative
A5: Kindergarten | B5: TEK 10 | C5: D
A6: School | B6: TEK 07 | C6: E
A7: University/Collage | B7: TEK 97 | C7: F
A8: Hospital | B8: TEK 87 | C8: G
A9: Nursing home | B9: TEK 69
A10: Hotel | B10: TEK 49
A11: Sports Facility | B11: Older
A12: Comercial building | B12: Simulation
A13: Cultural building | B13: Measurements
A14: Industry/Workshop
A17: Local energy plant list
A18: CHP
A19: Solar PV
A20: Solar Thermal
A21: Boiler
A22: Heat Pump
A23: Direct connection
A25: Goal Catergory List | B25: Unit List | C25: Comparison
A26: Energy Consumption | B26: Absolute | C26: Absolute
A27: Energy Generation | B27: /m2 BRA | C27: % Increase
A28: Mismatch | B28: /inhabitant | C28: % Reduction
B29: /person
A30: Mobility
A31: Carbon Emission
A33: Goal List | B33: # KPIs | C33: CO2-reduction | D33: Increased use of renewable energy | E33: Increased energy efficiency | F33: Increased use of local energy sources | G33: Green mobility
A34: CO2-reduction | C34: =COUNTA(C35:C44) -> 3 | D34: =COUNTA(D35:D42) -> 6 | E34: =COUNTA(E35:E43) -> 4 | F34: =COUNTA(F35:F43) -> 4 | G34: =COUNTA(G35:G42) -> 1
A35: Increased use of renewable energy | C35: CO2 emissions | D35: % of energy sources delivering to district heating system | E35: Energy Use | F35: Installed capacity of RES | G35: Modal Split
A36: Increased energy efficiency | C36: # fossil free construction sites | D36: # fossile free construction sites | E36: % of buildings with Energy Certificate at each of the grades | F36: Generated energy by RES
A37: Increased use of local energy sources | C37: Number of registered oil tanks | D37: Installed capacity of RES | E37: % of buildings with measurement values for energy performance | F37: # of buildings with installed solar energy system
A38: Green mobility | D38: Generated energy by RES | E38: Net energy demand in buildings | F38: # of buildings connected to a district thermal energy system
D39: # of buildings with installed solar energy system
D40: # of buildings connected to a district thermal energy system
A46: Location List
A47: Oslo og Akershus
A48: Bergen, Trondheim og Stavanger area
A49: Other Cities

Sheet KPIResults
A1: Scenario | G1: Initial | H1: Baseline | I1: Scenario1 | J1: Scenario12 | K1: Scenario1r8 | L1: Scenario123
A3: Key Data | C3: Category | D3: Sub-Category | E3: Sectors | F3: Unit
A4: Year | G4: 2018 | H4: 2030 | I4: 2030 | J4: 2030 | K4: 2030 | L4: 2030
A5: Population | F5: # | G5: 330 | H5: 330 | I5: 330 | J5: 330 | K5: 330 | L5: 330
A6: Number of jobs | F6: # | G6: 36 | H6: 236 | I6: 236 | J6: 236 | K6: 236 | L6: 236
A7: Other Users | F7: # | G7: 650 | H7: 800 | I7: 800 | J7: 800 | K7: 800 | L7: 800
A8: Building area | E8: Total | F8: m2 | G8: 29000 | H8: 37000 | I8: 37000 | J8: 37000 | K8: 37000 | L8: 37000
E9: Residential buildings | F9: m2 | G9: 18000 | H9: 18000 | I9: 18000 | J9: 18000 | K9: 18000 | L9: 18000
E10: Public buildings | F10: m2 | G10: 10500 | H10: 18500 | I10: 18500 | J10: 18500 | K10: 18500 | L10: 18500
E11: Private buildings | F11: m2 | G11: 500 | H11: 500 | I11: 500 | J11: 500 | K11: 500 | L11: 500
A12: Number of buildings | E12: Total | F12: # | G12: 4 | H12: 5 | I12: 5 | J12: 5 | K12: 5 | L12: 5
E13: Residential buildings | F13: # | G13: 1 | H13: 1 | I13: 1 | J13: 1 | K13: 1 | L13: 1
E14: Public buildings | F14: # | G14: 2 | H14: 3 | I14: 3 | J14: 3 | K14: 3 | L14: 3
E15: Private buildings | F15: # | G15: 1 | H15: 1 | I15: 1 | J15: 1 | K15: 1 | L15: 1
A17: KPI | C17: Category | D17: Sub-Category | E17: Sectors | F17: Unit
A18: Energy Use | C18: Total | D18: Total stationary | E18: Total | F18: kWh | G18: 8625441.514 | H18: 10270599.42 | I18: 6043925.362 | J18: 6043925.362 | K18: 6043925.362 | L18: 6043925.362
E19: Residential buildings | F19: kWh | G19: 3012527.435 | H19: 3012527.435 | I19: 3012527.435 | J19: 3012527.435 | K19: 3012527.435 | L19: 3012527.435
E20: Public buildings | F20: kWh | G20: 5078400.5 | H20: 6723558.405 | I20: 2496884.348 | J20: 2496884.348 | K20: 2496884.348 | L20: 2496884.348
E21: Private buildings | F21: kWh | G21: 180156.5979 | H21: 180156.5979 | I21: 180156.5979 | J21: 180156.5979 | K21: 180156.5979 | L21: 180156.5979
E22: Street Utilities | F22: kWh | G22: 354356.9817 | H22: 354356.9817 | I22: 354356.9817 | J22: 354356.9817 | K22: 354356.9817 | L22: 354356.9817
D23: Total stationary and mobility | E23: Total | G23: 9665413.732 | H23: 11521268.14 | I23: 7211393.632 | J23: 7211393.632 | K23: 7211393.632 | L23: 7211393.632
E24: Residential buildings | G24: 3012527.435 | H24: 3012527.435 | I24: 3012527.435 | J24: 3012527.435 | K24: 3012527.435 | L24: 3012527.435
E25: Public buildings | G25: 5078400.5 | H25: 6723558.405 | I25: 2496884.348 | J25: 2496884.348 | K25: 2496884.348 | L25: 2496884.348
E26: Private buildings | G26: 180156.5979 | H26: 180156.5979 | I26: 180156.5979 | J26: 180156.5979 | K26: 180156.5979 | L26: 180156.5979
E27: Street Utilities | G27: 354356.9817 | H27: 354356.9817 | I27: 354356.9817 | J27: 354356.9817 | K27: 354356.9817 | L27: 354356.9817
E28: Transport | G28: 1039972.218 | H28: 1250668.716 | I28: 1167468.27 | J28: 1167468.27 | K28: 1167468.27 | L28: 1167468.27
C29: Electric | D29: Total stationary | E29: Total | F29: kWh | G29: 4092303.804 | H29: 4964676.968 | I29: 4383322.242 | J29: 4383322.242 | K29: 4383322.242 | L29: 4383322.242
E30: Residential buildings | F30: kWh | G30: 3012527.435 | H30: 3012527.435 | I30: 3012527.435 | J30: 3012527.435 | K30: 3012527.435 | L30: 3012527.435
E31: Public buildings | F31: kWh | G31: 635600 | H31: 1507973.164 | I31: 926618.4375 | J31: 926618.4375 | K31: 926618.4375 | L31: 926618.4375
E32: Private buildings | F32: kWh | G32: 89819.38776 | H32: 89819.38776 | I32: 89819.38776 | J32: 89819.38776 | K32: 89819.38776 | L32: 89819.38776
E33: Street Utilities | F33: kWh | G33: 354356.9817 | H33: 354356.9817 | I33: 354356.9817 | J33: 354356.9817 | K33: 354356.9817 | L33: 354356.9817
D34: Total stationary and mobility | E34: Total | F34: kWh | G34: 4201905.73 | H34: 5265831.721 | I34: 4728647.521 | J34: 4728647.521 | K34: 4728647.521 | L34: 4728647.521
E35: Residential buildings | F35: kWh | G35: 3012527.435 | H35: 3012527.435 | I35: 3012527.435 | J35: 3012527.435 | K35: 3012527.435 | L35: 3012527.435
E36: Public buildings | F36: kWh | G36: 635600 | H36: 1507973.164 | I36: 926618.4375 | J36: 926618.4375 | K36: 926618.4375 | L36: 926618.4375
E37: Private buildings | F37: kWh | G37: 89819.38776 | H37: 89819.38776 | I37: 89819.38776 | J37: 89819.38776 | K37: 89819.38776 | L37: 89819.38776
E38: Street Utilities | F38: kWh | G38: 354356.9817 | H38: 354356.9817 | I38: 354356.9817 | J38: 354356.9817 | K38: 354356.9817 | L38: 354356.9817
E39: Transport | F39: kWh | G39: 109601.9258 | H39: 301154.753 | I39: 345325.2792 | J39: 345325.2792 | K39: 345325.2792 | L39: 345325.2792
D40: Buildings | E40: Total | F40: kWh | G40: 3737946.822 | H40: 4610319.986 | I40: 4028965.26 | J40: 4028965.26 | K40: 4028965.26 | L40: 4028965.26
E41: Residential buildings | F41: kWh | G41: 3012527.435 | H41: 3012527.435 | I41: 3012527.435 | J41: 3012527.435 | K41: 3012527.435 | L41: 3012527.435
E42: Public buildings | F42: kWh | G42: 635600 | H42: 1507973.164 | I42: 926618.4375 | J42: 926618.4375 | K42: 926618.4375 | L42: 926618.4375
E43: Private buildings | F43: kWh | G43: 89819.38776 | H43: 89819.38776 | I43: 89819.38776 | J43: 89819.38776 | K43: 89819.38776 | L43: 89819.38776
D44: Street Utilities | E44: Total | F44: kWh | G44: 354356.9817 | H44: 354356.9817 | I44: 354356.9817 | J44: 354356.9817 | K44: 354356.9817 | L44: 354356.9817
E45: Outdoor lighting | F45: kWh | G45: 275000 | H45: 275000 | I45: 275000 | J45: 275000 | K45: 275000 | L45: 275000
E46: Other | F46: kWh | G46: 79356.98171 | H46: 79356.98171 | I46: 79356.98171 | J46: 79356.98171 | K46: 79356.98171 | L46: 79356.98171
D47: Transport | E47: Total | F47: kWh | G47: 109601.9258 | H47: 301154.753 | I47: 345325.2792 | J47: 345325.2792 | K47: 345325.2792 | L47: 345325.2792
E48: Private car | F48: kWh | G48: 13531.07115 | H48: 130391.2417 | I48: 130391.2417 | J48: 130391.2417 | K48: 130391.2417 | L48: 130391.2417
E49: Public transport | F49: kWh | G49: 95019.16453 | H49: 150445.212 | I49: 194615.7382 | J49: 194615.7382 | K49: 194615.7382 | L49: 194615.7382
E50: Goods | F50: kWh | G50: 1051.69007 | H50: 20318.2993 | I50: 20318.2993 | J50: 20318.2993 | K50: 20318.2993 | L50: 20318.2993
C51: Thermal | D51: Total stationary | E51: Total | F51: kWh | G51: 4533137.71 | H51: 5305922.452 | I51: 1660603.121 | J51: 1660603.121 | K51: 1660603.121 | L51: 1660603.121
E52: Solar | F52: kWh | G52: 0 | H52: 0 | I52: 0 | J52: 0 | K52: 0 | L52: 0
E53: Biofuel | F53: kWh | G53: 0 | H53: 0 | I53: 0 | J53: 0 | K53: 0 | L53: 0
E54: Oil | F54: kWh | G54: 4442800.5 | H54: 0 | I54: 0 | J54: 0 | K54: 0 | L54: 0
E55: Gas | F55: kWh | G55: 0 | H55: 0 | I55: 0 | J55: 0 | K55: 0 | L55: 0
E56: District heating | F56: kWh | G56: 90337.21015 | H56: 5305922.452 | I56: 1660603.121 | J56: 1660603.121 | K56: 1660603.121 | L56: 1660603.121
D57: Total stationary and mobility | E57: Total | G57: 5463508.002 | H57: 6255436.414 | I57: 2482746.112 | J57: 2482746.112 | K57: 2482746.112 | L57: 2482746.112
E58: Solar | G58: 0 | H58: 0 | I58: 0 | J58: 0 | K58: 0 | L58: 0
E59: Biofuel | G59: 0 | H59: 0 | I59: 0 | J59: 0 | K59: 0 | L59: 0
E60: Oil | G60: 4442800.5 | H60: 0 | I60: 0 | J60: 0 | K60: 0 | L60: 0
E61: Gas | G61: 0 | H61: 0 | I61: 0 | J61: 0 | K61: 0 | L61: 0
E62: District heating | G62: 90337.21015 | H62: 5305922.452 | I62: 1660603.121 | J62: 1660603.121 | K62: 1660603.121 | L62: 1660603.121
E63: Fossil fuels | G63: 930370.2925 | H63: 949513.9625 | I63: 822142.991 | J63: 822142.991 | K63: 822142.991 | L63: 822142.991
D64: Residential Buildings | E64: Total | F64: kWh | G64: 0 | H64: 0 | I64: 0 | J64: 0 | K64: 0 | L64: 0
E65: Solar | F65: kWh | G65: 0 | H65: 0 | I65: 0 | J65: 0 | K65: 0 | L65: 0
E66: Biofuel | F66: kWh | G66: 0 | H66: 0 | I66: 0 | J66: 0 | K66: 0 | L66: 0
E67: Oil | F67: kWh | G67: 0 | H67: 0 | I67: 0 | J67: 0 | K67: 0 | L67: 0
E68: Gas | F68: kWh | G68: 0 | H68: 0 | I68: 0 | J68: 0 | K68: 0 | L68: 0
E69: District heating | F69: kWh | G69: 0 | H69: 0 | I69: 0 | J69: 0 | K69: 0 | L69: 0
D70: Public Buildings | E70: Total | F70: kWh | G70: 4442800.5 | H70: 5215585.242 | I70: 1570265.911 | J70: 1570265.911 | K70: 1570265.911 | L70: 1570265.911
E71: Solar | F71: kWh | G71: 0 | H71: 0 | I71: 0 | J71: 0 | K71: 0 | L71: 0
E72: Biofuel | F72: kWh | G72: 0 | H72: 0 | I72: 0 | J72: 0 | K72: 0 | L72: 0
E73: Oil | F73: kWh | G73: 4442800.5 | H73: 0 | I73: 0 | J73: 0 | K73: 0 | L73: 0
E74: Gas | F74: kWh | G74: 0 | H74: 0 | I74: 0 | J74: 0 | K74: 0 | L74: 0
E75: District heating | F75: kWh | G75: 0 | H75: 5215585.242 | I75: 1570265.911 | J75: 1570265.911 | K75: 1570265.911 | L75: 1570265.911
D76: Private Buildings | E76: Total | F76: kWh | G76: 90337.21015 | H76: 90337.21015 | I76: 90337.21015 | J76: 90337.21015 | K76: 90337.21015 | L76: 90337.21015
E77: Solar | F77: kWh | G77: 0 | H77: 0 | I77: 0 | J77: 0 | K77: 0 | L77: 0
E78: Biofuel | F78: kWh | G78: 0 | H78: 0 | I78: 0 | J78: 0 | K78: 0 | L78: 0
E79: Oil | F79: kWh | G79: 0 | H79: 0 | I79: 0 | J79: 0 | K79: 0 | L79: 0
E80: Gas | F80: kWh | G80: 0 | H80: 0 | I80: 0 | J80: 0 | K80: 0 | L80: 0
E81: District heating | F81: kWh | G81: 90337.21015 | H81: 90337.21015 | I81: 90337.21015 | J81: 90337.21015 | K81: 90337.21015 | L81: 90337.21015
D82: Street Utilities | E82: Total | F82: kWh | G82: 0 | H82: 0 | I82: 0 | J82: 0 | K82: 0 | L82: 0
E83: Solar | F83: kWh | G83: 0 | H83: 0 | I83: 0 | J83: 0 | K83: 0 | L83: 0
E84: Biofuel | F84: kWh | G84: 0 | H84: 0 | I84: 0 | J84: 0 | K84: 0 | L84: 0
E85: Oil | F85: kWh | G85: 0 | H85: 0 | I85: 0 | J85: 0 | K85: 0 | L85: 0
E86: Gas | F86: kWh | G86: 0 | H86: 0 | I86: 0 | J86: 0 | K86: 0 | L86: 0
E87: District heating | F87: kWh | G87: 0 | H87: 0 | I87: 0 | J87: 0 | K87: 0 | L87: 0
D88: Transport | E88: Fossil fuels | F88: kWh | G88: 930370.2925 | H88: 949513.9625 | I88: 822142.991 | J88: 822142.991 | K88: 822142.991 | L88: 822142.991
D89: Private car | E89: Fossil fuels | F89: kWh | G89: 781216.3191 | H89: 720779.1347 | I89: 720779.1347 | J89: 720779.1347 | K89: 720779.1347 | L89: 720779.1347
D90: Public transport | E90: Fossil fuels | F90: kWh | G90: 84882.29623 | H90: 127370.9716 | I90: 0 | J90: 0 | K90: 0 | L90: 0
D91: Goods | E91: Fossil fuels | F91: kWh | G91: 64271.67719 | H91: 101363.8563 | I91: 101363.8563 | J91: 101363.8563 | K91: 101363.8563 | L91: 101363.8563
A92: Net energy demand in buildings | C92: Total net demand | D92: Total | E92: Total | F92: kWh | G92: 6486066.25 | H92: 8326066.25 | I92: 4588484.688 | J92: 4588484.688 | K92: 4588484.688 | L92: 4588484.688
E93: Heating | F93: kWh | G93: 4376141.25 | H93: 5103768.086 | I93: 1947541.25 | J93: 1947541.25 | K93: 1947541.25 | L93: 1947541.25
E94: Hot water | F94: kWh | G94: 840000 | H94: 1080000 | I94: 1080000 | J94: 1080000 | K94: 1080000 | L94: 1080000
E95: Cooling | F95: kWh | G95: 23200 | H95: 23200 | I95: 23200 | J95: 23200 | K95: 23200 | L95: 23200
E96: Electric | F96: kWh | G96: 1246725 | H96: 2119098.164 | I96: 1537743.438 | J96: 1537743.438 | K96: 1537743.438 | L96: 1537743.438
D97: Residential Buildings | E97: Total | F97: kWh | G97: 2488016.25 | H97: 2488016.25 | I97: 2488016.25 | J97: 2488016.25 | K97: 2488016.25 | L97: 2488016.25
E98: Heating | F98: kWh | G98: 1507241.25 | H98: 1507241.25 | I98: 1507241.25 | J98: 1507241.25 | K98: 1507241.25 | L98: 1507241.25
E99: Hot water | F99: kWh | G99: 450000 | H99: 450000 | I99: 450000 | J99: 450000 | K99: 450000 | L99: 450000
E100: Cooling | F100: kWh | G100: 0 | H100: 0 | I100: 0 | J100: 0 | K100: 0 | L100: 0
E101: Electric | F101: kWh | G101: 530775 | H101: 530775 | I101: 530775 | J101: 530775 | K101: 530775 | L101: 530775
D102: Public Buildings | E102: Total | F102: kWh | G102: 3819200 | H102: 5659200 | I102: 1921618.438 | J102: 1921618.438 | K102: 1921618.438 | L102: 1921618.438
E103: Heating | F103: kWh | G103: 2798600 | H103: 3526226.836 | I103: 370000 | J103: 370000 | K103: 370000 | L103: 370000
E104: Hot water | F104: kWh | G104: 385000 | H104: 625000 | I104: 625000 | J104: 625000 | K104: 625000 | L104: 625000
E105: Cooling | F105: kWh | G105: 0 | H105: 0 | I105: 0 | J105: 0 | K105: 0 | L105: 0
E106: Electric | F106: kWh | G106: 635600 | H106: 1507973.164 | I106: 926618.4375 | J106: 926618.4375 | K106: 926618.4375 | L106: 926618.4375
D107: Private Buildings | E107: Total | F107: kWh | G107: 178850 | H107: 178850 | I107: 178850 | J107: 178850 | K107: 178850 | L107: 178850
E108: Heating | F108: kWh | G108: 70300 | H108: 70300 | I108: 70300 | J108: 70300 | K108: 70300 | L108: 70300
E109: Hot water | F109: kWh | G109: 5000 | H109: 5000 | I109: 5000 | J109: 5000 | K109: 5000 | L109: 5000
E110: Cooling | F110: kWh | G110: 23200 | H110: 23200 | I110: 23200 | J110: 23200 | K110: 23200 | L110: 23200
E111: Electric | F111: kWh | G111: 80350 | H111: 80350 | I111: 80350 | J111: 80350 | K111: 80350 | L111: 80350
A112: % of energy sources delivering to district heating system | C112: Total | F112: % | G112: 30 | H112: 31 | I112: 31 | J112: 31 | K112: 31 | L112: 31
C113: Electricity | F113: % | G113: 29 | H113: 29 | I113: 29 | J113: 29 | K113: 29 | L113: 29
C114: Surplus and Ambient Heat | F114: % | G114: 0 | H114: 0 | I114: 0 | J114: 0 | K114: 0 | L114: 0
C115: Solar | F115: % | G115: 0 | H115: 0 | I115: 0 | J115: 0 | K115: 0 | L115: 0
C116: Biofuel | F116: % | G116: 30 | H116: 31 | I116: 31 | J116: 31 | K116: 31 | L116: 31
C117: Waste | F117: % | G117: 40 | H117: 40 | I117: 40 | J117: 40 | K117: 40 | L117: 40
C118: Oil | F118: % | G118: 1 | H118: 0 | I118: 0 | J118: 0 | K118: 0 | L118: 0
C119: Gas | F119: % | G119: 0 | H119: 0 | I119: 0 | J119: 0 | K119: 0 | L119: 0
A120: % of buildings with Energy Certificate at each of the grades | C120: Total registered | F120: % | G120: 100 | H120: 100 | I120: 100 | J120: 100 | K120: 100 | L120: 100
C121: Certificate A | F121: % | G121: 0 | H121: 0 | I121: 60 | J121: 60 | K121: 60 | L121: 60
C122: Certificate B | F122: % | G122: 0 | H122: 0 | I122: 0 | J122: 0 | K122: 0 | L122: 0
C123: Certificate C | F123: % | G123: 0 | H123: 20 | I123: 0 | J123: 0 | K123: 0 | L123: 0
C124: Certificate D | F124: % | G124: 0 | H124: 0 | I124: 0 | J124: 0 | K124: 0 | L124: 0
C125: Certificate E | F125: % | G125: 25 | H125: 20 | I125: 20 | J125: 20 | K125: 20 | L125: 20
C126: Certificate F | F126: % | G126: 25 | H126: 20 | I126: 20 | J126: 20 | K126: 20 | L126: 20
C127: Certificate G | F127: % | G127: 50 | H127: 40 | I127: 0 | J127: 0 | K127: 0 | L127: 0
C128: Not registered | F128: % | G128: 0 | H128: 0 | I128: 0 | J128: 0 | K128: 0 | L128: 0
A129: % of buildings with measurement values for energy performance | E129: Total | F129: % | G129: 0 | H129: 0 | I129: 0 | J129: 0 | K129: 0 | L129: 0
E130: Residential buildings | F130: % | G130: 0 | H130: 0 | I130: 0 | J130: 0 | K130: 0 | L130: 0
E131: Public buildings | F131: % | G131: 0 | H131: 0 | I131: 0 | J131: 0 | K131: 0 | L131: 0
E132: Private buildings | F132: % | G132: 0 | H132: 0 | I132: 0 | J132: 0 | K132: 0 | L132: 0
A133: Installed capacity of RES | C133: Total | D133: Total | F133: kW | G133: 0 | H133: 0 | I133: 20 | J133: 20 | K133: 20 | L133: 20
D134: Solar | F134: kW | G134: 0 | H134: 0 | I134: 20 | J134: 20 | K134: 20 | L134: 20
D135: CHP Waste | F135: kW | G135: 0 | H135: 0 | I135: 0 | J135: 0 | K135: 0 | L135: 0
D136: CHP Biomass | F136: kW | G136: 0 | H136: 0 | I136: 0 | J136: 0 | K136: 0 | L136: 0
C137: Electric | D137: Total | F137: kW | G137: 0 | H137: 0 | I137: 20 | J137: 20 | K137: 20 | L137: 20
D138: Solar | F138: kW | G138: 0 | H138: 0 | I138: 20 | J138: 20 | K138: 20 | L138: 20
D139: CHP Waste | F139: kW | G139: 0 | H139: 0 | I139: 0 | J139: 0 | K139: 0 | L139: 0
D140: CHP Biomass | F140: kW | G140: 0 | H140: 0 | I140: 0 | J140: 0 | K140: 0 | L140: 0
C141: Thermal | D141: Total | F141: kW | G141: 0 | H141: 0 | I141: 0 | J141: 0 | K141: 0 | L141: 0
D142: Solar | F142: kW | G142: 0 | H142: 0 | I142: 0 | J142: 0 | K142: 0 | L142: 0
D143: CHP Waste | F143: kW | G143: 0 | H143: 0 | I143: 0 | J143: 0 | K143: 0 | L143: 0
D144: CHP Biomass | F144: kW | G144: 0 | H144: 0 | I144: 0 | J144: 0 | K144: 0 | L144: 0
A145: Generated energy by RES | C145: Total | D145: Total | F145: kWh | G145: 0 | H145: 0 | I145: 20000 | J145: 20000 | K145: 20000 | L145: 20000
D146: Solar | F146: kWh | G146: 0 | H146: 0 | I146: 20000 | J146: 20000 | K146: 20000 | L146: 20000
D147: CHP Waste | F147: kWh | G147: 0 | H147: 0 | I147: 0 | J147: 0 | K147: 0 | L147: 0
D148: CHP Biomass | F148: kWh | G148: 0 | H148: 0 | I148: 0 | J148: 0 | K148: 0 | L148: 0
C149: Electric | D149: Total | F149: kWh | G149: 0 | H149: 0 | I149: 20000 | J149: 20000 | K149: 20000 | L149: 20000
D150: Solar | F150: kWh | G150: 0 | H150: 0 | I150: 20000 | J150: 20000 | K150: 20000 | L150: 20000
D151: CHP Waste | F151: kWh | G151: 0 | H151: 0 | I151: 0 | J151: 0 | K151: 0 | L151: 0
D152: CHP Biomass | F152: kWh | G152: 0 | H152: 0 | I152: 0 | J152: 0 | K152: 0 | L152: 0
C153: Thermal | D153: Total | F153: kWh | G153: 0 | H153: 0 | I153: 0 | J153: 0 | K153: 0 | L153: 0
D154: Solar | F154: kWh | G154: 0 | H154: 0 | I154: 0 | J154: 0 | K154: 0 | L154: 0
D155: CHP Waste | F155: kWh | G155: 0 | H155: 0 | I155: 0 | J155: 0 | K155: 0 | L155: 0
D156: CHP Biomass | F156: kWh | G156: 0 | H156: 0 | I156: 0 | J156: 0 | K156: 0 | L156: 0
A157: # of buildings with installed solar energy system | C157: Total | E157: Total | F157: # | G157: 0 | H157: 0 | I157: 1 | J157: 1 | K157: 1 | L157: 1
E158: Residential buildings | F158: # | G158: 0 | H158: 0 | I158: 0 | J158: 0 | K158: 0 | L158: 0
E159: Public buildings | F159: # | G159: 0 | H159: 0 | I159: 1 | J159: 1 | K159: 1 | L159: 1
E160: Private buildings | F160: # | G160: 0 | H160: 0 | I160: 0 | J160: 0 | K160: 0 | L160: 0
C161: Electric | E161: Total | F161: # | G161: 0 | H161: 0 | I161: 1 | J161: 1 | K161: 1 | L161: 1
E162: Residential buildings | F162: # | G162: 0 | H162: 0 | I162: 0 | J162: 0 | K162: 0 | L162: 0
E163: Public buildings | F163: # | G163: 0 | H163: 0 | I163: 1 | J163: 1 | K163: 1 | L163: 1
E164: Private buildings | F164: # | G164: 0 | H164: 0 | I164: 0 | J164: 0 | K164: 0 | L164: 0
C165: Thermal | E165: Total | F165: # | G165: 0 | H165: 0 | I165: 0 | J165: 0 | K165: 0 | L165: 0
E166: Residential buildings | F166: # | G166: 0 | H166: 0 | I166: 0 | J166: 0 | K166: 0 | L166: 0
E167: Public buildings | F167: # | G167: 0 | H167: 0 | I167: 0 | J167: 0 | K167: 0 | L167: 0
E168: Private buildings | F168: # | G168: 0 | H168: 0 | I168: 0 | J168: 0 | K168: 0 | L168: 0
A169: # of buildings connected to a district thermal energy system | E169: Total | F169: # | G169: 1 | H169: 4 | I169: 4 | J169: 4 | K169: 4 | L169: 4
E170: Residential buildings | F170: # | G170: 0 | H170: 0 | I170: 0 | J170: 0 | K170: 0 | L170: 0
E171: Public buildings | F171: # | G171: 0 | H171: 3 | I171: 3 | J171: 3 | K171: 3 | L171: 3
E172: Private buildings | F172: # | G172: 1 | H172: 1 | I172: 1 | J172: 1 | K172: 1 | L172: 1
A173: Use of secondary heat | F173: kWh
A174: Peak Load Consumption | C174: Total | F174: kW
C175: Electric | F175: kW
C176: Thermal DH | F176: kW
A177: Peak Load Production | C177: Total | F177: kW
C178: Electric | F178: kW
C179: Thermal DH | F179: kW
A180: Modal split | C180: Total | F180: % | G180: 100 | H180: 100 | I180: 100 | J180: 100 | K180: 100 | L180: 100
C181: Bike/Walk | F181: % | G181: 30.49226093 | H181: 29.59084871 | I181: 29.59084871 | J181: 29.59084871 | K181: 29.59084871 | L181: 29.59084871
C182: Fossil free Car | F182: % | G182: 2.337439478 | H182: 15.41489895 | I182: 15.41489895 | J182: 15.41489895 | K182: 15.41489895 | L182: 15.41489895
C183: Fossil fuel Car | F183: % | G183: 38.2987364 | H183: 24.75184763 | I183: 24.75184763 | J183: 24.75184763 | K183: 24.75184763 | L183: 24.75184763
C184: Fossil free Public transport | F184: % | G184: 17.43842416 | H184: 18.75029092 | I184: 30.24240471 | J184: 30.24240471 | K184: 30.24240471 | L184: 30.24240471
C185: Fossil fuel Public transport | F185: % | G185: 11.43313902 | H185: 11.49211379 | I185: 0 | J185: 0 | K185: 0 | L185: 0
A186: # filling stations with RES fuel for public access | C186: Total | F186: #
A187: CO2 emissions | C187: Total | F187: tonnes | G187: 2218.773466 | H187: 1237.521266 | I187: 931.7442839 | J187: 931.7442839 | K187: 931.7442839 | L187: 931.7442839
C188: Stationary Energy | D188: Total | E188: Total | F188: tonnes | G188: 1907.996193 | H188: 897.3888333 | I188: 626.4281031 | J188: 626.4281031 | K188: 626.4281031 | L188: 626.4281031
E189: Residential buildings | F189: tonnes | G189: 370.5408745 | H189: 370.5408745 | I189: 370.5408745 | J189: 370.5408745 | K189: 370.5408745 | L189: 370.5408745
E190: Public buildings | F190: tonnes | G190: 1477.660957 | H190: 467.3324167 | I190: 196.3716866 | J190: 196.3716866 | K190: 196.3716866 | L190: 196.3716866
E191: Private buildings | F191: tonnes | G191: 16.20845191 | H191: 15.92963336 | I191: 15.92963336 | J191: 15.92963336 | K191: 15.92963336 | L191: 15.92963336
E192: Street Utilities | F192: tonnes | G192: 43.58590875 | H192: 43.58590875 | I192: 43.58590875 | J192: 43.58590875 | K192: 43.58590875 | L192: 43.58590875
E193: Local Energy Plant | F193: tonnes | G193: 0 | H193: 0 | I193: 0 | J193: 0 | K193: 0 | L193: 0
D194: Electricity | E194: Total | F194: tonnes | G194: 503.3533679 | H194: 610.655267 | I194: 536.6886357 | J194: 536.6886357 | K194: 536.6886357 | L194: 536.6886357
E195: Residential buildings | F195: tonnes | G195: 370.5408745 | H195: 370.5408745 | I195: 370.5408745 | J195: 370.5408745 | K195: 370.5408745 | L195: 370.5408745
E196: Public buildings | F196: tonnes | G196: 78.1788 | H196: 185.4806991 | I196: 111.5140678 | J196: 111.5140678 | K196: 111.5140678 | L196: 111.5140678
E197: Private buildings | F197: tonnes | G197: 11.04778469 | H197: 11.04778469 | I197: 11.04778469 | J197: 11.04778469 | K197: 11.04778469 | L197: 11.04778469
E198: Street Utilities | F198: tonnes | G198: 43.58590875 | H198: 43.58590875 | I198: 43.58590875 | J198: 43.58590875 | K198: 43.58590875 | L198: 43.58590875
E199: Local Energy Plant | F199: tonnes | G199: 0 | H199: 0 | I199: 0 | J199: 0 | K199: 0 | L199: 0
D200: Biofuel | E200: Total | F200: tonnes | G200: 0 | H200: 0 | I200: 0 | J200: 0 | K200: 0 | L200: 0
E201: Residential buildings | F201: tonnes | G201: 0 | H201: 0 | I201: 0 | J201: 0 | K201: 0 | L201: 0
E202: Public buildings | F202: tonnes | G202: 0 | H202: 0 | I202: 0 | J202: 0 | K202: 0 | L202: 0
... 37 more rows

Sheet KPIs summary list (hidden)
A1: KPI | B1: Goal s | C1: Sub-categories | E1: Sectors | F1: Unit
A2: Name | B2: Name | C2: 1 | D2: 2
A3: CO2 emissions | B3: CO2-reduction | C3: Stationary Energy | D3: Electricity | E3: Public buildings | F3: Tonnes CO2 eqv.
D4: Biofuel | E4: Residential buildings
D5: Fossile fuel | E5: Private buildings
D6: District heating | E6: Infrastructure
C7: Mobility | E7: Private cars
E8: Taxi
E9: Public transport
E10: Goods transport
E11: Freight transportation
E12: Construction machines
C13: Materials | E13: Public buildings
E14: Residential buildings
E15: Private buildings
A16: Energy Use | B16: Increased energy efficiency | C16: Electric | D16: Buildings | E16: Public buildings | F16: MWh
E17: Residential buildings
E18: Private buildings
D19: Infrastructure | E19: Outdoor lighting
E20: Transport
E21: Other
C22: Thermal | D22: Solar | E22: Public buildings
D23: Biofuel | E23: Residential buildings
D24: Oil | E24: Private buildings
D25: Gas | E25: Infrastructure
D26: District heating
A27: District Heating share of renewables | B27: Increased use of renewable energy | C27: Electricity | F27: %
C28: Heat pump
C29: Solar
C30: Biofuel
C31: Waste
C32: Oil
C33: Gas
A34: Energy Certificate | B34: Increased energy efficiency | C34: Certificate A | E34: Public buildings | F34: %
C35: Certificate B | E35: Residential buildings
C36: Certificate C | E36: Private buildings
C37: Certificate D
C38: Certificate E
C39: Certificate F
C40: Certificate G
C41: Not registered
A42: Use of energy related incentive | B42: Increased energy efficiency | C42: Futurebuildt | E42: Public buildings | F42: #
C43: Enova | E43: Residential buildings
C44: Local | E44: Private buildings
A45: Buildings benchmarked and measuring energy performance | B45: Increased energy efficiency | E45: Public buildings | F45: %
E46: Residential buildings
E47: Private buildings
A48: # fossile free construction sites | B48: CO2-reduction | C48: Construction Machines | E48: Public buildings | F48: #
B49: Increased use of renewable energy | C49: Energy production | E49: Residential buildings
E50: Private buildings
A51: Modal Split | B51: Green mobility (reduced CO2 emissions and better air quality) | C51: Fossil free Car | F51: %
C52: Fossil fuel Car
C53: Fossil free Public transport
C54: Fossil fuel Public transport
C55: Bike
C56: Walk
A57: # filling stations with RES fuel / area/innh. | B57: Green mobility (reduced CO2 emissions and better air quality) | C57: Electric | F57: #
C58: Hydrogen
C59: Biofuel
A60: % fossil free cars of new car registerred | B60: Green mobility (reduced CO2 emissions and better air quality) | C60: Electric | F60: %
C61: Hydrogen
A62: % of berths with power connection | B62: Green mobility (reduced CO2 emissions and better air quality)
A63: RES installed capacity | B63: Increased use of local energy sources | C63: Electric | D63: Solar | F63: kW
B64: Increased use of renewable energy | C64: Thermal | D64: CHP Waste
D65: CHP Biomass
A66: RES generated energy | B66: Increased use of local energy sources | C66: Electric | D66: Solar | F66: MWh
B67: Increased use of renewable energy | C67: Thermal | D67: CHP Waste
D68: CHP Biomass
A69: Buildings with installed RES | B69: Increased use of local energy sources | C69: Electric | D69: Solar | F69: %
B70: Increased use of renewable energy | C70: Thermal
A71: Use of secondary heat | B71: Increased use of local energy sources | F71: MWh
A72: Buildings connected to a district thermal energy | B72: Increased use of local energy sources | F72: %
B73: Increased use of renewable energy
A74: Identification of available resources of renewable energy | B74: Increased use of local energy sources | F74: MWh
B75: Increased use of renewable energy
A76: Number of registered oil tanks | B76: Increased use of renewable energy | F76: #
B77: CO2-reduction
A78: Peak Load Consumption | C78: Electric | F78: kW
C79: Thermal
A80: Peak Load Production | B80: Increased use of local energy sources | C80: Electric | F80: kW
C81: Thermal
A82: Energy Storage | B82: Increased use of local energy sources | C82: Electric | F82: MWh
B83: Increased use of renewable energy | C83: Thermal

Sheet Initial
A1: =MainPage!A1 -> PI-SEC Scenario Calculator | B1: Initial Situation | C1: 2018
A2: Neighbourhood | B2: =MainPage!B2 -> Grønneberg
A3: Buildings
H4: Energy performance | O4: Thermal Energy supply system | AO4: Renewable energy production | AV4: Emission Data | AW4: Construction site data
N5: Heating | X5: Hot Water | AG5: Cooling | AO5: Solar Thermal (surplus) | AR5: Solar PV (total) | AV5: Materials | AW5: Construction Machines | AX5: Thermal energy
A6: Building | B6: Category | C6: Year of construction | D6: Area [m2] | E6: Ownership | F6: residents/ employees [#] | G6: Res above 13y/ Other Users [#] | H6: Energy certificate | I6: Performance input | J6: Heating [kWh/m2] | K6: Hot Water [kWh/m2] | L6: Cooling [kWh/m2] | M6: Electricity [kWh/m2] | N6: Source 1 | O6: Coverage [%] | P6: Efficiency/COP [-] | Q6: Source 2 | R6: Coverage [%] | S6: Efficiency/COP [-] | T6: Source 3 | U6: Coverage [%] | V6: Efficiency/COP [-] | W6: Source 1 | X6: Coverage [%] | Y6: Efficiency/ COP [%] | Z6: Source 2 | AA6: Coverage [%] | AB6: Efficiency/ COP [%] | AC6: Source 3 | AD6: Coverage [%] | AE6: Efficiency/COP [%] | AF6: Source 1 | AG6: Coverage [%] | AH6: Efficiency/COP [-] | AI6: Source 2 | AJ6: Coverage [%] | AK6: Efficiency/COP [%] | AL6: Source 3 | AM6: Coverage [%] | AN6: Efficiency/COP [%] | AO6: Size [m2] | AP6: Peak production [kWp] | AQ6: Yearly production [kWh] | AR6: Size [m2] | AS6: Input type | AT6: Peak production [kWp] | AU6: Yearly production [kWh] | AV6: Life cycle emission [tCO2 eqv./y] | AW6: Fuel | AX6: Fuel
A7: Butikken | B7: Comercial building | C7: 1995 | D7: 500 | E7: Private | F7: 10 | G7: 250 | H7: E | I7: TEK 87 | J7: 140.6 | K7: 10 | L7: 46.4 | M7: 160.7 | N7: District Heating | O7: 1 | P7: 0.86583 | Z7: District Heating | AA7: 1 | AB7: 0.54684 | AF7: Local Chiller | AG7: 1 | AH7: 2.45
A8: Skolen | B8: School | C8: 1975 | D8: 3500 | E8: Public | F8: 20 | G8: 200 | H8: G | I8: TEK 69 | J8: 196.6 | K8: 10 | L8: 0 | M8: 59.6 | N8: Oil boiler | O8: 1 | P8: 0.767125 | Z8: Oil boiler | AA8: 1 | AB8: 0.4845
A9: Skolen idrettshall | B9: Sports Facility | C9: 1975 | D9: 7000 | E9: Public | F9: 6 | G9: 200 | H9: G | I9: TEK 69 | J9: 301.5 | K9: 50 | L9: 0 | M9: 61 | N9: Oil boiler | O9: 1 | P9: 0.767125 | Z9: Oil boiler | AA9: 1 | AB9: 0.4845
A10: Rekkehusene | B10: Residential individual housing | C10: 1980 | D10: =150*120 -> 18000 | E10: Housing cooperative | F10: =2.2*150 -> 330 | G10: =0.84*F10 -> 277.2 | H10: F | I10: TEK 69 | J10: 98.5125 | K10: 25 | L10: 0 | M10: 29.4875 | N10: Electric heater | O10: 0.85 | P10: 0.88209 | Q10: Wood-burning Stove | R10: 0.15 | S10: 0.64 | Z10: Electric water heater | AA10: 1 | AB10: 0.58212
J11: 0 | K11: 0 | L11: 0 | M11: 0
A13: Street Utilities
A14: General description | D14: Energy performance
A15: Outdoor lighting | B15: Year of installation | C15: # units | D15: Energy performance Category | E15: Energy consumption [kWh/unit]
A16: Utendørsbelysning | B16: 1980 | C16: 500 | D16: Low efficiency | E16: 550
A18: Snow Melt Systems | B18: Year of installation | C18: Size [m2] | D18: Energy performance Category | E18: Energy consumption [kWh/m2] | F18: Energy source | G18: Efficiency/COP [-]
A19: Snøsmeltesystem skole og fotballbane | B19: 1980 | C19: 200 | D19: Low efficiency | E19: 350 | F19: Electric heater | G19: 0.88209
A22: Local energy plant
A23: Energy Source | E23: Heating to District Heating system | G23: Cooling to District Cooling system | I23: Electricity to grid
A24: Type | B24: Energy Source | C24: CO2 Emission [g/kWh] | D24: Efficiceny [%] | E24: Capacity [kW] | F24: Production [kWh] | G24: Capacity [kW] | H24: Production [kWh] | I24: Capacity [kW] | J24: Production [kWh]
A28: District Heating
A29: Energy Source | E29: Distribution
A30: Heat Source | B30: Coverage [%] | C30: CO2 Emission [g/kWh] | D30: Production efficiency [%] | E30: Distribution losses
A31: Electricity | B31: 0.29 | C31: 123 | D31: 0.95 | E31: 0.1
A32: Heat Pump | C32: 123 | D32: 3.125
A33: Solar Collector | C33: 0 | D33: 1
A34: Waste Heat | C34: 0 | D34: 0.9
A35: Waste Incineration | B35: 0.4 | C35: 11 | D35: 0.9
A36: Wood Chips | B36: 0.3 | C36: 18 | D36: 0.9
A37: Pellets | C37: 19 | D37: 0.9
A38: Bio-oil | C38: 10 | D38: 0.9
A39: Bio-gas | C39: 10 | D39: 0.9
A40: Fossile Oil | B40: 0.01 | C40: 268 | D40: 0.9
A41: LPG | C41: 235 | D41: 0.9
A44: Transport
A45: Population | E45: Trip Generation | K45: Travel method distribution | Q45: Location: | S45: Oslo | AC45: Parking Capacity
E46: Users | J46: Other Users | K46: Work | N46: Service | Q46: Private errand | T46: Other | W46: Average distance | Y46: # passengers | AB46: Public Transport | AC46: Factor | AD46: Distribution of reduction
A47: Building Category | B47: Area [m2] | C47: residents/ employees [#] | D47: Res above 13y/ Other Users [#] | E47: Work | F47: Service | G47: Private errand | H47: Utside Service | I47: Goods transport | K47: Walk/bike | L47: Public transport | M47: Car | N47: Walk/bike | O47: Public transport | P47: Car | Q47: Walk/bike | R47: Public transport | S47: Car | T47: Walk/bike | U47: Public transport | V47: Car | W47: Public Transport | X47: Car | Y47: Buss | Z47: Rail | AA47: Car | AB47: % using track | AC47: 1-0 | AD47: Walk/ Bike | AE47: Public Transport | AF47: Car sharing
A48: Residential individual housing | B48: =SUMIF(BuildingCategoryRange,A48,BuildingAreaRange) -> 18000 | C48: =SUMIF(BuildingCategoryRange,A48,BuildingResidentsRange) -> 330 | D48: =SUMIF(BuildingCategoryRange,A48,BuildingUserRange) -> 277.2 | E48: 0.8 | F48: 0.1 | G48: 1 | H48: 1.7 | I48: 0.1 | J48: 0 | K48: 0.19 | L48: 0.47 | M48: 0.34 | N48: 0.19 | O48: 0.29 | P48: 0.52 | Q48: 0.42 | R48: 0.21 | S48: 0.37 | T48: 0.43 | U48: 0.26 | V48: 0.31 | W48: 13.8 | X48: 16 | Y48: 19.4 | Z48: 15.7 | AA48: 1.3 | AB48: 0.6 | AC48: =NA() ->  | AD48: =NA() ->  | AE48: =NA() ->  | AF48: =NA() -> 
A49: Residential apartment building | B49: 0 | C49: 0 | D49: 0 | E49: 0.8 | F49: 0.1 | G49: 1 | H49: 1.7 | I49: 0.1 | J49: 0 | K49: 0.19 | L49: 0.47 | M49: 0.34 | N49: 0.19 | O49: 0.29 | P49: 0.52 | Q49: 0.42 | R49: 0.21 | S49: 0.37 | T49: 0.43 | U49: 0.26 | V49: 0.31 | W49: 13.8 | X49: 16 | Y49: 19.4 | Z49: 15.7 | AA49: 1.3 | AB49: 0.6 | AC49: =NA() ->  | AD49: =NA() ->  | AE49: =NA() ->  | AF49: =NA() -> 
A50: Office building | B50: 0 | C50: 0 | D50: 0 | E50: 1.6 | F50: 0.6 | G50: 0.2 | H50: 0.1 | I50: 0.2 | J50: 1.43 | K50: 0.19 | L50: 0.47 | M50: 0.34 | N50: 0.19 | O50: 0.29 | P50: 0.52 | Q50: 0.42 | R50: 0.21 | S50: 0.37 | T50: 0.43 | U50: 0.26 | V50: 0.31 | W50: 13.8 | X50: 16 | Y50: 19.4 | Z50: 15.7 | AA50: 1.3 | AB50: 0.6 | AC50: 1 | AD50: 0.15 | AE50: 0.75 | AF50: 0.1
A51: Kindergarten | B51: 0 | C51: 0 | D51: 0 | E51: 1.6 | F51: 0.6 | G51: 0.2 | H51: 0.1 | I51: 0.2 | J51: 0.79 | K51: 0.19 | L51: 0.47 | M51: 0.34 | N51: 0.19 | O51: 0.29 | P51: 0.52 | Q51: 0.42 | R51: 0.21 | S51: 0.37 | T51: 0.43 | U51: 0.26 | V51: 0.31 | W51: 13.8 | X51: 16 | Y51: 19.4 | Z51: 15.7 | AA51: 1.3 | AB51: 0.6 | AC51: 1 | AD51: 0.15 | AE51: 0.75 | AF51: 0.1
A52: School | B52: 3500 | C52: 20 | D52: 200 | E52: 1.6 | F52: 0.6 | G52: 0.2 | H52: 0.1 | I52: 0.2 | J52: 0.83 | K52: 0.19 | L52: 0.47 | M52: 0.34 | N52: 0.19 | O52: 0.29 | P52: 0.52 | Q52: 0.42 | R52: 0.21 | S52: 0.37 | T52: 0.43 | U52: 0.26 | V52: 0.31 | W52: 13.8 | X52: 16 | Y52: 19.4 | Z52: 15.7 | AA52: 1.3 | AB52: 0.6 | AC52: 1 | AD52: 0.15 | AE52: 0.75 | AF52: 0.1
A53: University/Collage | B53: 0 | C53: 0 | D53: 0 | E53: 1.6 | F53: 0.6 | G53: 0.2 | H53: 0.1 | I53: 0.2 | J53: 0.83 | K53: 0.19 | L53: 0.47 | M53: 0.34 | N53: 0.19 | O53: 0.29 | P53: 0.52 | Q53: 0.42 | R53: 0.21 | S53: 0.37 | T53: 0.43 | U53: 0.26 | V53: 0.31 | W53: 13.8 | X53: 16 | Y53: 19.4 | Z53: 15.7 | AA53: 1.3 | AB53: 0.6 | AC53: 1 | AD53: 0.15 | AE53: 0.75 | AF53: 0.1
A54: Hospital | B54: 0 | C54: 0 | D54: 0 | E54: 1.6 | F54: 0.6 | G54: 0.2 | H54: 0.1 | I54: 0.2 | J54: 2 | K54: 0.19 | L54: 0.47 | M54: 0.34 | N54: 0.19 | O54: 0.29 | P54: 0.52 | Q54: 0.42 | R54: 0.21 | S54: 0.37 | T54: 0.43 | U54: 0.26 | V54: 0.31 | W54: 13.8 | X54: 16 | Y54: 19.4 | Z54: 15.7 | AA54: 1.3 | AB54: 0.6 | AC54: 1 | AD54: 0.15 | AE54: 0.75 | AF54: 0.1
A55: Nursing home | B55: 0 | C55: 0 | D55: 0 | E55: 1.6 | F55: 0.6 | G55: 0.2 | H55: 0.1 | I55: 0.2 | J55: 2 | K55: 0.19 | L55: 0.47 | M55: 0.34 | N55: 0.19 | O55: 0.29 | P55: 0.52 | Q55: 0.42 | R55: 0.21 | S55: 0.37 | T55: 0.43 | U55: 0.26 | V55: 0.31 | W55: 13.8 | X55: 16 | Y55: 19.4 | Z55: 15.7 | AA55: 1.3 | AB55: 0.6 | AC55: 1 | AD55: 0.15 | AE55: 0.75 | AF55: 0.1
A56: Hotel | B56: 0 | C56: 0 | D56: 0 | E56: 1.6 | F56: 0.6 | G56: 0.2 | H56: 0.1 | I56: 0.2 | J56: 2.45 | K56: 0.19 | L56: 0.47 | M56: 0.34 | N56: 0.19 | O56: 0.29 | P56: 0.52 | Q56: 0.42 | R56: 0.21 | S56: 0.37 | T56: 0.43 | U56: 0.26 | V56: 0.31 | W56: 13.8 | X56: 16 | Y56: 19.4 | Z56: 15.7 | AA56: 1.3 | AB56: 0.6 | AC56: 1 | AD56: 0.15 | AE56: 0.75 | AF56: 0.1
A57: Sports Facility | B57: 7000 | C57: 6 | D57: 200 | E57: 1.6 | F57: 0.6 | G57: 0.2 | H57: 0.1 | I57: 0.2 | J57: 0 | K57: 0.19 | L57: 0.47 | M57: 0.34 | N57: 0.19 | O57: 0.29 | P57: 0.52 | Q57: 0.42 | R57: 0.21 | S57: 0.37 | T57: 0.43 | U57: 0.26 | V57: 0.31 | W57: 13.8 | X57: 16 | Y57: 19.4 | Z57: 15.7 | AA57: 1.3 | AB57: 0.6 | AC57: 1 | AD57: 0.15 | AE57: 0.75 | AF57: 0.1
A58: Comercial building | B58: 500 | C58: 10 | D58: 250 | E58: 1.6 | F58: 0.2 | G58: 0.1 | H58: 0.1 | I58: 1 | J58: 1.65 | K58: 0.19 | L58: 0.47 | M58: 0.34 | N58: 0.19 | O58: 0.29 | P58: 0.52 | Q58: 0.42 | R58: 0.21 | S58: 0.37 | T58: 0.43 | U58: 0.26 | V58: 0.31 | W58: 13.8 | X58: 16 | Y58: 19.4 | Z58: 15.7 | AA58: 1.3 | AB58: 0.6 | AC58: 1 | AD58: 0.15 | AE58: 0.75 | AF58: 0.1
A59: Cultural building | B59: 0 | C59: 0 | D59: 0 | E59: 1.6 | F59: 0.6 | G59: 0.2 | H59: 0.1 | I59: 0.2 | J59: 1.65 | K59: 0.19 | L59: 0.47 | M59: 0.34 | N59: 0.19 | O59: 0.29 | P59: 0.52 | Q59: 0.42 | R59: 0.21 | S59: 0.37 | T59: 0.43 | U59: 0.26 | V59: 0.31 | W59: 13.8 | X59: 16 | Y59: 19.4 | Z59: 15.7 | AA59: 1.3 | AB59: 0.6 | AC59: 1 | AD59: 0.15 | AE59: 0.75 | AF59: 0.1
A60: Industry/Workshop | B60: 0 | C60: 0 | D60: 0 | E60: 1.6 | F60: 0.2 | G60: 0.1 | H60: 0.1 | I60: 1 | J60: 0 | K60: 0.19 | L60: 0.47 | M60: 0.34 | N60: 0.19 | O60: 0.29 | P60: 0.52 | Q60: 0.42 | R60: 0.21 | S60: 0.37 | T60: 0.43 | U60: 0.26 | V60: 0.31 | W60: 13.8 | X60: 16 | Y60: 19.4 | Z60: 15.7 | AA60: 1.3 | AB60: 0.6 | AC60: 1 | AD60: 0.15 | AE60: 0.75 | AF60: 0.1
B62: Energy intensity | D62: CO2 emission factors | F62: Share of travels
A63: Means of transport | B63: Fossile [kwh/vkm] | C63: Electric [kWh/vkm] | D63: Fossile [g/vkm] | E63: Electric [g/vkm] | F63: % Electric
A64: Buss | B64: 3.691032407 | C64: 1.28 | D64: 1166.366241 | E64: 157.44 | F64: 0.01
A65: Rail | B65: 14.5 | C65: 2.2 | D65: 4582 | E65: 270.6 | F65: 1
A66: Car | B66: 0.6264861111 | C66: 0.17 | D66: 200.6153802 | E66: 20.91 | F66: 0.06
A67: Truck | B67: 0.7483194444 | C67: 0.6 | D67: 236.4689444 | E67: 73.8 | F67: 0.02
A68: Emission boundary: | B68: Direct emissions and fuel production emissions
A69: Fossil rail method: | B69: Diesel train
A70: Electric rail method in standard values: | B70: Metro (Oslo)

Sheet Baseline
A1: =MainPage!A1 -> PI-SEC Scenario Calculator | B1: Baseline | C1: =ProjectEnd -> 2030
A2: Neighbourhood | B2: =MainPage!B2 -> Grønneberg
A3: Buildings
H4: Energy performance | O4: Thermal Energy supply system | AO4: Renewable energy production | AV4: Emission Data | AW4: Construction site data
N5: Heating | X5: Hot Water | AG5: Cooling | AO5: Solar Thermal (surplus) | AR5: Solar PV (total) | AV5: Materials | AW5: Construction Machines | AX5: Thermal energy
A6: Building | B6: Category | C6: Year of construction | D6: Area [m2] | E6: Ownership | F6: residents/ employees [#] | G6: Res above 13y/ Other Users [#] | H6: Energy certificate | I6: Performance input | J6: Heating [kWh/m2] | K6: Hot Water [kWh/m2] | L6: Cooling [kWh/m2] | M6: Electricity [kWh/m2] | N6: Source 1 | O6: Coverage [%] | P6: Efficiency/COP [-] | Q6: Source 2 | R6: Coverage [%] | S6: Efficiency/COP [-] | T6: Source 3 | U6: Coverage [%] | V6: Efficiency/COP [-] | W6: Source 1 | X6: Coverage [%] | Y6: Efficiency/ COP [%] | Z6: Source 2 | AA6: Coverage [%] | AB6: Efficiency/ COP [%] | AC6: Source 3 | AD6: Coverage [%] | AE6: Efficiency/COP [%] | AF6: Source 1 | AG6: Coverage [%] | AH6: Efficiency/COP [-] | AI6: Source 2 | AJ6: Coverage [%] | AK6: Efficiency/COP [%] | AL6: Source 3 | AM6: Coverage [%] | AN6: Efficiency/COP [%] | AO6: Size [m2] | AP6: Peak production [kWp] | AQ6: Yearly production [kWh] | AR6: Size [m2] | AS6: Input type | AT6: Peak production [kWp] | AU6: Yearly production [kWh] | AV6: Life cycle emission [tCO2 eqv./y] | AW6: Fuel | AX6: Fuel
A7: Butikken | B7: Comercial building | C7: 1995 | D7: 500 | E7: Private | F7: 10 | G7: 250 | H7: E | I7: TEK 87 | J7: 140.6 | K7: 10 | L7: 46.4 | M7: 160.7 | N7: District Heating | O7: 1 | P7: 0.86583 | W7: District Heating | X7: 1 | Y7: 0.54684 | AF7: Local Chiller | AG7: 1 | AH7: 2.45
A8: Skolen | B8: School | C8: 1975 | D8: 3500 | E8: Public | F8: 20 | G8: 200 | H8: G | I8: TEK 69 | J8: 196.6 | K8: 10 | L8: 0 | M8: 59.6 | N8: District Heating | O8: 1 | P8: 0.86583 | W8: District Heating | X8: 1 | Y8: 0.54684
A9: Skolen idrettshall | B9: Sports Facility | C9: 1975 | D9: 7000 | E9: Public | F9: 6 | G9: 200 | H9: G | I9: TEK 69 | J9: 301.5 | K9: 50 | L9: 0 | M9: 61 | N9: District Heating | O9: 1 | P9: 0.86583 | W9: District Heating | X9: 1 | Y9: 0.54684
A10: Rekkehusene | B10: Residential individual housing | C10: 1980 | D10: =150*120 -> 18000 | E10: Housing cooperative | F10: =2.2*150 -> 330 | G10: =0.84*F10 -> 277.2 | H10: F | I10: TEK 69 | J10: 98.5125 | K10: 25 | L10: 0 | M10: 29.4875 | N10: Electric heater | O10: 0.85 | P10: 0.88209 | Q10: Wood-burning Stove | R10: 0.15 | S10: 0.64 | W10: Electric water heater | X10: 1 | Y10: 0.58212
A11: Grønneberg sykehjem | B11: Nursing home | C11: 2025 | D11: 8000 | E11: Public | F11: 200 | G11: 150 | H11: C | I11: TEK 17 | J11: 90.95335455 | K11: 30 | L11: 0 | M11: 109.0466454 | N11: District Heating | O11: 1 | P11: 0.86583 | W11: District Heating | X11: 1 | Y11: 0.54684
J12: 0 | K12: 0 | L12: 0 | M12: 0
A14: Street Utilities
A15: General description | D15: Energy performance
A16: Outdoor lighting | B16: Year of installation | C16: # units | D16: Energy performance Category | E16: Energy consumption [kWh/unit]
A17: Utendørsbelysning | B17: 1980 | C17: 500 | D17: Low efficiency | E17: 550
A19: Snow Melt Systems | B19: Year of installation | C19: Size [m2] | D19: Energy performance Category | E19: Energy consumption [kWh/m2] | F19: Energy source | G19: Efficiency/COP [-]
A20: Snøsmeltesystem skole og fotballbane | B20: 1980 | C20: 200 | D20: Low efficiency | E20: 350 | F20: Electric heater | G20: 0.88209
A23: Local energy plant
A24: Energy Source | E24: Heating to District Heating system | G24: Cooling to District Cooling system | I24: Electricity to grid
A25: Type | B25: Energy Source | C25: CO2 Emission [g/kWh] | D25: Efficiceny [%] | E25: Capacity [kW] | F25: Production [kWh] | G25: Capacity [kW] | H25: Production [kWh] | I25: Capacity [kW] | J25: Production [kWh]
A29: District Heating
A30: Energy Source | E30: Distribution
A31: Heat Source | B31: Coverage [%] | C31: CO2 Emission [g/kWh] | D31: Production efficiency [%] | E31: Distribution losses
A32: Electricity | B32: 0.29 | C32: 123 | D32: 0.95 | E32: 0.1
A33: Heat Pump | C33: 123 | D33: 3.125
A34: Solar Collector | C34: 0 | D34: 1
A35: Waste Heat | C35: 0 | D35: 0.9
A36: Waste Incineration | B36: 0.4 | C36: 11 | D36: 0.9
A37: Wood Chips | B37: 0.31 | C37: 18 | D37: 0.9
A38: Pellets | C38: 19 | D38: 0.9
A39: Bio-oil | C39: 10 | D39: 0.9
A40: Bio-gas | C40: 10 | D40: 0.9
A41: Fossile Oil | C41: 268 | D41: 0.9
A42: LPG | C42: 235 | D42: 0.9
A45: Transport
A46: Population | E46: Trip Generation | K46: Travel method distribution | Q46: Location: | S46: Oslo | AC46: Parking Capacity
E47: Users | J47: Other Users | K47: Work | N47: Service | Q47: Private errand | T47: Other | W47: Average distance | Y47: # passengers | AB47: Public Transport | AC47: Factor | AD47: Distribution of reduction
A48: Building Category | B48: Area [m2] | C48: residents/ employees [#] | D48: Res above 13y/ Other Users [#] | E48: Work | F48: Service | G48: Private errand | H48: Utside Service | I48: Goods transport | K48: Walk/bike | L48: Public transport | M48: Car | N48: Walk/bike | O48: Public transport | P48: Car | Q48: Walk/bike | R48: Public transport | S48: Car | T48: Walk/bike | U48: Public transport | V48: Car | W48: Public Transport | X48: Car | Y48: Buss | Z48: Rail | AA48: Car | AB48: % using track | AC48: 1-0 | AD48: Walk/ Bike | AE48: Public Transport | AF48: Car sharing
A49: Residential individual housing | B49: =SUMIF(BuildingCategoryRange,A49,BuildingAreaRange) -> 18000 | C49: =SUMIF(BuildingCategoryRange,A49,BuildingResidentsRange) -> 330 | D49: =SUMIF(BuildingCategoryRange,A49,BuildingUserRange) -> 277.2 | E49: 0.8 | F49: 0.1 | G49: 1 | H49: 1.7 | I49: 0.1 | J49: 0 | K49: 0.19 | L49: 0.47 | M49: 0.34 | N49: 0.19 | O49: 0.29 | P49: 0.52 | Q49: 0.42 | R49: 0.21 | S49: 0.37 | T49: 0.43 | U49: 0.26 | V49: 0.31 | W49: 13.8 | X49: 16 | Y49: 19.4 | Z49: 15.7 | AA49: 1.3 | AB49: 0.6 | AC49: =NA() ->  | AD49: =NA() ->  | AE49: =NA() ->  | AF49: =NA() -> 
A50: Residential apartment building | B50: 0 | C50: 0 | D50: 0 | E50: 0.8 | F50: 0.1 | G50: 1 | H50: 1.7 | I50: 0.1 | J50: 0 | K50: 0.19 | L50: 0.47 | M50: 0.34 | N50: 0.19 | O50: 0.29 | P50: 0.52 | Q50: 0.42 | R50: 0.21 | S50: 0.37 | T50: 0.43 | U50: 0.26 | V50: 0.31 | W50: 13.8 | X50: 16 | Y50: 19.4 | Z50: 15.7 | AA50: 1.3 | AB50: 0.6 | AC50: =NA() ->  | AD50: =NA() ->  | AE50: =NA() ->  | AF50: =NA() -> 
A51: Office building | B51: 0 | C51: 0 | D51: 0 | E51: 1.6 | F51: 0.6 | G51: 0.2 | H51: 0.1 | I51: 0.2 | J51: 1.43 | K51: 0.19 | L51: 0.47 | M51: 0.34 | N51: 0.19 | O51: 0.29 | P51: 0.52 | Q51: 0.42 | R51: 0.21 | S51: 0.37 | T51: 0.43 | U51: 0.26 | V51: 0.31 | W51: 13.8 | X51: 16 | Y51: 19.4 | Z51: 15.7 | AA51: 1.3 | AB51: 0.6 | AC51: 1 | AD51: 0.15 | AE51: 0.75 | AF51: 0.1
A52: Kindergarten | B52: 0 | C52: 0 | D52: 0 | E52: 1.6 | F52: 0.6 | G52: 0.2 | H52: 0.1 | I52: 0.2 | J52: 0.79 | K52: 0.19 | L52: 0.47 | M52: 0.34 | N52: 0.19 | O52: 0.29 | P52: 0.52 | Q52: 0.42 | R52: 0.21 | S52: 0.37 | T52: 0.43 | U52: 0.26 | V52: 0.31 | W52: 13.8 | X52: 16 | Y52: 19.4 | Z52: 15.7 | AA52: 1.3 | AB52: 0.6 | AC52: 1 | AD52: 0.15 | AE52: 0.75 | AF52: 0.1
A53: School | B53: 3500 | C53: 20 | D53: 200 | E53: 1.6 | F53: 0.6 | G53: 0.2 | H53: 0.1 | I53: 0.2 | J53: 0.83 | K53: 0.19 | L53: 0.47 | M53: 0.34 | N53: 0.19 | O53: 0.29 | P53: 0.52 | Q53: 0.42 | R53: 0.21 | S53: 0.37 | T53: 0.43 | U53: 0.26 | V53: 0.31 | W53: 13.8 | X53: 16 | Y53: 19.4 | Z53: 15.7 | AA53: 1.3 | AB53: 0.6 | AC53: 1 | AD53: 0.15 | AE53: 0.75 | AF53: 0.1
A54: University/Collage | B54: 0 | C54: 0 | D54: 0 | E54: 1.6 | F54: 0.6 | G54: 0.2 | H54: 0.1 | I54: 0.2 | J54: 0.83 | K54: 0.19 | L54: 0.47 | M54: 0.34 | N54: 0.19 | O54: 0.29 | P54: 0.52 | Q54: 0.42 | R54: 0.21 | S54: 0.37 | T54: 0.43 | U54: 0.26 | V54: 0.31 | W54: 13.8 | X54: 16 | Y54: 19.4 | Z54: 15.7 | AA54: 1.3 | AB54: 0.6 | AC54: 1 | AD54: 0.15 | AE54: 0.75 | AF54: 0.1
A55: Hospital | B55: 0 | C55: 0 | D55: 0 | E55: 1.6 | F55: 0.6 | G55: 0.2 | H55: 0.1 | I55: 0.2 | J55: 2 | K55: 0.19 | L55: 0.47 | M55: 0.34 | N55: 0.19 | O55: 0.29 | P55: 0.52 | Q55: 0.42 | R55: 0.21 | S55: 0.37 | T55: 0.43 | U55: 0.26 | V55: 0.31 | W55: 13.8 | X55: 16 | Y55: 19.4 | Z55: 15.7 | AA55: 1.3 | AB55: 0.6 | AC55: 1 | AD55: 0.15 | AE55: 0.75 | AF55: 0.1
A56: Nursing home | B56: 8000 | C56: 200 | D56: 150 | E56: 1.6 | F56: 0.6 | G56: 0.2 | H56: 0.1 | I56: 0.2 | J56: 2 | K56: 0.19 | L56: 0.47 | M56: 0.34 | N56: 0.19 | O56: 0.29 | P56: 0.52 | Q56: 0.42 | R56: 0.21 | S56: 0.37 | T56: 0.43 | U56: 0.26 | V56: 0.31 | W56: 13.8 | X56: 16 | Y56: 19.4 | Z56: 15.7 | AA56: 1.3 | AB56: 0.6 | AC56: 1 | AD56: 0.15 | AE56: 0.75 | AF56: 0.1
A57: Hotel | B57: 0 | C57: 0 | D57: 0 | E57: 1.6 | F57: 0.6 | G57: 0.2 | H57: 0.1 | I57: 0.2 | J57: 2.45 | K57: 0.19 | L57: 0.47 | M57: 0.34 | N57: 0.19 | O57: 0.29 | P57: 0.52 | Q57: 0.42 | R57: 0.21 | S57: 0.37 | T57: 0.43 | U57: 0.26 | V57: 0.31 | W57: 13.8 | X57: 16 | Y57: 19.4 | Z57: 15.7 | AA57: 1.3 | AB57: 0.6 | AC57: 1 | AD57: 0.15 | AE57: 0.75 | AF57: 0.1
A58: Sports Facility | B58: 7000 | C58: 6 | D58: 200 | E58: 1.6 | F58: 0.6 | G58: 0.2 | H58: 0.1 | I58: 0.2 | J58: 0 | K58: 0.19 | L58: 0.47 | M58: 0.34 | N58: 0.19 | O58: 0.29 | P58: 0.52 | Q58: 0.42 | R58: 0.21 | S58: 0.37 | T58: 0.43 | U58: 0.26 | V58: 0.31 | W58: 13.8 | X58: 16 | Y58: 19.4 | Z58: 15.7 | AA58: 1.3 | AB58: 0.6 | AC58: 1 | AD58: 0.15 | AE58: 0.75 | AF58: 0.1
A59: Comercial building | B59: 500 | C59: 10 | D59: 250 | E59: 1.6 | F59: 0.2 | G59: 0.1 | H59: 0.1 | I59: 1 | J59: 1.65 | K59: 0.19 | L59: 0.47 | M59: 0.34 | N59: 0.19 | O59: 0.29 | P59: 0.52 | Q59: 0.42 | R59: 0.21 | S59: 0.37 | T59: 0.43 | U59: 0.26 | V59: 0.31 | W59: 13.8 | X59: 16 | Y59: 19.4 | Z59: 15.7 | AA59: 1.3 | AB59: 0.6 | AC59: 1 | AD59: 0.15 | AE59: 0.75 | AF59: 0.1
A60: Cultural building | B60: 0 | C60: 0 | D60: 0 | E60: 1.6 | F60: 0.6 | G60: 0.2 | H60: 0.1 | I60: 0.2 | J60: 1.65 | K60: 0.19 | L60: 0.47 | M60: 0.34 | N60: 0.19 | O60: 0.29 | P60: 0.52 | Q60: 0.42 | R60: 0.21 | S60: 0.37 | T60: 0.43 | U60: 0.26 | V60: 0.31 | W60: 13.8 | X60: 16 | Y60: 19.4 | Z60: 15.7 | AA60: 1.3 | AB60: 0.6 | AC60: 1 | AD60: 0.15 | AE60: 0.75 | AF60: 0.1
A61: Industry/Workshop | B61: 0 | C61: 0 | D61: 0 | E61: 1.6 | F61: 0.2 | G61: 0.1 | H61: 0.1 | I61: 1 | J61: 0 | K61: 0.19 | L61: 0.47 | M61: 0.34 | N61: 0.19 | O61: 0.29 | P61: 0.52 | Q61: 0.42 | R61: 0.21 | S61: 0.37 | T61: 0.43 | U61: 0.26 | V61: 0.31 | W61: 13.8 | X61: 16 | Y61: 19.4 | Z61: 15.7 | AA61: 1.3 | AB61: 0.6 | AC61: 1 | AD61: 0.15 | AE61: 0.75 | AF61: 0.1
B63: Energy intensity | D63: CO2 emission factors | F63: Share of travels
A64: Means of transport | B64: Fossile [kwh/vkm] | C64: Electric [kWh/vkm] | D64: Fossile [g/vkm] | E64: Electric [g/vkm] | F64: % Electric | Z64: =COUNTBLANK(TransportRailPassengersNumberRange) -> 0
A65: Buss | B65: 3.691032407 | C65: 1.28 | D65: 1166.366241 | E65: 157.44 | F65: 0.05 | Z65: =COUNT(TransportRailPassengersNumberRange) -> 13
A66: Rail | B66: 14.5 | C66: 2.2 | D66: 4582 | E66: 270.6 | F66: 1
A67: Car | B67: 0.6264861111 | C67: 0.17 | D67: 200.6153802 | E67: 20.91 | F67: 0.4
A68: Truck | B68: 0.7483194444 | C68: 0.6 | D68: 236.4689444 | E68: 73.8 | F68: 0.2
A69: Emission boundary: | B69: Direct emissions and fuel production emissions
A70: Fossil rail method: | B70: Diesel train
A71: Electric rail method in standard values: | B71: Metro (Oslo)

Sheet Scenario1
A1: =MainPage!A1 -> PI-SEC Scenario Calculator | B1: Scenario1 | C1: =ProjectEnd -> 2030
A2: Neighbourhood | B2: =MainPage!B2 -> Grønneberg
A3: Buildings
H4: Energy performance | O4: Thermal Energy supply system | AO4: Renewable energy production | AV4: Emission Data | AW4: Construction site data
N5: Heating | X5: Hot Water | AG5: Cooling | AO5: Solar Thermal (surplus) | AR5: Solar PV (total) | AV5: Materials | AW5: Construction Machines | AX5: Thermal energy
A6: Building | B6: Category | C6: Year of construction | D6: Area [m2] | E6: Ownership | F6: residents/ employees [#] | G6: Res above 13y/ Other Users [#] | H6: Energy certificate | I6: Performance input | J6: Heating [kWh/m2] | K6: Hot Water [kWh/m2] | L6: Cooling [kWh/m2] | M6: Electricity [kWh/m2] | N6: Source 1 | O6: Coverage [%] | P6: Efficiency/COP [-] | Q6: Source 2 | R6: Coverage [%] | S6: Efficiency/COP [-] | T6: Source 3 | U6: Coverage [%] | V6: Efficiency/COP [-] | W6: Source 1 | X6: Coverage [%] | Y6: Efficiency/ COP [%] | Z6: Source 2 | AA6: Coverage [%] | AB6: Efficiency/ COP [%] | AC6: Source 3 | AD6: Coverage [%] | AE6: Efficiency/COP [%] | AF6: Source 1 | AG6: Coverage [%] | AH6: Efficiency/COP [-] | AI6: Source 2 | AJ6: Coverage [%] | AK6: Efficiency/COP [%] | AL6: Source 3 | AM6: Coverage [%] | AN6: Efficiency/COP [%] | AO6: Size [m2] | AP6: Peak production [kWp] | AQ6: Yearly production [kWh] | AR6: Size [m2] | AS6: Input type | AT6: Peak production [kWp] | AU6: Yearly production [kWh] | AV6: Life cycle emission [tCO2 eqv./y] | AW6: Fuel | AX6: Fuel
A7: Butikken | B7: Comercial building | C7: 1995 | D7: 500 | E7: Private | F7: 10 | G7: 250 | H7: E | I7: TEK 87 | J7: 140.6 | K7: 10 | L7: 46.4 | M7: 160.7 | N7: District Heating | O7: 1 | P7: 0.86583 | W7: District Heating | X7: 1 | Y7: 0.54684 | AF7: Local Chiller | AG7: 1 | AH7: 2.45
A8: Skolen | B8: School | C8: 1975 | D8: 3500 | E8: Public | F8: 20 | G8: 200 | H8: A | I8: Passivhouse | J8: 20 | K8: 10 | L8: 0 | M8: 34.70708333 | N8: District Heating | O8: 1 | P8: 0.86583 | W8: District Heating | X8: 1 | Y8: 0.54684
A9: Skolen idrettshall | B9: Sports Facility | C9: 1975 | D9: 7000 | E9: Public | F9: 6 | G9: 200 | H9: A | I9: Passivhouse | J9: 20 | K9: 50 | L9: 0 | M9: 28.8271875 | N9: District Heating | O9: 1 | P9: 0.86583 | W9: District Heating | X9: 1 | Y9: 0.54684
A10: Rekkehusene | B10: Residential individual housing | C10: 1980 | D10: =150*120 -> 18000 | E10: Housing cooperative | F10: =2.2*150 -> 330 | G10: =0.84*F10 -> 277.2 | H10: F | I10: TEK 69 | J10: 98.5125 | K10: 25 | L10: 0 | M10: 29.4875 | N10: Electric heater | O10: 0.85 | P10: 0.88209 | Q10: Wood-burning Stove | R10: 0.15 | S10: 0.64 | W10: Electric water heater | X10: 1 | Y10: 0.58212
A11: Grønneberg sykehjem | B11: Nursing home | C11: 2025 | D11: 8000 | E11: Public | F11: 200 | G11: 150 | H11: A | I11: Passivhouse | J11: 20 | K11: 30 | L11: 0 | M11: 75.41916667 | N11: District Heating | O11: 1 | P11: 0.86583 | W11: District Heating | X11: 1 | Y11: 0.54684 | AR11: 125 | AS11: Auto | AT11: 20 | AU11: 20000
J12: 0 | K12: 0 | L12: 0 | M12: 0
A14: Street Utilities
A15: General description | D15: Energy performance
A16: Outdoor lighting | B16: Year of installation | C16: # units | D16: Energy performance Category | E16: Energy consumption [kWh/unit]
A17: Utendørsbelysning | B17: 1980 | C17: 500 | D17: Low efficiency | E17: 550
A19: Snow Melt Systems | B19: Year of installation | C19: Size [m2] | D19: Energy performance Category | E19: Energy consumption [kWh/m2] | F19: Energy source | G19: Efficiency/COP [-]
A20: Snøsmeltesystem skole og fotballbane | B20: 1980 | C20: 200 | D20: Low efficiency | E20: 350 | F20: Electric heater | G20: 0.88209
A23: Local energy plant
A24: Energy Source | E24: Heating to District Heating system | G24: Cooling to District Cooling system | I24: Electricity to grid
A25: Type | B25: Energy Source | C25: CO2 Emission [g/kWh] | D25: Efficiceny [%] | E25: Capacity [kW] | F25: Production [kWh] | G25: Capacity [kW] | H25: Production [kWh] | I25: Capacity [kW] | J25: Production [kWh]
A29: District Heating
A30: Energy Source | E30: Distribution
A31: Heat Source | B31: Coverage [%] | C31: CO2 Emission [g/kWh] | D31: Production efficiency [%] | E31: Distribution losses
A32: Electricity | B32: 0.29 | C32: 123 | D32: 0.95 | E32: 0.1
A33: Heat Pump | C33: 123 | D33: 3.125
A34: Solar Collector | C34: 0 | D34: 1
A35: Waste Heat | C35: 0 | D35: 0.9
A36: Waste Incineration | B36: 0.4 | C36: 11 | D36: 0.9
A37: Wood Chips | B37: 0.31 | C37: 18 | D37: 0.9
A38: Pellets | C38: 19 | D38: 0.9
A39: Bio-oil | C39: 10 | D39: 0.9
A40: Bio-gas | C40: 10 | D40: 0.9
A41: Fossile Oil | C41: 268 | D41: 0.9
A42: LPG | C42: 235 | D42: 0.9
A45: Transport
A46: Population | E46: Trip Generation | K46: Travel method distribution | Q46: Location: | S46: Oslo | AC46: Parking Capacity
E47: Users | J47: Other Users | K47: Work | N47: Service | Q47: Private errand | T47: Other | W47: Average distance | Y47: # passengers | AB47: Public Transport | AC47: Factor | AD47: Distribution of reduction
A48: Building Category | B48: Area [m2] | C48: residents/ employees [#] | D48: Res above 13y/ Other Users [#] | E48: Work | F48: Service | G48: Private errand | H48: Utside Service | I48: Goods transport | K48: Walk/bike | L48: Public transport | M48: Car | N48: Walk/bike | O48: Public transport | P48: Car | Q48: Walk/bike | R48: Public transport | S48: Car | T48: Walk/bike | U48: Public transport | V48: Car | W48: Public Transport | X48: Car | Y48: Buss | Z48: Rail | AA48: Car | AB48: % using track | AC48: 1-0 | AD48: Walk/ Bike | AE48: Public Transport | AF48: Car sharing
A49: Residential individual housing | B49: =SUMIF(BuildingCategoryRange,A49,BuildingAreaRange) -> 18000 | C49: =SUMIF(BuildingCategoryRange,A49,BuildingResidentsRange) -> 330 | D49: =SUMIF(BuildingCategoryRange,A49,BuildingUserRange) -> 277.2 | E49: 0.8 | F49: 0.1 | G49: 1 | H49: 1.7 | I49: 0.1 | J49: 0 | K49: 0.19 | L49: 0.47 | M49: 0.34 | N49: 0.19 | O49: 0.29 | P49: 0.52 | Q49: 0.42 | R49: 0.21 | S49: 0.37 | T49: 0.43 | U49: 0.26 | V49: 0.31 | W49: 13.8 | X49: 16 | Y49: 19.4 | Z49: 15.7 | AA49: 1.3 | AB49: 0.6 | AC49: =NA() ->  | AD49: =NA() ->  | AE49: =NA() ->  | AF49: =NA() -> 
A50: Residential apartment building | B50: 0 | C50: 0 | D50: 0 | E50: 0.8 | F50: 0.1 | G50: 1 | H50: 1.7 | I50: 0.1 | J50: 0 | K50: 0.19 | L50: 0.47 | M50: 0.34 | N50: 0.19 | O50: 0.29 | P50: 0.52 | Q50: 0.42 | R50: 0.21 | S50: 0.37 | T50: 0.43 | U50: 0.26 | V50: 0.31 | W50: 13.8 | X50: 16 | Y50: 19.4 | Z50: 15.7 | AA50: 1.3 | AB50: 0.6 | AC50: =NA() ->  | AD50: =NA() ->  | AE50: =NA() ->  | AF50: =NA() -> 
A51: Office building | B51: 0 | C51: 0 | D51: 0 | E51: 1.6 | F51: 0.6 | G51: 0.2 | H51: 0.1 | I51: 0.2 | J51: 1.43 | K51: 0.19 | L51: 0.47 | M51: 0.34 | N51: 0.19 | O51: 0.29 | P51: 0.52 | Q51: 0.42 | R51: 0.21 | S51: 0.37 | T51: 0.43 | U51: 0.26 | V51: 0.31 | W51: 13.8 | X51: 16 | Y51: 19.4 | Z51: 15.7 | AA51: 1.3 | AB51: 0.6 | AC51: 1 | AD51: 0.15 | AE51: 0.75 | AF51: 0.1
A52: Kindergarten | B52: 0 | C52: 0 | D52: 0 | E52: 1.6 | F52: 0.6 | G52: 0.2 | H52: 0.1 | I52: 0.2 | J52: 0.79 | K52: 0.19 | L52: 0.47 | M52: 0.34 | N52: 0.19 | O52: 0.29 | P52: 0.52 | Q52: 0.42 | R52: 0.21 | S52: 0.37 | T52: 0.43 | U52: 0.26 | V52: 0.31 | W52: 13.8 | X52: 16 | Y52: 19.4 | Z52: 15.7 | AA52: 1.3 | AB52: 0.6 | AC52: 1 | AD52: 0.15 | AE52: 0.75 | AF52: 0.1
A53: School | B53: 3500 | C53: 20 | D53: 200 | E53: 1.6 | F53: 0.6 | G53: 0.2 | H53: 0.1 | I53: 0.2 | J53: 0.83 | K53: 0.19 | L53: 0.47 | M53: 0.34 | N53: 0.19 | O53: 0.29 | P53: 0.52 | Q53: 0.42 | R53: 0.21 | S53: 0.37 | T53: 0.43 | U53: 0.26 | V53: 0.31 | W53: 13.8 | X53: 16 | Y53: 19.4 | Z53: 15.7 | AA53: 1.3 | AB53: 0.6 | AC53: 1 | AD53: 0.15 | AE53: 0.75 | AF53: 0.1
A54: University/Collage | B54: 0 | C54: 0 | D54: 0 | E54: 1.6 | F54: 0.6 | G54: 0.2 | H54: 0.1 | I54: 0.2 | J54: 0.83 | K54: 0.19 | L54: 0.47 | M54: 0.34 | N54: 0.19 | O54: 0.29 | P54: 0.52 | Q54: 0.42 | R54: 0.21 | S54: 0.37 | T54: 0.43 | U54: 0.26 | V54: 0.31 | W54: 13.8 | X54: 16 | Y54: 19.4 | Z54: 15.7 | AA54: 1.3 | AB54: 0.6 | AC54: 1 | AD54: 0.15 | AE54: 0.75 | AF54: 0.1
A55: Hospital | B55: 0 | C55: 0 | D55: 0 | E55: 1.6 | F55: 0.6 | G55: 0.2 | H55: 0.1 | I55: 0.2 | J55: 2 | K55: 0.19 | L55: 0.47 | M55: 0.34 | N55: 0.19 | O55: 0.29 | P55: 0.52 | Q55: 0.42 | R55: 0.21 | S55: 0.37 | T55: 0.43 | U55: 0.26 | V55: 0.31 | W55: 13.8 | X55: 16 | Y55: 19.4 | Z55: 15.7 | AA55: 1.3 | AB55: 0.6 | AC55: 1 | AD55: 0.15 | AE55: 0.75 | AF55: 0.1
A56: Nursing home | B56: 8000 | C56: 200 | D56: 150 | E56: 1.6 | F56: 0.6 | G56: 0.2 | H56: 0.1 | I56: 0.2 | J56: 2 | K56: 0.19 | L56: 0.47 | M56: 0.34 | N56: 0.19 | O56: 0.29 | P56: 0.52 | Q56: 0.42 | R56: 0.21 | S56: 0.37 | T56: 0.43 | U56: 0.26 | V56: 0.31 | W56: 13.8 | X56: 16 | Y56: 19.4 | Z56: 15.7 | AA56: 1.3 | AB56: 0.6 | AC56: 1 | AD56: 0.15 | AE56: 0.75 | AF56: 0.1
A57: Hotel | B57: 0 | C57: 0 | D57: 0 | E57: 1.6 | F57: 0.6 | G57: 0.2 | H57: 0.1 | I57: 0.2 | J57: 2.45 | K57: 0.19 | L57: 0.47 | M57: 0.34 | N57: 0.19 | O57: 0.29 | P57: 0.52 | Q57: 0.42 | R57: 0.21 | S57: 0.37 | T57: 0.43 | U57: 0.26 | V57: 0.31 | W57: 13.8 | X57: 16 | Y57: 19.4 | Z57: 15.7 | AA57: 1.3 | AB57: 0.6 | AC57: 1 | AD57: 0.15 | AE57: 0.75 | AF57: 0.1
A58: Sports Facility | B58: 7000 | C58: 6 | D58: 200 | E58: 1.6 | F58: 0.6 | G58: 0.2 | H58: 0.1 | I58: 0.2 | J58: 0 | K58: 0.19 | L58: 0.47 | M58: 0.34 | N58: 0.19 | O58: 0.29 | P58: 0.52 | Q58: 0.42 | R58: 0.21 | S58: 0.37 | T58: 0.43 | U58: 0.26 | V58: 0.31 | W58: 13.8 | X58: 16 | Y58: 19.4 | Z58: 15.7 | AA58: 1.3 | AB58: 0.6 | AC58: 1 | AD58: 0.15 | AE58: 0.75 | AF58: 0.1
A59: Comercial building | B59: 500 | C59: 10 | D59: 250 | E59: 1.6 | F59: 0.2 | G59: 0.1 | H59: 0.1 | I59: 1 | J59: 1.65 | K59: 0.19 | L59: 0.47 | M59: 0.34 | N59: 0.19 | O59: 0.29 | P59: 0.52 | Q59: 0.42 | R59: 0.21 | S59: 0.37 | T59: 0.43 | U59: 0.26 | V59: 0.31 | W59: 13.8 | X59: 16 | Y59: 19.4 | Z59: 15.7 | AA59: 1.3 | AB59: 0.6 | AC59: 1 | AD59: 0.15 | AE59: 0.75 | AF59: 0.1
A60: Cultural building | B60: 0 | C60: 0 | D60: 0 | E60: 1.6 | F60: 0.6 | G60: 0.2 | H60: 0.1 | I60: 0.2 | J60: 1.65 | K60: 0.19 | L60: 0.47 | M60: 0.34 | N60: 0.19 | O60: 0.29 | P60: 0.52 | Q60: 0.42 | R60: 0.21 | S60: 0.37 | T60: 0.43 | U60: 0.26 | V60: 0.31 | W60: 13.8 | X60: 16 | Y60: 19.4 | Z60: 15.7 | AA60: 1.3 | AB60: 0.6 | AC60: 1 | AD60: 0.15 | AE60: 0.75 | AF60: 0.1
A61: Industry/Workshop | B61: 0 | C61: 0 | D61: 0 | E61: 1.6 | F61: 0.2 | G61: 0.1 | H61: 0.1 | I61: 1 | J61: 0 | K61: 0.19 | L61: 0.47 | M61: 0.34 | N61: 0.19 | O61: 0.29 | P61: 0.52 | Q61: 0.42 | R61: 0.21 | S61: 0.37 | T61: 0.43 | U61: 0.26 | V61: 0.31 | W61: 13.8 | X61: 16 | Y61: 19.4 | Z61: 15.7 | AA61: 1.3 | AB61: 0.6 | AC61: 1 | AD61: 0.15 | AE61: 0.75 | AF61: 0.1
B63: Energy intensity | D63: CO2 emission factors | F63: Share of travels
A64: Means of transport | B64: Fossile [kwh/vkm] | C64: Electric [kWh/vkm] | D64: Fossile [g/vkm] | E64: Electric [g/vkm] | F64: % Electric | Z64: =COUNTBLANK(TransportRailPassengersNumberRange) -> 0
A65: Buss | B65: 3.691032407 | C65: 1.28 | D65: 1166.366241 | E65: 157.44 | F65: 1 | Z65: =COUNT(TransportRailPassengersNumberRange) -> 13
A66: Rail | B66: 14.5 | C66: 2.2 | D66: 4582 | E66: 270.6 | F66: 1
A67: Car | B67: 0.6264861111 | C67: 0.17 | D67: 200.6153802 | E67: 20.91 | F67: 0.4
A68: Truck | B68: 0.7483194444 | C68: 0.6 | D68: 236.4689444 | E68: 73.8 | F68: 0.2
A69: Emission boundary: | B69: Direct emissions and fuel production emissions
A70: Fossil rail method: | B70: Diesel train
A71: Electric rail method in standard values: | B71: Metro (Oslo)

Sheet KPI 1
A1: CO2 emissions | B1: Initial | C1: Baseline | D1: Scenario1 | E1: Scenario12 | F1: Scenario1r8 | G1: Scenario123 | H1: Goal
A2: Year | B2: 2018 | C2: 2030 | D2: 2030 | E2: 2030 | F2: 2030 | G2: 2030 | H2: 2030
A3: Total | B3: 2218.773466 | C3: 1237.521266 | D3: 931.7442839 | E3: 931.7442839 | F3: 931.7442839 | G3: 931.7442839 | H3: 866.2648865
A4: Stationary Energy | B4: 1907.996193 | C4: 897.3888333 | D4: 626.4281031 | E4: 626.4281031 | F4: 626.4281031 | G4: 626.4281031
A5: Mobility | B5: 310.7772733 | C5: 340.1324331 | D5: 305.3161808 | E5: 305.3161808 | F5: 305.3161808 | G5: 305.3161808
A6: Materials | B6: 0 | C6: 0 | D6: 0 | E6: 0 | F6: 0 | G6: 0

Sheet KPI 2
A1: CO2 emissions | B1: Initial | C1: Baseline | D1: Scenario1 | E1: Scenario12 | F1: Scenario1r8 | G1: Scenario123 | H1: Goal
A2: Year | B2: 2018 | C2: 2030 | D2: 2030 | E2: 2030 | F2: 2030 | G2: 2030 | H2: 2030
A3: Total | B3: 0.07650942985 | C3: 0.03344652071 | D3: 0.02518227794 | E3: 0.02518227794 | F3: 0.02518227794 | G3: 0.02518227794 | H3: 0.02006791243
A4: Stationary Energy | B4: 0.06579297216 | C4: 0.02425375225 | D4: 0.01693048927 | E4: 0.01693048927 | F4: 0.01693048927 | G4: 0.01693048927
A5: Mobility | B5: 0.0107164577 | C5: 0.009192768463 | D5: 0.008251788671 | E5: 0.008251788671 | F5: 0.008251788671 | G5: 0.008251788671
A6: Materials | B6: 0 | C6: 0 | D6: 0 | E6: 0 | F6: 0 | G6: 0

Sheet KPI 3
A1: Energy Use | B1: Initial | C1: Baseline | D1: Scenario1 | E1: Scenario12 | F1: Scenario1r8 | G1: Scenario123 | H1: Goal
A2: Year | B2: 2018 | C2: 2030 | D2: 2030 | E2: 2030 | F2: 2030 | G2: 2030 | H2: 2030
A3: Total | B3: 9665413.732 | C3: 11521268.14 | D3: 7211393.632 | E3: 7211393.632 | F3: 7211393.632 | G3: 7211393.632 | H3: 7732330.986
A4: Residential buildings | B4: 3012527.435 | C4: 3012527.435 | D4: 3012527.435 | E4: 3012527.435 | F4: 3012527.435 | G4: 3012527.435
A5: Public buildings | B5: 5078400.5 | C5: 6723558.405 | D5: 2496884.348 | E5: 2496884.348 | F5: 2496884.348 | G5: 2496884.348
A6: Private buildings | B6: 180156.5979 | C6: 180156.5979 | D6: 180156.5979 | E6: 180156.5979 | F6: 180156.5979 | G6: 180156.5979
A7: Street Utilities | B7: 354356.9817 | C7: 354356.9817 | D7: 354356.9817 | E7: 354356.9817 | F7: 354356.9817 | G7: 354356.9817
A8: Transport | B8: 1039972.218 | C8: 1250668.716 | D8: 1167468.27 | E8: 1167468.27 | F8: 1167468.27 | G8: 1167468.27

Sheet KPI 4
A1: Energy Use | B1: Initial | C1: Baseline | D1: Scenario1 | E1: Scenario12 | F1: Scenario1r8 | G1: Scenario123 | H1: Goal
A2: Year | B2: 2018 | C2: 2030 | D2: 2030 | E2: 2030 | F2: 2030 | G2: 2030 | H2: 2030
A3: Total | B3: 333.2901287 | C3: 311.3856253 | D3: 194.9025306 | E3: 194.9025306 | F3: 194.9025306 | G3: 194.9025306 | H3: 266.632103
A4: Residential buildings | B4: 103.8802564 | C4: 81.4196604 | D4: 81.4196604 | E4: 81.4196604 | F4: 81.4196604 | G4: 81.4196604
A5: Public buildings | B5: 175.1172586 | C5: 181.7177947 | D5: 67.48336076 | E5: 67.48336076 | F5: 67.48336076 | G5: 67.48336076
A6: Private buildings | B6: 6.21229648 | C6: 4.869097241 | D6: 4.869097241 | E6: 4.869097241 | F6: 4.869097241 | G6: 4.869097241
A7: Street Utilities | B7: 12.21920627 | C7: 9.577215722 | D7: 9.577215722 | E7: 9.577215722 | F7: 9.577215722 | G7: 9.577215722
A8: Transport | B8: 35.86111097 | C8: 33.80185718 | D8: 31.55319649 | E8: 31.55319649 | F8: 31.55319649 | G8: 31.55319649
